Workbook

Sheet Check
D1: PP1 | E1: C_PP1 | F1: PP2 | G1: C_PP2 | H1: PP3 | I1: C_PP3 | J1: PP4 | K1: C_PP4 | L1: PP5 | M1: C_PP5 | N1: PP6 | O1: C_P6 | P1: PP7 | Q1: C_PP7 | R1: PP8 | S1: Check1 | T1: Check2 | U1: PP9 | V1: C_PP9 | W1: PP10 | X1: C_PP10 | Y1: PP11 | Z1: C_PP11 | AA1: PP12 | AB1: C_PP12 | AC1: PP13 | AD1: C_PP13
E2: =IF(COUNTIF(E2:E999,"FAIL") > 0,"FAIL","OK") -> OK | G2: =IF(COUNTIF(G2:G999,"FAIL") > 0,"FAIL","OK") -> OK | I2: =IF(COUNTIF(I2:I999,"FAIL") > 0,"FAIL","OK") -> OK | K2: =IF(COUNTIF(K2:K999,"FAIL") > 0,"FAIL","OK") -> OK | M2: =IF(COUNTIF(M2:M999,"FAIL") > 0,"FAIL","OK") -> OK | O2: =IF(COUNTIF(O2:O999,"FAIL") > 0,"FAIL","OK") -> OK | Q2: =IF(COUNTIF(Q2:Q999,"FAIL") > 0,"FAIL","OK") -> OK | S2: =IF(COUNTIF(S2:S27,"FAIL")>0,"FAIL","OK") -> FAIL | T2: =IF(COUNTIF(T18:T20,"FAIL")>0,"FAIL","OK") -> OK
A3: PP1 | B3: =E2 -> OK | D3: (HK$’000) | F3: (HK$’000) | H3: (HK$’000) | J3: (HK$’000) | L3: (HK$’000) | N3: (HK$’000) | R3: 序號
A4: PP2 | B4: =G2 -> OK | D4: (HK$’000) | F4: (HK$’000) | H4: 與上月比較 | J4: (HK$’000) | L4: 與上月比較 | N4: (HK$’000) | P4: 回報率 | R4: 物業
A5: PP3 | B5: =I2 -> OK | D5: 與上月比較 | F5: 與上月比較 | H5: 與上月比較 | J5: 與上月比較 | L5: 與上月比較 | N5: 與上月比較 | P5: 出租率 (%) | R5: 銀行
A6: PP4 | B6: =K2 -> OK | D6: 與上月比較 | F6: 與上月比較 | H6: +/(-) | J6: 與上月比較 | L6: +/(-) | N6: 與上月比較 | P6: 出租率 (%) | R6: 最後 供款日
A7: PP5 | B7: =M2 -> OK | D7: +/(-) | F7: +/(-) | J7: +/(-) | N7: +/(-) | R7: 利率
A8: PP6 | B8: =O2 -> OK | H8: 2022年12月 | L8: 2022年12月 | P8: 12月 | R8: 每月 租金 HK$’000
A9: PP7 | B9: =Q2 -> OK | D9: 年度止 | F9: 年度止 | H9: 2022年11月 | L9: 2022年11月 | P9: 2022年12月 | R9: 每月 供款 HK$’000
A10: PP8 | B10: =S2 -> FAIL | D10: 年度止 | F10: 年度止 | H10: % | J10: 2022年12月 | L10: % | N10: 2022年12月 | P10: 2021年12月 | R10: 12月 餘額/ (差額) HK$’000
D11: +/(-) | F11: +/(-) | H11: Exp A(註1) | J11: 2022年11月 | L11: 收入:Private income | N11: 2022年11月 | P11: 總體 | R11: 12月 按揭貨款 餘額 HK$’000
H12: - | J12: % | L12: 8 | M12: OK | N12: % | P12: 0.02 | Q12: OK | R12: 1
H13: - | J13: 其他支出 | L13: 8 | M13: OK | N13: Private K | P13: 0.85 | Q13: OK | R13: A
D14: 2022年 12月 | F14: 2022年 12月 | H14: N/A | J14: 其他支出 | L14: - | N14: Private K | P14: 0.88 | Q14: OK | R14: 銀行
D15: 2022年 11月 | F15: 2022年 12月 | H15: Exp B | J15: 2 | N15: 1 | O15: OK | P15: A | R15: 2042年
D16: % | F16: % | H16: - | J16: 2 | N16: 1 | O16: OK | P16: 0.02 | Q16: OK | R16: 0.0601
H17: 1 | J17: - | N17: - | P17: 1 | Q17: OK | R17: 1000
D18: 2022年 4-12月 | F18: 2022年 4-12月 | H18: -1 | N18: Private L | P18: 0.99 | Q18: OK | R18: 500
D19: 2021年 4-12月 | F19: 2021年 4-12月 | H19: Exp C | L19: 支出:Private Exp A | N19: Private L | P19: B | R19: 500 | S19: =IF(R17+R18=R19,"OK","FAIL") -> FAIL
D20: % | F20: % | H20: 8560 | I20: OK | J20: 10576 | K20: OK | L20: 996 | M20: OK | N20: 1 | O20: OK | P20: 0.04 | Q20: OK | R20: 1000 | S20: =IF(R18+R19=R20,"OK","FAIL") -> OK | T20: =IF(AND(S20="OK",S26="OK"), "OK","FAIL") -> OK
D21: 收入(註1) | F21: Income A(註1) | H21: 9900 | I21: OK | J21: 10908 | K21: OK | L21: 1000 | M21: OK | N21: 1 | O21: OK | P21: 0.85 | Q21: OK | R21: 2
D22: 收入(註1) | F22: Income A(註1) | H22: -0.14 | I22: OK | J22: -0.03 | K22: OK | L22: 0 | M22: OK | N22: - | P22: 0.88 | Q22: OK | R22: B
D23: 1905 | E23: OK | F23: 1000 | G23: OK | H23: Exp D | L23: Private Exp B(註1) | N23: Private M | P23: C | R23: 銀行
D24: 2095 | E24: OK | F24: 1100 | G24: OK | H24: 1 | I24: OK | L24: 11000 | M24: OK | N24: Private M | P24: 0.03 | Q24: OK | R24: 2023-06-01
D25: -0.09 | E25: OK | F25: -0.09 | G25: OK | H25: 1 | I25: OK | L25: 1000 | M25: OK | N25: 1 | O25: OK | P25: 0.95 | Q25: OK | R25: 0.0338
H26: - | L26: >100% | M26: OK | N26: 1 | O26: OK | P26: 0.96 | Q26: OK | R26: 125 | S26: =IF(R27+R28=R26,"OK","FAIL") -> OK
D27: 4049 | E27: OK | F27: 2107 | G27: OK | H27: Exp E | L27: Private Exp C(註2) | N27: - | P27: D | R27: 120
D28: 62 | E28: OK | F28: 9 | G28: OK | H28: 9 | I28: OK | J28: 註1: | L28: 2 | M28: OK | N28: 其他支出(註6) | P28: 0.02 | Q28: OK | R28: 5
D29: >100% | E29: OK | F29: >100% | G29: OK | H29: 1 | I29: OK | J29: H71 | L29: 2 | M29: OK | N29: 其他支出(註6) | P29: 0.54 | Q29: OK | R29: 2000
D30: 其他收入 | F30: Income B(註2) | H30: >100% | I30: OK | J30: H71 | L30: - | N30: 2 | O30: OK | P30: 0.59 | Q30: OK | R30: 3
D31: 其他收入 | F31: Income B(註2) | H31: Exp F(註2) | J31: H71 | L31: Private Exp D(註3) | N31: 2 | O31: OK | P31: E | R31: C
D32: 3 | F32: 900 | G32: OK | H32: 2 | I32: OK | J32: H71 | L32: 1 | M32: OK | N32: - | P32: 0.02 | Q32: OK | R32: 銀行
D33: 3 | F33: 990 | G33: OK | H33: 1 | I33: OK | J33: 註2: | L33: 1 | M33: OK | P33: 0.97 | Q33: OK | R33: 2023-06-01
D34: - | F34: -0.09 | G34: OK | H34: 1 | I34: OK | J34: H72 | L34: - | P34: 0.94 | Q34: OK | R34: 0.0313
H35: Exp G | J35: H72 | L35: Private Exp E | N35: 12757 | O35: OK | R35: 200
D36: 27 | E36: OK | F36: 1897 | G36: OK | H36: 2000 | I36: OK | J36: H72 | L36: - | N36: 3051 | O36: OK | R36: 100
D37: 21 | E37: OK | F37: 9 | G37: OK | H37: 1000 | I37: OK | J37: H72 | L37: 1 | M37: OK | N37: >100% | O37: OK | R37: 100
D38: 0.29 | E38: OK | F38: >100% | G38: OK | H38: 1 | I38: OK | J38: 註3: | L38: -1 | M38: OK | R38: 3000
D39: 總營運收入 | F39: Income C | H39: Exp H | J39: H73 | L39: Private Exp F(註4) | R39: 4
D40: 總營運收入 | F40: Income C | H40: 1 | I40: OK | J40: H73 | L40: - | R40: D
D41: 1908 | E41: OK | F41: 1 | G41: OK | H41: 1 | I41: OK | J41: H73 | L41: - | R41: 銀行
D42: 2098 | E42: OK | F42: 1 | G42: OK | H42: - | J42: H73 | L42: N/A | R42: 2032年
D43: -0.09 | E43: OK | F43: - | H43: Exp I(註3) | L43: Private Exp J | N43: 註1: | R43: 0.0303
H44: 1 | I44: OK | L44: 2 | M44: OK | N44: 本月份收入下跌主要因為是1 | R44: 824
D45: 4076 | E45: OK | F45: 9 | G45: OK | H45: 1 | I45: OK | L45: 2 | M45: OK | N45: 本月份收入下跌主要因為是1 | R45: 420
D46: 83 | E46: OK | F46: 9 | G46: OK | H46: - | L46: - | N46: 本月份收入下跌主要因為是1 | R46: 404
D47: >100% | E47: OK | F47: - | L47: Private Exp H | N47: 本月份收入下跌主要因為是1 | R47: 4000
D48: 營運支出(註2) | F48: Income D | L48: 700 | M48: OK | N48: 註2:
D49: 營運支出(註2) | F49: Income D | L49: 999 | M49: OK | N49: 本月份收入下跌主要因為是2
D50: -21245 | E50: OK | F50: 1 | G50: OK | L50: -0.3 | M50: OK | N50: 本月份收入下跌主要因為是2
D51: -21818 | E51: OK | F51: 1 | G51: OK | L51: Private Exp I | N51: 本月份收入下跌主要因為是2
D52: -0.03 | E52: OK | F52: - | L52: 50 | M52: OK | N52: 本月份收入下跌主要因為是2
L53: 40 | M53: OK | N53: 註3:
D54: -21654 | E54: OK | F54: 9 | G54: OK | L54: 0.25 | M54: OK | N54: 本月份收入下跌主要因為是3
D55: -108 | E55: OK | F55: 9 | G55: OK | L55: Private Exp J (註5) | N55: 本月份收入下跌主要因為是3
D56: >100% | E56: OK | F56: - | L56: 1 | M56: OK | N56: 本月份收入下跌主要因為是3
D57: 營運盈餘 | F57: Income E | L57: 1 | M57: OK | N57: 本月份收入下跌主要因為是3
D58: 營運盈餘 | F58: Income E | L58: - | N58: 註4:
D59: -19337 | E59: OK | F59: 1 | G59: OK | N59: 本月份收入下跌主要因為是4
D60: -19720 | E60: OK | F60: 1 | G60: OK | N60: 本月份收入下跌主要因為是4
D61: -0.02 | E61: OK | F61: - | N61: 本月份收入下跌主要因為是4
N62: 本月份收入下跌主要因為是4
D63: -17578 | E63: OK | F63: 9 | G63: OK
D64: -25 | E64: OK | F64: 9 | G64: OK
D65: >100% | E65: OK | F65: -
F68: 1903 | G68: OK
F69: 2093 | G69: OK
F70: -0.09 | G70: OK
F72: 4031 | G72: OK
F73: 45 | G73: OK
F74: >100% | G74: OK
D75: 還款(本金) | F75: 其他收入(註3)
D76: 還款(本金) | F76: 其他收入(註3)
D77: -100000 | E77: OK | F77: 2 | G77: OK
D78: -123457 | E78: OK | F78: 2 | G78: OK
D79: -0.19 | E79: OK | F79: -
D81: -223464 | E81: OK | F81: 18 | G81: OK
D82: -9 | E82: OK | F82: 17 | G82: OK
D83: >100% | E83: OK | F83: 0.06 | G83: OK
F86: 1905 | G86: OK
F87: 2095 | G87: OK
F88: -0.09 | G88: OK
F90: 4049 | G90: OK
F91: 62 | G91: OK
F92: >100% | G92: OK
D93: 註1:
D94: 本月份收入下跌主要因為是
D95: 本月份收入下跌主要因為是
D96: 本月份收入下跌主要因為是
D97: 本月份收入下跌主要因為是
D98: 本月份收入下跌主要因為是
D99: 本月份收入下跌主要因為是
D100: 本月份收入下跌主要因為是
D101: 本月份收入下跌主要因為是
D102: 註2: | F102: 註1:
D103: 支出主要為 | F103: 本月份收入下跌主要因為是1
D104: 支出主要為 | F104: 本月份收入下跌主要因為是1
D105: 支出主要為 | F105: 本月份收入下跌主要因為是1
D106: 支出主要為 | F106: 本月份收入下跌主要因為是1
D107: 支出主要為 | F107: 本月份收入下跌主要因為是1
D108: 支出主要為 | F108: 本月份收入下跌主要因為是1
D109: 支出主要為 | F109: 本月份收入下跌主要因為是1
D110: 支出主要為 | F110: 本月份收入下跌主要因為是1
F111: 註2:
F112: 本月份收入下跌主要因為是2
F113: 本月份收入下跌主要因為是2
F114: 本月份收入下跌主要因為是2
F115: 本月份收入下跌主要因為是2
F116: 本月份收入下跌主要因為是2
F117: 本月份收入下跌主要因為是2
F118: 本月份收入下跌主要因為是2
F119: 本月份收入下跌主要因為是2
F120: 註3:
F121: 本月份收入下跌主要因為是3
F122: 本月份收入下跌主要因為是3
F123: 本月份收入下跌主要因為是3
F124: 本月份收入下跌主要因為是3
F125: 本月份收入下跌主要因為是3
F126: 本月份收入下跌主要因為是3
F127: 本月份收入下跌主要因為是3
F128: 本月份收入下跌主要因為是3

Sheet Power point
A1: replaceInSlide7R407:R407 | K1: B | L1: C | M1: D | N1: E | O1: F | P1: G | Q1: H | V1: B | W1: C | X1: D | Y1: E | Z1: F | AA1: G | AB1: H
C5: ='Exp_Co (MTM)'!O5 -> 12月 | D5: ='Exp_Co (MTM)'!R5 -> 11月 | L5: ='Exp_Co (MTM)'!O5 -> 12月 | M5: ='Exp_Co (MTM)'!R5 -> 11月
A6: PP2 | C6: V>S>O | D6: Y>V>R | L6: V>S>O | M6: Y>V>R | P6: column unchange | Q6: column unchange
A7: 2022年12月份營運收支表 | G7: column unchange | H7: OK
A8: (HK$’000) | C8: 與上月比較 | E8: +/(-) | G8: 年度止 | I8: +/(-)
C9: 2022年 | D9: 2022年 | E9: % | G9: 2022年 | H9: 2021年 | I9: %
C10: 12月 | D10: 11月 | G10: 4-12月 | H10: 4-12月
A11: 收入 | C11: ='Exp_Co (MTM)'!O17 -> 1905 | D11: ='Exp_Co (MTM)'!R17 -> 2095 | E11: =ROUND('Exp_Co (MTM)'!AS17,2) -> -0.09 | G11: ='Exp_Co (YTD)'!R18 -> 4049 | H11: ='Exp_Co (YTD)'!AG18 -> 62 | I11: =ROUND('Exp_Co (YTD)'!AK18,2) -> 64.31 | L11: ='Exp_Co (MTM)'!O17 -> 1905 | M11: ='Exp_Co (MTM)'!R17 -> 2095 | N11: =ROUND((L11-M11)/M11,2) -> -0.09 | P11: =G11 -> 4049 | Q11: =H11 -> 62 | R11: =ROUND((P11-Q11)/Q11,2) -> 64.31 | W11: =IF(IF(L11="-",0,L11)=IF(C11="-",0,C11),"OK","CHECK") -> OK | X11: =IF(IF(M11="-",0,M11)=IF(D11="-",0,D11),"OK","CHECK") -> OK | Y11: =IF(IF(N11="-",0,N11)=IF(E11="-",0,E11),"OK","CHECK") -> OK | Z11: =IF(IF(O11="-",0,O11)=IF(F11="-",0,F11),"OK","CHECK") -> OK | AA11: =IF(IF(P11="-",0,P11)=IF(G11="-",0,G11),"OK","CHECK") -> OK | AB11: =IF(IF(Q11="-",0,Q11)=IF(H11="-",0,H11),"OK","CHECK") -> OK | AC11: OK
A12: 其他收入 | C12: ='Exp_Co (MTM)'!O22 -> 3 | D12: ='Exp_Co (MTM)'!R22 -> 3 | E12: =ROUND('Exp_Co (MTM)'!AS22,2) -> 0 | G12: ='Exp_Co (YTD)'!R23 -> 27 | H12: ='Exp_Co (YTD)'!AG23 -> 21 | I12: =ROUND('Exp_Co (YTD)'!AK23,2) -> 0.29 | L12: ='Exp_Co (MTM)'!O22 -> 3 | M12: ='Exp_Co (MTM)'!R22 -> 3 | N12: 0 | P12: 27 | Q12: 21 | R12: 0.29 | W12: OK | X12: OK | Y12: OK | Z12: OK | AA12: OK | AB12: OK | AC12: OK
A13: 總營運收入 | C13: =C11+C12 -> 1908 | D13: =D11+D12 -> 2098 | E13: =ROUND('Exp_Co (MTM)'!AS24,2) -> -0.09 | G13: ='Exp_Co (YTD)'!R25 -> 4076 | H13: ='Exp_Co (YTD)'!AG25 -> 83 | I13: =ROUND('Exp_Co (YTD)'!AK25,2) -> 48.11 | L13: ='Exp_Co (MTM)'!O24 -> 1908 | M13: ='Exp_Co (MTM)'!R24 -> 2098 | N13: -0.09 | P13: =G11+G12 -> 4076 | Q13: =H11+H12 -> 83 | R13: 48.11 | W13: OK | X13: OK | Y13: OK | Z13: OK | AA13: OK | AB13: OK | AC13: OK
A14: 營運支出(註2) | C14: =-'Exp_Co (MTM)'!O39 -> -21245 | D14: =-'Exp_Co (MTM)'!R39 -> -21818 | E14: =ROUND('Exp_Co (MTM)'!AS39,2) -> -0.03 | G14: =-'Exp_Co (YTD)'!R39 -> -21654 | H14: =-'Exp_Co (YTD)'!AG39 -> -108 | I14: =ROUND('Exp_Co (YTD)'!AK39,2) -> 199.5 | L14: =-'Exp_Co (MTM)'!O39 -> -21245 | M14: =-'Exp_Co (MTM)'!R39 -> -21818 | N14: =ROUND((L14-M14)/M14,2) -> -0.03 | P14: =G14 -> -21654 | Q14: =H14 -> -108 | R14: 199.5 | W14: OK | X14: OK | Y14: OK | Z14: OK | AA14: OK | AB14: OK | AC14: OK
A15: 營運盈餘 | C15: =C13+C14 -> -19337 | D15: =D13+D14 -> -19720 | E15: =ROUND('Exp_Co (MTM)'!AS41,2) -> -0.02 | G15: ='Exp_Co (YTD)'!R41 -> -17578 | H15: ='Exp_Co (YTD)'!AG41 -> -25 | I15: =ROUND('Exp_Co (YTD)'!AK41,2) -> 702.12 | L15: ='Exp_Co (MTM)'!O41 -> -19337 | M15: ='Exp_Co (MTM)'!R41 -> -19720 | N15: -0.02 | P15: =G13+G14 -> -17578 | Q15: =H13+H14 -> -25 | R15: 702.12 | W15: OK | X15: OK | Y15: OK | Z15: OK | AA15: OK | AB15: OK | AC15: OK
A17: ='Exp_Co (YTD)'!B43 -> 還本金 | C17: =-'Exp_Co (MTM)'!O43 -> -100000 | D17: =-'Exp_Co (MTM)'!R43 -> -123457 | E17: =ROUND('Exp_Co (MTM)'!AS43,2) -> -0.19 | G17: =-'Exp_Co (YTD)'!R43 -> -223464 | H17: =-'Exp_Co (YTD)'!AG43 -> -9 | I17: =ROUND('Exp_Co (YTD)'!AK43,2) -> 24828.33 | L17: =-'Exp_Co (MTM)'!O43 -> -100000 | M17: =-'Exp_Co (MTM)'!R43 -> -123457 | N17: =ROUND((L17-M17)/M17,2) -> -0.19 | P17: =G17 -> -223464 | Q17: =H17 -> -9 | R17: 24828.33 | W17: OK | X17: OK | Y17: OK | Z17: OK | AA17: OK | AB17: OK | AC17: =IF(IF(R17="-",0,R17)=IF(I17="-",0,I17),"OK","CHECK") -> OK
A18: Nov'22
A19: 註1: | B19: 本月份收入下跌主要因為是 | J19: Show Text
A21: 註2: | B21: 支出主要為
D25: OK
A26: PP3 | B26: OK | C26: !V>!S | D26: !Y>!V>!R
A27: 2022年12月份收入 | G27: column unchange | H27: OK | AD27: =A26 -> PP3
A28: (HK$’000) | C28: 與上月比較 | E28: +/(-) | G28: 年度止 | I28: +/(-)
C29: 2022年 | D29: 2022年 | E29: % | G29: 2022年 | H29: 2021年 | I29: %
C30: 12月 | D30: 11月 | G30: 4-12月 | H30: 4-12月
A31: ='Exp_Co (YTD)'!B8 -> Income A | C31: ='Exp_Co (MTM)'!O8 -> 1000 | D31: ='Exp_Co (MTM)'!R8 -> 1100 | E31: =ROUND('Exp_Co (MTM)'!AS8,2) -> -0.09 | G31: ='Exp_Co (YTD)'!R9 -> 2107 | H31: ='Exp_Co (YTD)'!AG9 -> 9 | I31: =ROUND('Exp_Co (YTD)'!AK9,2) -> 233.11 | J31: 註1: | L31: =C31 -> 1000 | M31: =D31 -> 1100 | N31: =ROUND((L31-M31)/M31,2) -> -0.09 | P31: =G31 -> 2107 | Q31: =H31 -> 9 | R31: =ROUND((P31-Q31)/Q31,2) -> 233.11 | W31: =IF(IF(L31="-",0,L31)=IF(C31="-",0,C31),"OK","CHECK") -> OK | X31: =IF(IF(M31="-",0,M31)=IF(D31="-",0,D31),"OK","CHECK") -> OK | Y31: =IF(IF(N31="-",0,N31)=IF(E31="-",0,E31),"OK","CHECK") -> OK | Z31: =IF(IF(O31="-",0,O31)=IF(F31="-",0,F31),"OK","CHECK") -> OK | AA31: =IF(IF(P31="-",0,P31)=IF(G31="-",0,G31),"OK","CHECK") -> OK | AB31: =IF(IF(Q31="-",0,Q31)=IF(H31="-",0,H31),"OK","CHECK") -> OK | AC31: OK
A32: ='Exp_Co (YTD)'!B9 -> Income B | C32: ='Exp_Co (MTM)'!O7 -> 900 | D32: ='Exp_Co (MTM)'!R7 -> 990 | E32: =ROUND('Exp_Co (MTM)'!AS7,2) -> -0.09 | G32: ='Exp_Co (YTD)'!R8 -> 1897 | H32: ='Exp_Co (YTD)'!AG8 -> 9 | I32: =ROUND('Exp_Co (YTD)'!AK8,2) -> 209.78 | L32: =C32 -> 900 | M32: =D32 -> 990 | N32: =ROUND((L32-M32)/M32,2) -> -0.09 | P32: =G32 -> 1897 | Q32: =H32 -> 9 | R32: 209.78 | W32: =IF(IF(L32="-",0,L32)=IF(C32="-",0,C32),"OK","CHECK") -> OK | X32: =IF(IF(M32="-",0,M32)=IF(D32="-",0,D32),"OK","CHECK") -> OK | Y32: =IF(IF(N32="-",0,N32)=IF(E32="-",0,E32),"OK","CHECK") -> OK | Z32: =IF(IF(O32="-",0,O32)=IF(F32="-",0,F32),"OK","CHECK") -> OK | AA32: =IF(IF(P32="-",0,P32)=IF(G32="-",0,G32),"OK","CHECK") -> OK | AB32: =IF(IF(Q32="-",0,Q32)=IF(H32="-",0,H32),"OK","CHECK") -> OK | AC32: =IF(IF(R32="-",0,R32)=IF(I32="-",0,I32),"OK","CHECK") -> OK
A33: ='Exp_Co (YTD)'!B10 -> Income C | C33: ='Exp_Co (MTM)'!O9 -> 1 | D33: ='Exp_Co (MTM)'!R9 -> 1 | E33: =ROUND('Exp_Co (MTM)'!AS9,2) -> 0 | G33: ='Exp_Co (YTD)'!R10 -> 9 | H33: ='Exp_Co (YTD)'!AG10 -> 9 | I33: =ROUND('Exp_Co (YTD)'!AK10,2) -> 0 | L33: 1 | M33: 1 | N33: =ROUND((L33-M33)/M33,2) -> 0 | P33: 9 | Q33: 9 | R33: 0 | W33: OK | X33: OK | Y33: OK | Z33: OK | AA33: OK | AB33: OK | AC33: OK
A34: ='Exp_Co (YTD)'!B11 -> Income D | C34: ='Exp_Co (MTM)'!O11 -> 1 | D34: ='Exp_Co (MTM)'!R11 -> 1 | E34: =ROUND('Exp_Co (MTM)'!AS11,2) -> 0 | G34: ='Exp_Co (YTD)'!R12 -> 9 | H34: ='Exp_Co (YTD)'!AG12 -> 9 | I34: =ROUND('Exp_Co (YTD)'!AK12,2) -> 0 | L34: 1 | M34: 1 | N34: 0 | O34: (0%) | P34: 9 | Q34: 9 | R34: 0 | W34: OK | X34: OK | Y34: OK | Z34: CHECK | AA34: OK | AB34: OK | AC34: OK
A35: ='Exp_Co (YTD)'!B12 -> Income E | C35: ='Exp_Co (MTM)'!O10 -> 1 | D35: ='Exp_Co (MTM)'!R10 -> 1 | E35: =ROUND('Exp_Co (MTM)'!AS10,2) -> 0 | G35: ='Exp_Co (YTD)'!R11 -> 9 | H35: ='Exp_Co (YTD)'!AG11 -> 9 | I35: =ROUND('Exp_Co (YTD)'!AK11,2) -> 0 | L35: 1 | M35: 1 | N35: 0 | P35: 9 | Q35: 9 | R35: 0 | W35: OK | X35: OK | Y35: OK | Z35: OK | AA35: OK | AB35: OK | AC35: OK
C36: ='Exp_Co (MTM)'!O12 -> 1903 | D36: ='Exp_Co (MTM)'!R12 -> 2093 | E36: =ROUND('Exp_Co (MTM)'!AS12,2) -> -0.09 | G36: =SUM(G31:G35) -> 4031 | H36: =SUM(H31:H35) -> 45 | I36: =ROUND('Exp_Co (YTD)'!AK13,2) -> 88.58 | L36: =SUM(C31:C35) -> 1903 | M36: =SUM(D31:D35) -> 2093 | N36: =ROUND((L36-M36)/M36,2) -> -0.09 | P36: =SUM(G31:G35) -> 4031 | Q36: =SUM(H31:H35) -> 45 | R36: 88.58 | W36: OK | X36: OK | Y36: OK | Z36: OK | AA36: OK | AB36: OK | AC36: OK
A37: 其他收入(註4) | C37: ='Exp_Co (MTM)'!O16 -> 2 | D37: ='Exp_Co (MTM)'!R16 -> 2 | E37: =ROUND('Exp_Co (MTM)'!AS16,2) -> 0 | G37: ='Exp_Co (YTD)'!R17 -> 18 | H37: ='Exp_Co (YTD)'!AG17 -> 17 | I37: =ROUND('Exp_Co (YTD)'!AK17,2) -> 0.06 | L37: =C37 -> 2 | M37: =D37 -> 2 | N37: 0 | P37: =G37 -> 18 | Q37: =H37 -> 17 | R37: 0.06 | W37: OK | X37: OK | Y37: OK | Z37: OK | AA37: OK | AB37: OK | AC37: OK
C38: =C36+C37 -> 1905 | D38: =D36+D37 -> 2095 | E38: =ROUND('Exp_Co (MTM)'!AS17,2) -> -0.09 | G38: =G36+G37 -> 4049 | H38: =H36+H37 -> 62 | I38: =ROUND('Exp_Co (YTD)'!AK18,2) -> 64.31 | L38: =C36+C37 -> 1905 | M38: =D36+D37 -> 2095 | N38: -0.09 | P38: =G36+G37 -> 4049 | Q38: =H36+H37 -> 62 | R38: 64.31 | W38: OK | X38: OK | Y38: OK | Z38: OK | AA38: OK | AB38: OK | AC38: OK
A39: Nov'22
A40: 註1: | B40: 本月份收入下跌主要因為是1
A41: 註2: | B41: 本月份收入下跌主要因為是2
A42: 註3: | B42: 本月份收入下跌主要因為是3
A46: PP4 | B46: Exp_Co | C46: OK
A47: 營運支出 | B47: ,21,>,18, | C47: ,24,>,21, | AD47: =A46 -> PP4
A48: (HK$’000) | B48: 與上月比較 | D48: +/(-) | K48: ,20,>,17,14 | L48: ,23,>,20,17
B49: 2022年12月 | C49: 2022年11月 | D49: % | J49: MONTH | K49: =VLOOKUP(J49,'Exp_Co (MTM)'!$B$1:$AA$38,14,0) -> 12月 | L49: =VLOOKUP(J49,'Exp_Co (MTM)'!$B$1:$AA$38,17,0) -> 11月
A50: Exp A | B50: =K50 -> 0 | C50: =L50 -> 0 | D50: =M50 -> N/A | J50: Exp A | K50: =VLOOKUP(J50,'Exp_Co (MTM)'!$B$1:$AA$38,14,0) -> 0 | L50: =VLOOKUP(J50,'Exp_Co (MTM)'!$B$1:$AA$38,17,0) -> 0 | M50: =IF(L50=0,IF(K50=0,"N/A","100%"),((K50-L50)/L50)) -> N/A | V50: =IF(IF(K50="-",0,K50)=IF(B50="-",0,B50),"OK","CHECK") -> OK | W50: =IF(IF(L50="-",0,L50)=IF(C50="-",0,C50),"OK","CHECK") -> OK | X50: =IF(IF(M50="-",0,M50)=IF(D50="-",0,D50),"OK","CHECK") -> OK
A51: Exp B | B51: =K51 -> 0 | C51: =L51 -> 1 | D51: =M51 -> -1 | E51: (100%) | J51: Exp B | K51: =VLOOKUP(J51,'Exp_Co (MTM)'!$B$1:$AA$38,14,0) -> 0 | L51: =VLOOKUP(J51,'Exp_Co (MTM)'!$B$1:$AA$38,17,0) -> 1 | M51: -1 | V51: OK | W51: OK | X51: =IF(IF(M51="-",0,M51)=IF(D51="-",0,D51),"OK","CHECK") -> OK
A52: Exp C | B52: 8560 | C52: 9900 | D52: -0.1353535354 | E52: (14%) | J52: Exp C | K52: =VLOOKUP(J52,'Exp_Co (MTM)'!$B$1:$AA$38,14,0) -> 8560 | L52: =VLOOKUP(J52,'Exp_Co (MTM)'!$B$1:$AA$38,17,0) -> 9900 | M52: -0.1353535354 | V52: =IF(IF(K52="-",0,K52)=IF(B52="-",0,B52),"OK","CHECK") -> OK | W52: =IF(IF(L52="-",0,L52)=IF(C52="-",0,C52),"OK","CHECK") -> OK | X52: OK
A53: Exp D | B53: 1 | C53: 1 | D53: 0 | E53: - | J53: Exp D | K53: =VLOOKUP(J53,'Exp_Co (MTM)'!$B$1:$AA$38,14,0) -> 1 | L53: =VLOOKUP(J53,'Exp_Co (MTM)'!$B$1:$AA$38,17,0) -> 1 | M53: 0 | V53: OK | W53: OK | X53: OK
A54: Exp E | B54: 9 | C54: 1 | D54: 8 | E54: >100% | J54: Exp E | K54: =VLOOKUP(J54,'Exp_Co (MTM)'!$B$1:$AA$38,14,0) -> 9 | L54: =VLOOKUP(J54,'Exp_Co (MTM)'!$B$1:$AA$38,17,0) -> 1 | M54: 8 | V54: OK | W54: OK | X54: OK
A55: Exp F | B55: 2 | C55: 1 | D55: 1 | E55: - | J55: Exp F | K55: =VLOOKUP(J55,'Exp_Co (MTM)'!$B$1:$AA$38,14,0) -> 2 | L55: =VLOOKUP(J55,'Exp_Co (MTM)'!$B$1:$AA$38,17,0) -> 1 | M55: 1 | V55: OK | W55: OK | X55: OK
A56: Exp G | B56: 2000 | C56: 1000 | D56: 1 | E56: - | J56: Exp G | K56: =VLOOKUP(J56,'Exp_Co (MTM)'!$B$1:$AA$38,14,0) -> 2000 | L56: =VLOOKUP(J56,'Exp_Co (MTM)'!$B$1:$AA$38,17,0) -> 1000 | M56: 1 | V56: OK | W56: OK | X56: OK
A57: Exp H | B57: 1 | C57: 1 | D57: 0 | E57: - | J57: Exp H | K57: =VLOOKUP(J57,'Exp_Co (MTM)'!$B$1:$AA$38,14,0) -> 1 | L57: =VLOOKUP(J57,'Exp_Co (MTM)'!$B$1:$AA$38,17,0) -> 1 | M57: 0 | N57: >100% | V57: OK | W57: OK | X57: OK
A58: Exp I | B58: 1 | C58: 1 | D58: 0 | E58: - | J58: Exp I | K58: =VLOOKUP(J58,'Exp_Co (MTM)'!$B$1:$AA$38,14,0) -> 1 | L58: =VLOOKUP(J58,'Exp_Co (MTM)'!$B$1:$AA$38,17,0) -> 1 | M58: 0 | V58: OK | W58: OK | X58: OK
J59: Exp J | K59: =VLOOKUP(J59,'Exp_Co (MTM)'!$B$1:$AA$38,14,0) -> 1 | L59: =VLOOKUP(J59,'Exp_Co (MTM)'!$B$1:$AA$38,17,0) -> 1 | M59: 0 | V59: CHECK | W59: CHECK | X59: OK
I60: s | M60: =IF(L60=0,IF(K60=0,"N/A","100%"),((K60-L60)/L60)) -> N/A | V60: =IF(IF(K60="-",0,K60)=IF(B60="-",0,B60),"OK","CHECK") -> OK | W60: =IF(IF(L60="-",0,L60)=IF(C60="-",0,C60),"OK","CHECK") -> OK
I61: s | J61: Exp K | K61: =VLOOKUP(J61,'Exp_Co (MTM)'!$B$1:$AA$38,14,0) -> 1 | L61: =VLOOKUP(J61,'Exp_Co (MTM)'!$B$1:$AA$38,17,0) -> 1 | M61: =IF(L61=0,IF(K61=0,"N/A","100%"),((K61-L61)/L61)) -> 0 | V61: =IF(IF(#REF!="-",0,#REF!)=IF(C61="-",0,C61),"OK","CHECK") ->  | W61: =IF(IF(#REF!="-",0,#REF!)=IF(D61="-",0,D61),"OK","CHECK") -> 
I62: S
I63: S
I64: S
I65: S
A69: PP5 | J69: PP5
A70: 營運支出(續) | D70: OK | AD70: =A69 -> PP5
A71: (HK$’000) | C71: 與上月比較 | E71: +/(-) | G71: 註1: | H71: H71
C72: 2022年12月 | D72: 2022年11月 | E72: % | G72: 註2: | H72: H72
A73: Others | C73: =K73 -> 2 | D73: =L73 -> 2 | E73: =M73 -> 0 | G73: 註3: | H73: H73 | J73: Others | K73: =VLOOKUP(J73,'Exp_Co (MTM)'!$B$26:$AA$38,14,0)+SUM(K60:K64) -> 2 | L73: =VLOOKUP(J73,'Exp_Co (MTM)'!$B$26:$AA$38,17,0)+SUM(L60:L64) -> 2 | M73: =IF(L73=0,IF(K73=0,"N/A","100%"),((K73-L73)/L73)) -> 0 | N73: >100% | V73: =IF(IF(K73="-",0,K73)=IF(C73="-",0,C73),"OK","CHECK") -> OK | W73: =IF(IF(L73="-",0,L73)=IF(D73="-",0,D73),"OK","CHECK") -> OK | X73: =IF(IF(M73="-",0,M73)=IF(E73="-",0,E73),"OK","CHECK") -> OK
C74: =SUM(B50:B61)+SUM(C62:C73) -> 10576 | D74: =SUM(C50:C61)+SUM(D62:D73) -> 10908 | E74: =M74 -> -0.03043358695 | K74: =SUM(K50:K59)+SUM(K66:K73) -> 10577 | L74: =SUM(L50:L59)+SUM(L66:L73) -> 10909 | M74: =IF(L74=0,IF(K74=0,"N/A","100%"),((K74-L74)/L74)) -> -0.03043358695 | V74: =IF(IF(K74="-",0,K74)=IF(C74="-",0,C74),"OK","CHECK") -> CHECK | W74: CHECK | X74: OK
K75: ='Exp_Co (MTM)'!O39-'Power point'!K74 -> 10668 | L75: ='Exp_Co (MTM)'!R39-'Power point'!L74 -> 10909 | V75: CHECK | W75: CHECK
B76: ='Exp_private (MTM)'!O5 -> 12月 | C76: ='Exp_private (MTM)'!R5 -> 11月
A77: PP6 | B77: O | C77: R
A78: 2022年12月個人收入及支出 | E78: Sorting | AD78: =A77 -> PP6
A79: (HK$’000) | B79: 與上月比較 | D79: +/(-) | K79: ,20,>,17,14 | L79: ,23,>,20,17
B80: 2022年12月 | C80: 2022年11月 | D80: % | J80: MONTH | K80: =VLOOKUP(J80,'Exp_private (MTM)'!$B$1:$AB$33,14,0) -> 12月 | L80: =VLOOKUP(J80,'Exp_private (MTM)'!$B$1:$AB$33,17,0) -> 11月
A81: =J81 -> Private income | B81: 8 | C81: 8 | D81: - | E81: =M83 -> -0.004 | J81: ='Exp_private (YTD)'!B14 -> Private income | K81: =VLOOKUP(J81,'Exp_private (MTM)'!$B$1:$AB$33,14,0) -> 992 | L81: =VLOOKUP(J81,'Exp_private (MTM)'!$B$1:$AB$33,17,0) -> 1202 | M81: =IF(L81=0,IF(K81=0,"N/A","100%"),((K81-L81)/L81)) -> -0.1747088186 | V81: =IF(IF(K81="-",0,K81)=IF(B81="-",0,B81),"OK","CHECK") -> CHECK | W81: =IF(IF(L81="-",0,L81)=IF(C81="-",0,C81),"OK","CHECK") -> CHECK | X81: =IF(IF(M81="-",0,M81)=IF(D81="-",0,D81),"OK","CHECK") -> CHECK
A83: =J83 -> Private Exp A | B83: =K83 -> 996 | C83: =L83 -> 1000 | D83: =M83 -> -0.004 | E83: Show (0%) for -0.4% | J83: Private Exp A | K83: =VLOOKUP(J83,'Exp_private (MTM)'!$B$1:$AB$33,14,0) -> 996 | L83: =VLOOKUP(J83,'Exp_private (MTM)'!$B$1:$AB$33,17,0) -> 1000 | M83: =IF(L83=0,IF(K83=0,"N/A","100%"),((K83-L83)/L83)) -> -0.004 | N83: =(+K83-L83)/L83 -> -0.004 | O83: Show (0%) | V83: =IF(IF(K83="-",0,K83)=IF(B83="-",0,B83),"OK","CHECK") -> OK | W83: =IF(IF(L83="-",0,L83)=IF(C83="-",0,C83),"OK","CHECK") -> OK | X83: =IF(IF(M83="-",0,M83)=IF(D83="-",0,D83),"OK","CHECK") -> OK
A84: =J84 -> Private Exp B | B84: =K84 -> 11000 | C84: =L84 -> 1000 | D84: 10 | E84: >100% | J84: Private Exp B | K84: =VLOOKUP(J84,'Exp_private (MTM)'!$B$1:$AB$33,14,0) -> 11000 | L84: =VLOOKUP(J84,'Exp_private (MTM)'!$B$1:$AB$33,17,0) -> 1000 | M84: =IF(L84=0,IF(K84=0,"N/A","100%"),((K84-L84)/L84)) -> 10 | V84: =IF(IF(K84="-",0,K84)=IF(B84="-",0,B84),"OK","CHECK") -> OK | W84: =IF(IF(L84="-",0,L84)=IF(C84="-",0,C84),"OK","CHECK") -> OK | X84: =IF(IF(M84="-",0,M84)=IF(D84="-",0,D84),"OK","CHECK") -> OK
A85: Private Exp C | B85: 2 | C85: 2 | D85: 0 | I85: MV | J85: Private Exp C | K85: =SUMIF($I$94:$L$100,I85,K$94:K$100) -> 2 | L85: =SUMIF($I$94:$L$100,I85,L$94:L$100) -> 2 | M85: 0 | V85: OK | W85: OK | X85: OK
A86: Private Exp D | B86: 1 | C86: 1 | D86: 0 | J86: Private Exp D | K86: =VLOOKUP(J86,'Exp_private (MTM)'!$B$1:$AB$33,14,0) -> 1 | L86: =VLOOKUP(J86,'Exp_private (MTM)'!$B$1:$AB$33,17,0) -> 1 | M86: 0 | V86: OK | W86: OK | X86: OK
A87: Private Exp E | B87: 0 | C87: 1 | D87: -1 | E87: (100%) | J87: Private Exp E | K87: =VLOOKUP(J87,'Exp_private (MTM)'!$B$1:$AB$33,14,0) -> 0 | L87: =VLOOKUP(J87,'Exp_private (MTM)'!$B$1:$AB$33,17,0) -> 1 | M87: -1 | V87: OK | W87: OK | X87: OK
A88: Private Exp F | B88: 0 | C88: 0 | D88: N/A | J88: Private Exp F | K88: =VLOOKUP(J88,'Exp_private (MTM)'!$B$1:$AB$33,14,0) -> 0 | L88: =VLOOKUP(J88,'Exp_private (MTM)'!$B$1:$AB$33,17,0) -> 0 | M88: N/A | V88: OK | W88: OK | X88: OK
A89: Private Exp G | B89: 2 | C89: 2 | D89: 0 | I89: U | J89: Private Exp G | K89: =SUMIF($I$94:$L$100,I89,K$94:K$100) -> 2 | L89: =SUMIF($I$94:$L$100,I89,L$94:L$100) -> 2 | M89: 0 | V89: OK | W89: OK | X89: OK
A90: Private Exp H | B90: 700 | C90: 999 | D90: -0.2992992993 | E90: Show (30%) | J90: Private Exp H | K90: =VLOOKUP(J90,'Exp_private (MTM)'!$B$1:$AB$33,14,0) -> 700 | L90: =VLOOKUP(J90,'Exp_private (MTM)'!$B$1:$AB$33,17,0) -> 999 | M90: -0.2992992993 | V90: OK | W90: OK | X90: OK
A91: Private Exp I | B91: 50 | C91: 40 | D91: 0.25 | J91: Private Exp I | K91: =VLOOKUP(J91,'Exp_private (MTM)'!$B$1:$AB$33,14,0) -> 50 | L91: =VLOOKUP(J91,'Exp_private (MTM)'!$B$1:$AB$33,17,0) -> 40 | M91: 0.25 | V91: OK | W91: OK | X91: OK
A92: =J94 -> Private Exp J | B92: =K94 -> 1 | C92: =L94 -> 1 | D92: 0 | V92: CHECK | W92: CHECK | X92: OK
I94: U | J94: Private Exp J | K94: =VLOOKUP(J94,'Exp_private (MTM)'!$B$1:$AB$33,14,0) -> 1 | L94: =VLOOKUP(J94,'Exp_private (MTM)'!$B$1:$AB$33,17,0) -> 1 | M94: =IF(L94=0,IF(K94=0,"N/A","100%"),((K94-L94)/L94)) -> 0
I95: U | J95: Private Exp K | K95: =VLOOKUP(J95,'Exp_private (MTM)'!$B$1:$AB$33,14,0) -> 1 | L95: =VLOOKUP(J95,'Exp_private (MTM)'!$B$1:$AB$33,17,0) -> 1 | M95: 0
I96: MV | J96: Private Exp L | K96: =VLOOKUP(J96,'Exp_private (MTM)'!$B$1:$AB$33,14,0) -> 1 | L96: =VLOOKUP(J96,'Exp_private (MTM)'!$B$1:$AB$33,17,0) -> 1 | M96: 0
I97: MV | J97: Private Exp M | K97: =VLOOKUP(J97,'Exp_private (MTM)'!$B$1:$AB$33,14,0) -> 1 | L97: =VLOOKUP(J97,'Exp_private (MTM)'!$B$1:$AB$33,17,0) -> 1 | M97: 0
I98: S | J98: Private Exp N | K98: =VLOOKUP(J98,'Exp_private (MTM)'!$B$1:$AB$33,14,0) -> 1 | L98: =VLOOKUP(J98,'Exp_private (MTM)'!$B$1:$AB$33,17,0) -> 1 | M98: =IF(L98=0,IF(K98=0,"N/A","100%"),((K98-L98)/L98)) -> 0
A99: PP7 | D99: OK
A100: 2022年12月個人收入及支出(續) | AD100: =A99 -> PP7
A101: (HK$’000) | C101: 與上月比較 | E101: +/(-)
C102: 2022年12月 | D102: 2022年11月 | E102: %
A103: Private Exp K | C103: =K103 -> 1 | D103: =L103 -> 1 | E103: =M103 -> 0 | J103: Private Exp K | K103: =VLOOKUP(J103,'Exp_private (MTM)'!$B$1:$AB$33,14,0) -> 1 | L103: =VLOOKUP(J103,'Exp_private (MTM)'!$B$1:$AB$33,17,0) -> 1
A104: =J96 -> Private Exp L | C104: =K104 -> 1 | D104: 1 | E104: 0 | J104: Private Exp L | K104: =VLOOKUP(J104,'Exp_private (MTM)'!$B$1:$AB$33,14,0) -> 1 | L104: =VLOOKUP(J104,'Exp_private (MTM)'!$B$1:$AB$33,17,0) -> 1 | M104: =IF(L104=0,IF(K104=0,"N/A","100%"),((K104-L104)/L104)) -> 0 | N104: DELETE
A105: =J97 -> Private Exp M | C105: 1 | D105: 1 | E105: 0 | F105: (100%) | J105: Private Exp M | K105: =VLOOKUP(J105,'Exp_private (MTM)'!$B$1:$AB$33,14,0) -> 1 | L105: =VLOOKUP(J105,'Exp_private (MTM)'!$B$1:$AB$33,17,0) -> 1 | M105: 0 | N105: DELETE
A106: Others | C106: 2 | D106: 2 | E106: 0 | I106: S | J106: Others | K106: =VLOOKUP(J106,'Exp_private (MTM)'!$B$1:$AB$33,14,0)+SUM(K98:K100) -> 2 | L106: =VLOOKUP(J106,'Exp_private (MTM)'!$B$1:$AB$33,17,0)+SUM(L98:L100) -> 2 | M106: 0 | N106: >100% | V106: =IF(IF(K106="-",0,K106)=IF(C106="-",0,C106),"OK","CHECK") -> OK | W106: =IF(IF(L106="-",0,L106)=IF(D106="-",0,D106),"OK","CHECK") -> OK | X106: =IF(IF(M106="-",0,M106)=IF(E106="-",0,E106),"OK","CHECK") -> OK
C107: =SUM(B83:B93)+SUM(C102:C106) -> 12757 | D107: =SUM(C83:C93)+SUM(D102:D106) -> 3051 | E107: =M107 -> 3.182295082 | F107: ok | K107: =SUM(K83:K92)+SUM(K101:K106) -> 12756 | L107: =SUM(L83:L92)+SUM(L101:L106) -> 3050 | M107: 3.182295082 | V107: CHECK | W107: CHECK | X107: OK
J108: Diff | K108: ='Exp_private (MTM)'!O31-K107 -> 0 | L108: ='Exp_private (MTM)'!R31-L107 -> -2
A109: 註1: | B109: 本月份收入下跌主要因為是1 | K109: U>R>O | L109: X>U>R
A110: 註2: | B110: 本月份收入下跌主要因為是2
A111: 註3: | B111: 本月份收入下跌主要因為是3
A112: 註4: | B112: 本月份收入下跌主要因為是4
A116: PP8>PP9
A117: A%及B%
B118: A% | C118: B%
B119: 12月 | C119: 2022年12月 | D119: 2021年12月 | G119: 2021年11月 | H119: 2021年12月 | O119: NOV'22 | Q119: 2022-08-01 | R119: SEP'22 | S119: OCT'22
A120: 總體 | B120: 0.02 | C120: =O124 -> 0.853304138 | D120: 0.88 | E120: ok | G120: 0.88 | L120: B | M120: 742601 | N120: 631025 | O120: 0.849749731 | P120: E29 | Q120: 0.8661165283 | R120: 0.8704459057 | S120: 0.849481754
A121: A | B121: 0.02 | C121: =INDEX($O$120:$O$124,MATCH(F121,$L$120:$L$124,0)) -> 0.9953781163 | D121: 0.99 | E121: ok | F121: A | G121: 0.99 | H121: 0.99 | L121: A | M121: 108181 | N121: 107681 | O121: 0.9953781163 | P121: E30 | Q121: 0.9879831024 | R121: 0.9953781163 | S121: 0.9953781163
A122: B | B122: 0.04 | C122: 0.849749731 | D122: 0.88 | E122: ok | F122: B | G122: 0.89 | L122: C | M122: 171124 | N122: 163248 | O122: 0.9539748954 | P122: E31 | Q122: 0.9697353966 | R122: 0.9531041818 | S122: 0.9390091396
A123: C | B123: 0.03 | C123: 0.9539748954 | D123: 0.96 | E123: ok | F123: C | G123: 0.96 | L123: D | M123: 96994 | N123: 52808 | O123: 0.5444460482 | P123: E32 | Q123: 0.4666680413 | R123: 0.5444460482 | S123: 0.5444460482
A124: D | B124: 0.02 | C124: =INDEX($O$120:$O$124,MATCH(F124,$L$120:$L$124,0)) -> 0.5444460482 | D124: 0.59 | E124: ok | F124: D | G124: 0.59 | M124: 1118900 | N124: 954762 | O124: 0.853304138 | Q124: 0.8591196711 | R124: 0.8669067834 | S124: 0.8508374296
A125: E | B125: 0.02 | C125: =O125 -> 0.97 | D125: 0.94 | G125: 0.97 | L125: E | O125: 0.97
J396: PP9 | M396: Add | N396: Add
J397: 租金及按揭
J398: 序號 | K398: 物業 | L398: 銀行 | M398: 最後 供款日 | N398: 利率 | O398: 每月 | P398: 每月 | Q398: =$C$5 -> 12月 | R398: =$C$5 -> 12月
O399: 租金 | P399: 供款 | Q399: 餘額/ | R399: 按揭貨款
O400: HK$’000 | P400: HK$’000 | Q400: (差額) | R400: 餘額
Q401: HK$’000 | R401: HK$’000
J402: 1 | K402: A | L402: 銀行 | M402: =N409 -> 2042-12-31 | N402: 0.0600577 | O402: 1000 | P402: 500 | Q402: 500 | R402: 1000
J404: 2 | K404: B | L404: 銀行 | M404: =N410 -> 2023-06-01 | N404: 0.03375 | O404: 125 | P404: 120 | Q404: 5 | R404: 2000
J406: 3 | K406: C | L406: 銀行 | M406: =N411 -> 2023-06-01 | N406: 0.03125 | O406: 200 | P406: 100 | Q406: 100 | R406: 3000
J407: 4 | K407: D | L407: 銀行 | M407: =N412 -> 2032-02-29 | N407: 0.0303 | O407: 824 | P407: 420 | Q407: 404 | R407: 4000
N409: 2042-12-31
N410: 2023-06-01
N411: 2023-06-01
N412: 2032-02-29

Sheet Exp_Co (YTD)
A1: 2022年12月份營運支出 - 公司
A2: 與上年比較
R4: 4/2022-3/2023 | AG4: 4/2021-3/2022
R5: YTD | AG5: YTD
E6: 2022-04-01 | F6: 2022-05-01 | G6: 2022-06-01 | H6: 2022-07-01 | I6: 2022-08-01 | J6: 2022-09-01 | K6: 2022-10-01 | L6: 2022-11-01 | M6: 2022-12-01 | N6: 2023-01-01 | O6: 2023-02-01 | P6: 2023-03-01 | R6: 2022-12-01 | T6: 2021-04-01 | U6: 2021-05-01 | V6: 2021-06-01 | W6: 2021-07-01 | X6: 2021-08-01 | Y6: 2021-09-01 | Z6: 2021-10-01 | AA6: 2021-11-01 | AB6: 2021-12-01 | AC6: 2022-01-01 | AD6: 2022-02-01 | AE6: 2022-03-01 | AG6: 2021-12-01 | AJ6: 增/(減) | AL6: 附錄
C7: 附註 | R7: HK$'000 | AG7: HK$'000 | AJ7: HK$'000 | AK7: %
B8: Income A | E8: 1000 | F8: 1000 | G8: 1000 | H8: 1000 | I8: 1000 | J8: 1000 | K8: 1000 | L8: 990000 | M8: 900000 | R8: =ROUND(SUM(E8:Q8)/1000,0) -> 1897 | T8: 1000 | U8: 1000 | V8: 1000 | W8: 1000 | X8: 1000 | Y8: 1000 | Z8: 1000 | AA8: 1000 | AB8: 1000 | AC8: 1000 | AD8: 1000 | AE8: 1000 | AG8: =ROUND(SUM(T8:AB8)/1000,0) -> 9 | AJ8: =R8-AG8 -> 1888 | AK8: =IF(AG8=0,IF(R8=0,"N/A","100%"),AJ8/AG8) -> 209.7777778
B9: Income B | E9: 1000 | F9: 1000 | G9: 1000 | H9: 1000 | I9: 1000 | J9: 1000 | K9: 1000 | L9: 1100000 | M9: 1000000 | R9: =ROUND(SUM(E9:Q9)/1000,0) -> 2107 | T9: 1000 | U9: 1000 | V9: 1000 | W9: 1000 | X9: 1000 | Y9: 1000 | Z9: 1000 | AA9: 1000 | AB9: 1000 | AC9: 1000 | AD9: 1000 | AE9: 1000 | AG9: =ROUND(SUM(T9:AB9)/1000,0) -> 9 | AJ9: =R9-AG9 -> 2098 | AK9: =IF(AG9=0,IF(R9=0,"N/A","100%"),AJ9/AG9) -> 233.1111111
B10: Income C | E10: 1000 | F10: 1000 | G10: 1000 | H10: 1000 | I10: 1000 | J10: 1000 | K10: 1000 | L10: 1000 | M10: 1000 | R10: =ROUND(SUM(E10:Q10)/1000,0) -> 9 | T10: 1000 | U10: 1000 | V10: 1000 | W10: 1000 | X10: 1000 | Y10: 1000 | Z10: 1000 | AA10: 1000 | AB10: 1000 | AC10: 1000 | AD10: 1000 | AE10: 1000 | AG10: =ROUND(SUM(T10:AB10)/1000,0) -> 9 | AJ10: 0 | AK10: 0
B11: Income D | E11: 1000 | F11: 1000 | G11: 1000 | H11: 1000 | I11: 1000 | J11: 1000 | K11: 1000 | L11: 1000 | M11: 1000 | R11: =ROUND(SUM(E11:Q11)/1000,0) -> 9 | T11: 1000 | U11: 1000 | V11: 1000 | W11: 1000 | X11: 1000 | Y11: 1000 | Z11: 1000 | AA11: 1000 | AB11: 1000 | AC11: 1000 | AD11: 1000 | AE11: 1000 | AG11: =ROUND(SUM(T11:AB11)/1000,0) -> 9 | AJ11: 0 | AK11: 0
B12: Income E | E12: 1000 | F12: 1000 | G12: 1000 | H12: 1000 | I12: 1000 | J12: 1000 | K12: 1000 | L12: 1000 | M12: 1000 | R12: =ROUND(SUM(E12:Q12)/1000,0) -> 9 | T12: 1000 | U12: 1000 | V12: 1000 | W12: 1000 | X12: 1000 | Y12: 1000 | Z12: 1000 | AA12: 1000 | AB12: 1000 | AC12: 1000 | AD12: 1000 | AE12: 1000 | AG12: =ROUND(SUM(T12:AB12)/1000,0) -> 9 | AJ12: 0 | AK12: 0
B13: 收入 | C13: 1 | E13: =SUM(E8:E12) -> 5000 | F13: 5000 | G13: 5000 | H13: 5000 | I13: 5000 | J13: 5000 | K13: =SUM(K8:K12) -> 5000 | L13: 2093000 | M13: =SUM(M8:M12) -> 1903000 | N13: 0 | O13: 0 | P13: 0 | R13: =SUM(R8:R12) -> 4031 | T13: =SUM(T8:T12) -> 5000 | U13: 5000 | V13: 5000 | W13: 5000 | X13: 5000 | Y13: 5000 | Z13: 5000 | AA13: 5000 | AB13: 5000 | AC13: 5000 | AD13: 5000 | AE13: 5000 | AG13: =SUM(AG8:AG12) -> 45 | AJ13: 3986 | AK13: 88.57777778
B15: Income A1 | E15: 1000 | F15: 1000 | G15: 1000 | H15: 1000 | I15: 1000 | J15: 1000 | K15: 1000 | L15: 1000 | M15: 1000 | R15: =ROUND(SUM(E15:Q15)/1000,0) -> 9 | T15: 0 | U15: 1000 | V15: 1000 | W15: 1000 | X15: 1000 | Y15: 1000 | Z15: 1000 | AA15: 1000 | AB15: 1000 | AC15: 1000 | AD15: 1000 | AE15: 1000 | AG15: =ROUND(SUM(T15:AB15)/1000,0) -> 8 | AJ15: =R15-AG15 -> 1 | AK15: =IF(AG15=0,IF(R15=0,"N/A","100%"),AJ15/AG15) -> 0.125
B16: Income B1 | E16: 1000 | F16: 1000 | G16: 1000 | H16: 1000 | I16: 1000 | J16: 1000 | K16: 1000 | L16: 1000 | M16: 1000 | R16: =ROUND(SUM(E16:Q16)/1000,0) -> 9 | T16: 1000 | U16: 1000 | V16: 1000 | W16: 1000 | X16: 1000 | Y16: 1000 | Z16: 1000 | AA16: 1000 | AB16: 1000 | AC16: 1000 | AD16: 1000 | AE16: 1000 | AG16: =ROUND(SUM(T16:AB16)/1000,0) -> 9 | AJ16: =R16-AG16 -> 0 | AK16: =IF(AG16=0,IF(R16=0,"N/A","100%"),AJ16/AG16) -> 0
B17: 其他收入 | C17: 2 | E17: =SUM(E15:E16) -> 2000 | F17: 2000 | G17: 2000 | H17: 2000 | I17: 2000 | J17: 2000 | K17: =SUM(K15:K16) -> 2000 | L17: 2000 | M17: =SUM(M15:M16) -> 2000 | N17: 0 | O17: 0 | P17: 0 | R17: =SUM(R15:R16) -> 18 | T17: =SUM(T15:T16) -> 1000 | U17: 2000 | V17: 2000 | W17: 2000 | X17: 2000 | Y17: 2000 | Z17: 2000 | AA17: 2000 | AB17: 2000 | AC17: 2000 | AD17: 2000 | AE17: 2000 | AG17: =ROUND(SUM(T17:AB17)/1000,0) -> 17 | AJ17: 1 | AK17: 0.05882352941
E18: =SUM(E13,E17) -> 7000 | F18: =SUM(F13,F17) -> 7000 | G18: 7000 | H18: 7000 | I18: 7000 | J18: 7000 | K18: =SUM(K13,K17) -> 7000 | L18: 2095000 | M18: =SUM(M13,M17) -> 1905000 | N18: 0 | O18: 0 | P18: 0 | R18: =SUM(R17,R13) -> 4049 | T18: =SUM(T13,T17) -> 6000 | U18: =SUM(U13,U17) -> 7000 | V18: 7000 | W18: 7000 | X18: 7000 | Y18: 7000 | Z18: 7000 | AA18: 7000 | AB18: 7000 | AC18: 7000 | AD18: 7000 | AE18: 7000 | AG18: =SUM(AG17,AG13) -> 62 | AJ18: 3987 | AK18: 64.30645161
B20: D1 | E20: 1000 | F20: 1000 | G20: 1000 | H20: 1000 | I20: 1000 | J20: 1000 | K20: 1000 | L20: 1000 | M20: 1000 | R20: =ROUND(SUM(E20:Q20)/1000,0) -> 9 | T20: 1000 | U20: 1000 | V20: 1000 | W20: 0 | X20: 0 | Y20: 0 | Z20: 0 | AA20: 0 | AB20: 0 | AC20: 0 | AD20: 0 | AE20: 0 | AG20: =ROUND(SUM(T20:V20)/1000,0) -> 3 | AJ20: =R20-AG20 -> 6 | AK20: =IF(AG20=0,IF(R20=0,"N/A","100%"),AJ20/AG20) -> 2
B21: E1 | E21: 1000 | F21: 1000 | G21: 1000 | H21: 1000 | I21: 1000 | J21: 1000 | K21: 1000 | L21: 1000 | M21: 1000 | R21: =ROUND(SUM(E21:Q21)/1000,0) -> 9 | T21: 1000 | U21: 1000 | V21: 1000 | W21: 1000 | X21: 1000 | Y21: 1000 | Z21: 1000 | AA21: 1000 | AB21: 1000 | AC21: 1000 | AD21: 1000 | AE21: 1000 | AG21: =ROUND(SUM(T21:AB21)/1000,0) -> 9 | AJ21: =R21-AG21 -> 0 | AK21: =IF(AG21=0,IF(R21=0,"N/A","100%"),AJ21/AG21) -> 0
B22: F1 | E22: 1000 | F22: 1000 | G22: 1000 | H22: 1000 | I22: 1000 | J22: 1000 | K22: 1000 | L22: 1000 | M22: 1000 | R22: =ROUND(SUM(E22:Q22)/1000,0) -> 9 | T22: 1000 | U22: 1000 | V22: 1000 | W22: 1000 | X22: 1000 | Y22: 1000 | Z22: 1000 | AA22: 1000 | AB22: 1000 | AC22: 1000 | AD22: 1000 | AE22: 1000 | AG22: =ROUND(SUM(T22:AB22)/1000,0) -> 9 | AJ22: 0 | AK22: 0
E23: =SUM(E20:E22) -> 3000 | F23: =SUM(F20:F22) -> 3000 | G23: 3000 | H23: 3000 | I23: 3000 | J23: 3000 | K23: =SUM(K20:K22) -> 3000 | L23: 3000 | M23: =SUM(M20:M22) -> 3000 | N23: 0 | O23: 0 | P23: 0 | R23: =SUM(R20:R22) -> 27 | T23: =SUM(T20:T22) -> 3000 | U23: =SUM(U20:U22) -> 3000 | V23: 3000 | W23: 2000 | X23: 2000 | Y23: 2000 | Z23: 2000 | AA23: 2000 | AB23: 2000 | AC23: 2000 | AD23: 2000 | AE23: 2000 | AG23: =SUM(AG20:AG22) -> 21 | AJ23: 6 | AK23: 0.2857142857
E25: =SUM(E18,E23) -> 10000 | F25: =SUM(F18,F23) -> 10000 | G25: 10000 | H25: 10000 | I25: 10000 | J25: 10000 | K25: =SUM(K18,K23) -> 10000 | L25: 2098000 | M25: =SUM(M18,M23) -> 1908000 | N25: 0 | O25: 0 | P25: 0 | R25: =SUM(R18,R23) -> 4076 | T25: =SUM(T18,T23) -> 9000 | U25: =SUM(U18,U23) -> 10000 | V25: 10000 | W25: 9000 | X25: 9000 | Y25: 9000 | Z25: 9000 | AA25: 9000 | AB25: 9000 | AC25: 9000 | AD25: 9000 | AE25: 9000 | AG25: =SUM(AG18,AG23) -> 83 | AJ25: 3993 | AK25: 48.10843373
B27: Exp A | C27: 3 | E27: 0 | F27: 0 | G27: 0 | H27: 0 | I27: 0 | J27: 0 | K27: 0 | L27: 0 | M27: 0 | R27: =ROUND(SUM(E27:Q27)/1000,0) -> 0 | T27: 1000 | U27: 1000 | V27: 1000 | W27: 1000 | X27: 1000 | Y27: 1000 | Z27: 1000 | AA27: 1000 | AB27: 1000 | AC27: 1000 | AD27: 1000 | AE27: 1000 | AG27: =ROUND(SUM(T27:AB27)/1000,0) -> 9 | AJ27: =R27-AG27 -> -9 | AK27: =IF(AG27=0,IF(R27=0,"N/A","100%"),AJ27/AG27) -> -1
B28: Exp B | E28: 1000 | F28: 1000 | G28: 1000 | H28: 1000 | I28: 1000 | J28: 1000 | K28: 1000 | L28: 1000 | M28: 0 | R28: 8 | T28: 1000 | U28: 1000 | V28: 1000 | W28: 1000 | X28: 1000 | Y28: 1000 | Z28: 1000 | AA28: 1000 | AB28: 1000 | AC28: 1000 | AD28: 1000 | AE28: 1000 | AG28: =ROUND(SUM(T28:AB28)/1000,0) -> 9 | AJ28: =R28-AG28 -> -1 | AK28: =IF(AG28=0,IF(R28=0,"N/A","100%"),AJ28/AG28) -> -0.1111111111
B29: Exp C | E29: 1000 | F29: 1000 | G29: 1000 | H29: 1000 | I29: 1000 | J29: 1000 | K29: 1000 | L29: 9899999.86 | M29: 8560456 | R29: 18467 | T29: 1000 | U29: 1000 | V29: 1000 | W29: 1000 | X29: 1000 | Y29: 1000 | Z29: 1000 | AA29: 1000 | AB29: 1000 | AC29: 1000 | AD29: 1000 | AE29: 1000 | AG29: 9 | AJ29: 18458 | AK29: 2050.888889
B30: Exp D | E30: 1000 | F30: 1000 | G30: 1000 | H30: 1000 | I30: 1000 | J30: 1000 | K30: 1000 | L30: 1000 | M30: 1000 | R30: 9 | T30: 1000 | U30: 1000 | V30: 1000 | W30: 1000 | X30: 1000 | Y30: 1000 | Z30: 1000 | AA30: 1000 | AB30: 1000 | AC30: 1000 | AD30: 1000 | AE30: 1000 | AG30: 9 | AJ30: 0 | AK30: 0
B31: Exp E | E31: 1000 | F31: 1000 | G31: 1000 | H31: 1000 | I31: 1000 | J31: 1000 | K31: 1000 | L31: 1000 | M31: 100000 | R31: 108 | T31: 1000 | U31: 1000 | V31: 1000 | W31: 1000 | X31: 1000 | Y31: 1000 | Z31: 1000 | AA31: 1000 | AB31: 1000 | AC31: 1000 | AD31: 1000 | AE31: 1000 | AG31: 9 | AJ31: 99 | AK31: 11
B32: Exp F | E32: 1000 | F32: 1000 | G32: 1000 | H32: 1000 | I32: 1000 | J32: 1000 | K32: 1000 | L32: 1000 | M32: 2000 | R32: 10 | T32: 1000 | U32: 1000 | V32: 1000 | W32: 1000 | X32: 1000 | Y32: 1000 | Z32: 1000 | AA32: 1000 | AB32: 1000 | AC32: 1000 | AD32: 1000 | AE32: 1000 | AG32: 9 | AJ32: 1 | AK32: 0.1111111111
B33: Exp G | E33: 1000 | F33: 1000 | G33: 1000 | H33: 1000 | I33: 1000 | J33: 1000 | K33: 1000 | L33: 1000000 | M33: 2000000 | R33: 3007 | T33: 1000 | U33: 1000 | V33: 1000 | W33: 1000 | X33: 1000 | Y33: 1000 | Z33: 1000 | AA33: 1000 | AB33: 1000 | AC33: 1000 | AD33: 1000 | AE33: 1000 | AG33: 9 | AJ33: 2998 | AK33: 333.1111111
B34: Exp H | E34: 1000 | F34: 1000 | G34: 1000 | H34: 1000 | I34: 1000 | J34: 1000 | K34: 1000 | L34: 1000 | M34: 1000 | R34: 9 | T34: 1000 | U34: 1000 | V34: 1000 | W34: 1000 | X34: 1000 | Y34: 1000 | Z34: 1000 | AA34: 1000 | AB34: 1000 | AC34: 1000 | AD34: 1000 | AE34: 1000 | AG34: 9 | AJ34: 0 | AK34: 0
B35: Exp I | E35: 1000 | F35: 1000 | G35: 1000 | H35: 1000 | I35: 1000 | J35: 1000 | K35: 1000 | L35: 1000 | M35: 1000 | R35: 9 | T35: 1000 | U35: 1000 | V35: 1000 | W35: 1000 | X35: 1000 | Y35: 1000 | Z35: 1000 | AA35: 1000 | AB35: 1000 | AC35: 1000 | AD35: 1000 | AE35: 1000 | AG35: 9 | AJ35: 0 | AK35: 0
B36: Exp J | E36: 1000 | F36: 1000 | G36: 1000 | H36: 1000 | I36: 1000 | J36: 1000 | K36: 1000 | L36: 1000 | M36: 1000 | R36: 9 | T36: 1000 | U36: 1000 | V36: 1000 | W36: 1000 | X36: 1000 | Y36: 1000 | Z36: 1000 | AA36: 1000 | AB36: 1000 | AC36: 1000 | AD36: 1000 | AE36: 1000 | AG36: 9 | AJ36: 0 | AK36: 0
B37: Exp K | E37: 1000 | F37: 1000 | G37: 1000 | H37: 1000 | I37: 1000 | J37: 1000 | K37: 1000 | L37: 1000 | M37: 1000 | R37: 9 | T37: 1000 | U37: 1000 | V37: 1000 | W37: 1000 | X37: 1000 | Y37: 1000 | Z37: 1000 | AA37: 1000 | AB37: 1000 | AC37: 1000 | AD37: 1000 | AE37: 1000 | AG37: 9 | AJ37: 0 | AK37: 0
B38: Others | E38: 1000 | F38: 1000 | G38: 1000 | H38: 1000 | I38: 1000 | J38: 1000 | K38: 1000 | L38: 1000 | M38: 1000 | R38: 9 | T38: 1000 | U38: 1000 | V38: 1000 | W38: 1000 | X38: 1000 | Y38: 1000 | Z38: 1000 | AA38: 1000 | AB38: 1000 | AC38: 1000 | AD38: 1000 | AE38: 1000 | AG38: 9 | AJ38: 0 | AK38: 0 | AL38: A3-1
B39: Total Exp | E39: =SUM(E27:E38) -> 11000 | F39: 11000 | G39: 11000 | H39: 11000 | I39: 11000 | J39: 11000 | K39: 11000 | L39: 10908999.86 | M39: 10668456 | N39: 0 | O39: 0 | P39: 0 | Q39: 0 | R39: 21654 | T39: =SUM(T27:T38) -> 12000 | U39: 12000 | V39: 12000 | W39: 12000 | X39: 12000 | Y39: 12000 | Z39: 12000 | AA39: 12000 | AB39: 12000 | AC39: 12000 | AD39: 12000 | AE39: 12000 | AF39: 0 | AG39: 108 | AJ39: 21546 | AK39: 199.5 | AL39: A3
B41: 營運盈餘 | E41: =E25-E39 -> -1000 | F41: -1000 | G41: -1000 | H41: -1000 | I41: -1000 | J41: -1000 | K41: -1000 | L41: -8810999.86 | M41: -8760456 | N41: 0 | O41: 0 | P41: 0 | R41: =R25-R39 -> -17578 | T41: =T25-T39 -> -3000 | U41: -2000 | V41: -2000 | W41: -3000 | X41: -3000 | Y41: -3000 | Z41: -3000 | AA41: -3000 | AB41: -3000 | AC41: -3000 | AD41: -3000 | AE41: -3000 | AG41: =AG25-AG39 -> -25 | AJ41: -17553 | AK41: 702.12
B43: 還本金 | E43: 1000 | F43: 1000 | G43: 1000 | H43: 1000 | I43: 1000 | J43: 1000 | K43: 1000 | L43: 123456789 | M43: 100000000 | R43: =ROUND(SUM(E43:Q43)/1000,0) -> 223464 | T43: 1000 | U43: 1000 | V43: 1000 | W43: 1000 | X43: 1000 | Y43: 1000 | Z43: 1000 | AA43: 1000 | AB43: 1000 | AC43: 1000 | AD43: 1000 | AE43: 1000 | AG43: =ROUND(SUM(T43:AB43)/1000,0) -> 9 | AJ43: 223455 | AK43: 24828.33333
B45: 利得稅支出 | E45: 0 | F45: 0 | G45: 0 | H45: 0 | I45: 0 | J45: 0 | K45: 0 | L45: 0 | M45: 0 | N45: 0 | O45: 0 | P45: 0 | Q45: 0 | R45: 0 | T45: 0 | U45: 0 | V45: 0 | W45: 0 | X45: 0 | Y45: 0 | Z45: 0 | AA45: 0 | AB45: 0 | AC45: 0 | AD45: 0 | AE45: 0 | AG45: =ROUND(SUM(T45:AF45)/1000,0) -> 0 | AJ45: =AG45-#REF! ->  | AK45: =IF(#REF!=0,IF(AG45=0,"N/A","100%"),AJ45/#REF!) -> 

Sheet Exp_private (YTD)
A1: 2022年12月份收入及付款記錄 - 個人
A2: 與上年比較
R4: YTD | AG4: YTD
E5: 2022-04-01 | F5: 2022-05-01 | G5: 2022-06-01 | H5: 2022-07-01 | I5: 2022-08-01 | J5: 2022-09-01 | K5: 2022-10-01 | L5: 2022-11-01 | M5: 2022-12-01 | N5: 2023-01-01 | O5: 2023-02-01 | P5: 2023-03-01 | R5: 2022-12-01 | T5: 2021-04-01 | U5: 2021-05-01 | V5: 2021-06-01 | W5: 2021-07-01 | X5: 2021-08-01 | Y5: 2021-09-01 | Z5: 2021-10-01 | AA5: 2021-11-01 | AB5: 2021-12-01 | AC5: 2022-01-01 | AD5: 2022-02-01 | AE5: 2022-03-01 | AG5: 2021-12-01 | AJ5: 增/(減)
C6: 附註 | R6: HK$'000 | AG6: HK$'000 | AJ6: HK$'000 | AK6: %
B8: Private income A | E8: 1000 | F8: 1000 | G8: 1000 | H8: 1000 | I8: 1000 | J8: 1000 | K8: 1000 | L8: 1200000 | M8: 990000 | R8: =ROUND(SUM(E8:Q8)/1000,0) -> 2197 | T8: 1000 | U8: 1000 | V8: 1000 | W8: 1000 | X8: 1000 | Y8: 1000 | Z8: 1000 | AA8: 1000 | AB8: 1000 | AC8: 1000 | AD8: 1000 | AE8: 1000 | AG8: =ROUND(SUM(T8:AB8)/1000,0) -> 9 | AJ8: =R8-AG8 -> 2188 | AK8: =IF(AG8=0,IF(R8=0,"N/A","100%"),AJ8/AG8) -> 243.1111111
B9: Private income B | E9: 1000 | F9: 1000 | G9: 1000 | H9: 1000 | I9: 1000 | J9: 1000 | K9: 1000 | L9: 1000 | M9: 1000 | R9: 9 | T9: 1000 | U9: 1000 | V9: 1000 | W9: 1000 | X9: 1000 | Y9: 1000 | Z9: 1000 | AA9: 1000 | AB9: 1000 | AC9: 1000 | AD9: 1000 | AE9: 1000 | AG9: =ROUND(SUM(T9:AB9)/1000,0) -> 9 | AJ9: =R9-AG9 -> 0 | AK9: =IF(AG9=0,IF(R9=0,"N/A","100%"),AJ9/AG9) -> 0
B10: Private income C | E10: 1000 | F10: 1000 | G10: 1000 | H10: 1000 | I10: 1000 | J10: 1000 | K10: 1000 | L10: 1000 | M10: 1000 | R10: 9 | T10: 1000 | U10: 1000 | V10: 1000 | W10: 1000 | X10: 1000 | Y10: 1000 | Z10: 1000 | AA10: 1000 | AB10: 1000 | AC10: 1000 | AD10: 1000 | AE10: 1000 | AG10: =ROUND(SUM(T10:AB10)/1000,0) -> 9 | AJ10: 0 | AK10: 0
B11: Private income D | E11: 0 | F11: 0 | G11: 0 | H11: 0 | R11: 0 | T11: 0 | U11: 0 | V11: 0 | W11: 0 | X11: 0 | Y11: 0 | Z11: 0 | AA11: 0 | AB11: 0 | AC11: 0 | AD11: 0 | AE11: 0 | AG11: =ROUND(SUM(T11:AB11)/1000,0) -> 0 | AJ11: 0 | AK11: N/A
B12: Private income E | E12: 0 | F12: 0 | G12: 0 | H12: 0 | R12: 0 | T12: 0 | U12: 0 | V12: 0 | W12: 0 | X12: 0 | Y12: 0 | Z12: 0 | AA12: 0 | AB12: 0 | AC12: 0 | AD12: 0 | AE12: 0 | AG12: =ROUND(SUM(T12:AB12)/1000,0) -> 0 | AJ12: 0 | AK12: N/A
B13: Private income F | E13: 0 | F13: 0 | G13: 0 | H13: 0 | R13: 0 | T13: 0 | U13: 0 | V13: 0 | W13: 0 | X13: 0 | Y13: 0 | Z13: 0 | AA13: 0 | AB13: 0 | AC13: 0 | AD13: 0 | AE13: 0 | AG13: =ROUND(SUM(T13:W13)/1000,0) -> 0 | AJ13: 0 | AK13: N/A
B14: Private income | E14: =SUM(E8:E13) -> 3000 | F14: 3000 | G14: 3000 | H14: 3000 | I14: 3000 | J14: 3000 | K14: 3000 | L14: 1202000 | M14: 992000 | N14: 0 | O14: 0 | P14: 0 | R14: =SUM(R8:R13) -> 2215 | T14: =SUM(T8:T13) -> 3000 | U14: 3000 | V14: 3000 | W14: 3000 | X14: 3000 | Y14: 3000 | Z14: 3000 | AA14: 3000 | AB14: 3000 | AC14: 3000 | AD14: 3000 | AE14: 3000 | AG14: =SUM(AG8:AG13) -> 27 | AJ14: 2188 | AK14: 81.03703704
B16: Private Exp A | E16: 1000 | F16: 1000 | G16: 1000 | H16: 1000 | I16: 1000 | J16: 1000 | K16: 1000 | L16: 1000000 | M16: 996000 | R16: =ROUND(SUM(E16:Q16)/1000,0) -> 2003 | T16: 1000 | U16: 1000 | V16: 1000 | W16: 1000 | X16: 1000 | Y16: 1000 | Z16: 1000 | AA16: 1000 | AB16: 1000 | AC16: 1000 | AD16: 1000 | AE16: 1000 | AG16: =ROUND(SUM(T16:AB16)/1000,0) -> 9 | AJ16: =R16-AG16 -> 1994 | AK16: =IF(AG16=0,IF(R16=0,"N/A","100%"),AJ16/AG16) -> 221.5555556
B17: Private Exp B | E17: 1000 | F17: 1000 | G17: 1000 | H17: 1000 | I17: 1000 | J17: 1000 | K17: 1000 | L17: 1000000 | M17: 11000000 | R17: 12007 | T17: 1000 | U17: 1000 | V17: 1000 | W17: 1000 | X17: 1000 | Y17: 1000 | Z17: 1000 | AA17: 1000 | AB17: 1000 | AC17: 1000 | AD17: 1000 | AE17: 1000 | AG17: 9 | AJ17: 11998 | AK17: 1333.111111
B18: Private Exp C | C18: 1 | E18: 1000 | F18: 0 | G18: 0 | H18: 1000 | I18: 1000 | J18: 1000 | K18: 1000 | L18: 990 | M18: 2000 | R18: 8 | T18: 1000 | U18: 1000 | V18: 1000 | W18: 1000 | X18: 1000 | Y18: 1000 | Z18: 1000 | AA18: 1000 | AB18: 1000 | AC18: 1000 | AD18: 1000 | AE18: 1000 | AG18: 9 | AJ18: -1 | AK18: -0.1111111111
B19: Private Exp D | E19: 1000 | F19: 1000 | G19: 1000 | H19: 1000 | I19: 1000 | J19: 1000 | K19: 1000 | L19: 1000 | M19: 990 | R19: 9 | T19: 1000 | U19: 1000 | V19: 1000 | W19: 1000 | X19: 1000 | Y19: 1000 | Z19: 1000 | AA19: 1000 | AB19: 1000 | AC19: 1000 | AD19: 1000 | AE19: 1000 | AG19: 9 | AJ19: 0 | AK19: 0
B20: Private Exp E | E20: 1000 | F20: 1000 | G20: 1000 | H20: 1000 | I20: 1000 | J20: 1000 | K20: 1000 | L20: 1000 | M20: 0 | R20: 8 | T20: 1000 | U20: 1000 | V20: 1000 | W20: 1000 | X20: 1000 | Y20: 1000 | Z20: 1000 | AA20: 1000 | AB20: 1000 | AC20: 1000 | AD20: 1000 | AE20: 1000 | AG20: 9 | AJ20: -1 | AK20: -0.1111111111
B21: Private Exp F | C21: 2 | E21: 1000 | F21: 1000 | G21: 1000 | H21: 1000 | I21: 1000 | J21: 1000 | K21: 1000 | L21: 0 | M21: 0 | R21: 7 | T21: 1000 | U21: 1000 | V21: 1000 | W21: 1000 | X21: 1000 | Y21: 1000 | Z21: 1000 | AA21: 1000 | AB21: 1000 | AC21: 1000 | AD21: 1000 | AE21: 1000 | AG21: =ROUND(SUM(T21:AB21)/1000,0) -> 9 | AJ21: =R21-AG21 -> -2 | AK21: =IF(AG21=0,IF(R21=0,"N/A","100%"),AJ21/AG21) -> -0.2222222222
B22: Private Exp G | C22: 2 | E22: 1000 | F22: 1000 | G22: 1000 | H22: 1000 | I22: 1000 | J22: 1000 | K22: 1000 | L22: 0 | M22: 1000 | R22: 8 | T22: 1000 | U22: 1000 | V22: 1000 | W22: 1000 | X22: 1000 | Y22: 1000 | Z22: 1000 | AA22: 1000 | AB22: 1000 | AC22: 1000 | AD22: 1000 | AE22: 1000 | AG22: 9 | AJ22: -1 | AK22: -0.1111111111
B23: Private Exp H | C23: 2 | E23: 1000 | F23: 1000 | G23: 1000 | H23: 1000 | I23: 1000 | J23: 1000 | K23: 1000 | L23: 999000 | M23: 700000 | R23: 1706 | T23: 1000 | U23: 1000 | V23: 1000 | W23: 1000 | X23: 1000 | Y23: 1000 | Z23: 1000 | AA23: 1000 | AB23: 1000 | AC23: 1000 | AD23: 1000 | AE23: 1000 | AG23: 9 | AJ23: 1697 | AK23: 188.5555556
B24: Private Exp I | C24: 2 | E24: 1000 | F24: 1000 | G24: 1000 | H24: 1000 | I24: 1000 | J24: 1000 | K24: 1000 | L24: 40000 | M24: 50000 | R24: 97 | T24: 1000 | U24: 1000 | V24: 1000 | W24: 1000 | X24: 1000 | Y24: 1000 | Z24: 1000 | AA24: 1000 | AB24: 1000 | AC24: 1000 | AD24: 1000 | AE24: 1000 | AG24: 9 | AJ24: 88 | AK24: 9.777777778
B25: Private Exp J | C25: 2 | E25: 1000 | F25: 1000 | G25: 1000 | H25: 1000 | I25: 1000 | J25: 1000 | K25: 1000 | L25: 1000 | M25: 1000 | R25: 9 | T25: 0 | U25: 0 | V25: 0 | W25: 0 | X25: 0 | Y25: 0 | Z25: 0 | AA25: 0 | AB25: 0 | AC25: 0 | AD25: 0 | AE25: 0 | AG25: 0 | AJ25: 9 | AK25: 100%
B26: Private Exp K | C26: 2 | E26: 1000 | F26: 1000 | G26: 1000 | H26: 1000 | I26: 1000 | J26: 1000 | K26: 1000 | L26: 1000 | M26: 1000 | R26: 9 | T26: 1000 | U26: 1000 | V26: 1000 | W26: 1000 | X26: 1000 | Y26: 1000 | Z26: 1000 | AA26: 1000 | AB26: 1000 | AC26: 1000 | AD26: 1000 | AE26: 1000 | AG26: 9 | AJ26: 0 | AK26: 0
B27: Private Exp L | C27: 2 | E27: 1000 | F27: 1000 | G27: 1000 | H27: 1000 | I27: 1000 | J27: 1000 | K27: 1000 | L27: 1000 | M27: 1000 | R27: 9 | T27: 1000 | U27: 1000 | V27: 1000 | W27: 1000 | X27: 1000 | Y27: 1000 | Z27: 1000 | AA27: 1000 | AB27: 1000 | AC27: 1000 | AD27: 1000 | AE27: 1000 | AG27: 9 | AJ27: 0 | AK27: 0
B28: Private Exp M | C28: 2 | E28: 1000 | F28: 1000 | G28: 1000 | H28: 1000 | I28: 1000 | J28: 1000 | K28: 1000 | L28: 1000 | M28: 1000 | R28: 9 | T28: 1000 | U28: 1000 | V28: 1000 | W28: 1000 | X28: 1000 | Y28: 1000 | Z28: 1000 | AA28: 1000 | AB28: 1000 | AC28: 1000 | AD28: 1000 | AE28: 1000 | AG28: 9 | AJ28: 0 | AK28: 0
B29: Private Exp N | C29: 2 | E29: 1000 | F29: 1000 | G29: 1000 | H29: 1000 | I29: 1000 | J29: 1000 | K29: 1000 | L29: 1000 | M29: 1000 | R29: 9 | T29: 1000 | U29: 1000 | V29: 1000 | W29: 1000 | X29: 1000 | Y29: 1000 | Z29: 1000 | AA29: 1000 | AB29: 1000 | AC29: 1000 | AD29: 1000 | AE29: 1000 | AG29: 9 | AJ29: 0 | AK29: 0
B30: Others | C30: 2 | E30: 1000 | F30: 1000 | G30: 1000 | H30: 1000 | I30: 1000 | J30: 1000 | K30: 1000 | L30: 1000 | M30: 1000 | R30: 9 | T30: 1000 | U30: 1000 | V30: 1000 | W30: 1000 | X30: 1000 | Y30: 1000 | Z30: 1000 | AA30: 1000 | AB30: 1000 | AC30: 1000 | AD30: 1000 | AE30: 1000 | AG30: 9 | AJ30: 0 | AK30: 0
B31: Private Exp | E31: =SUM(E16:E30) -> 15000 | F31: 14000 | G31: 14000 | H31: 15000 | I31: 15000 | J31: 15000 | K31: 15000 | L31: 3047990 | M31: 12755990 | N31: 0 | O31: 0 | P31: 0 | R31: =SUM(R16:R30) -> 15907 | T31: =SUM(T16:T30) -> 14000 | U31: 14000 | V31: 14000 | W31: 14000 | X31: 14000 | Y31: 14000 | Z31: 14000 | AA31: 14000 | AB31: 14000 | AC31: 14000 | AD31: 14000 | AE31: 14000 | AG31: =SUM(AG16:AG30) -> 126 | AJ31: 15781 | AK31: =IF(AG31=0,IF(R31=0,"N/A","100%"),AJ31/AG31) -> 125.2460317 | AN31: Diff

Sheet Exp_Co (MTM)
A1: 2022年12月份營運支出 - 公司
A2: 與上月比較
B5: MONTH | F5: 3月 | I5: 2月 | L5: 1月 | O5: 12月 | R5: 11月 | U5: 10月 | X5: 9月 | AA5: 8月 | AD5: 7月 | AG5: 6月 | AJ5: 5月 | AM5: 4月 | AP5: 3月 | AR5: 增/(減) | AT5: 附錄
C6: 附註 | F6: HK$'000 | I6: HK$'000 | L6: HK$'000 | O6: HK$'000 | R6: HK$'000 | U6: HK$'000 | X6: HK$'000 | AA6: HK$'000 | AD6: HK$'000 | AG6: HK$'000 | AJ6: HK$'000 | AM6: HK$'000 | AP6: HK$'000 | AR6: HK$'000 | AS6: %
B7: Income A | E7: =VLOOKUP($B7,'Exp_Co (YTD)'!$B$8:$AI$43,15,FALSE) -> 0 | F7: =ROUND(E7/1000,0) -> 0 | H7: =VLOOKUP($B7,'Exp_Co (YTD)'!$B$8:$AI$43,14,FALSE) -> 0 | I7: =ROUND(H7/1000,0) -> 0 | K7: =VLOOKUP($B7,'Exp_Co (YTD)'!$B$8:$AI$43,13,FALSE) -> 0 | L7: =ROUND(K7/1000,0) -> 0 | N7: =VLOOKUP($B7,'Exp_Co (YTD)'!$B$8:$AI$43,12,FALSE) -> 900000 | O7: =ROUND(N7/1000,0) -> 900 | Q7: =VLOOKUP($B7,'Exp_Co (YTD)'!$B$8:$AI$43,11,FALSE) -> 990000 | R7: =ROUND(Q7/1000,0) -> 990 | T7: =VLOOKUP($B7,'Exp_Co (YTD)'!$B$8:$AI$43,10,FALSE) -> 1000 | U7: =ROUND(T7/1000,0) -> 1 | W7: =VLOOKUP($B7,'Exp_Co (YTD)'!$B$8:$AI$43,9,FALSE) -> 1000 | X7: =ROUND(W7/1000,0) -> 1 | Z7: =VLOOKUP($B7,'Exp_Co (YTD)'!$B$8:$AI$43,8,FALSE) -> 1000 | AA7: =ROUND(Z7/1000,0) -> 1 | AC7: =VLOOKUP($B7,'Exp_Co (YTD)'!$B$8:$AI$43,7,FALSE) -> 1000 | AD7: =ROUND(AC7/1000,0) -> 1 | AF7: =VLOOKUP($B7,'Exp_Co (YTD)'!$B$8:$AI$43,6,FALSE) -> 1000 | AG7: =ROUND(AF7/1000,0) -> 1 | AI7: =VLOOKUP($B7,'Exp_Co (YTD)'!$B$8:$AI$43,5,FALSE) -> 1000 | AJ7: =ROUND(AI7/1000,0) -> 1 | AL7: =VLOOKUP($B7,'Exp_Co (YTD)'!$B$8:$AI$43,4,FALSE) -> 1000 | AM7: =ROUND(AL7/1000,0) -> 1 | AO7: =VLOOKUP(B7,'Exp_Co (YTD)'!$B$8:$AI$43,30,FALSE) -> 1000 | AP7: =ROUND(AO7/1000,0) -> 1 | AR7: =O7-R7 -> -90 | AS7: =IF(R7=0,IF(O7=0,"N/A","100%"),AR7/R7) -> -0.09090909091
B8: Income B | E8: =VLOOKUP($B8,'Exp_Co (YTD)'!$B$8:$AI$43,15,FALSE) -> 0 | F8: =ROUND(E8/1000,0) -> 0 | H8: =VLOOKUP($B8,'Exp_Co (YTD)'!$B$8:$AI$43,14,FALSE) -> 0 | I8: =ROUND(H8/1000,0) -> 0 | K8: =VLOOKUP($B8,'Exp_Co (YTD)'!$B$8:$AI$43,13,FALSE) -> 0 | L8: =ROUND(K8/1000,0) -> 0 | N8: =VLOOKUP($B8,'Exp_Co (YTD)'!$B$8:$AI$43,12,FALSE) -> 1000000 | O8: =ROUND(N8/1000,0) -> 1000 | Q8: =VLOOKUP($B8,'Exp_Co (YTD)'!$B$8:$AI$43,11,FALSE) -> 1100000 | R8: =ROUND(Q8/1000,0) -> 1100 | T8: =VLOOKUP($B8,'Exp_Co (YTD)'!$B$8:$AI$43,10,FALSE) -> 1000 | U8: =ROUND(T8/1000,0) -> 1 | W8: =VLOOKUP($B8,'Exp_Co (YTD)'!$B$8:$AI$43,9,FALSE) -> 1000 | X8: =ROUND(W8/1000,0) -> 1 | Z8: =VLOOKUP($B8,'Exp_Co (YTD)'!$B$8:$AI$43,8,FALSE) -> 1000 | AA8: =ROUND(Z8/1000,0) -> 1 | AC8: =VLOOKUP($B8,'Exp_Co (YTD)'!$B$8:$AI$43,7,FALSE) -> 1000 | AD8: =ROUND(AC8/1000,0) -> 1 | AF8: =VLOOKUP($B8,'Exp_Co (YTD)'!$B$8:$AI$43,6,FALSE) -> 1000 | AG8: =ROUND(AF8/1000,0) -> 1 | AI8: =VLOOKUP($B8,'Exp_Co (YTD)'!$B$8:$AI$43,5,FALSE) -> 1000 | AJ8: =ROUND(AI8/1000,0) -> 1 | AL8: =VLOOKUP($B8,'Exp_Co (YTD)'!$B$8:$AI$43,4,FALSE) -> 1000 | AM8: =ROUND(AL8/1000,0)-1 -> 0 | AO8: =VLOOKUP(B8,'Exp_Co (YTD)'!$B$8:$AI$43,30,FALSE) -> 1000 | AP8: =ROUND(AO8/1000,0) -> 1 | AR8: -100 | AS8: -0.09090909091
B9: Income C | E9: =VLOOKUP($B9,'Exp_Co (YTD)'!$B$8:$AI$43,15,FALSE) -> 0 | F9: =ROUND(E9/1000,0) -> 0 | H9: =VLOOKUP($B9,'Exp_Co (YTD)'!$B$8:$AI$43,14,FALSE) -> 0 | I9: =ROUND(H9/1000,0) -> 0 | K9: =VLOOKUP($B9,'Exp_Co (YTD)'!$B$8:$AI$43,13,FALSE) -> 0 | L9: =ROUND(K9/1000,0) -> 0 | N9: =VLOOKUP($B9,'Exp_Co (YTD)'!$B$8:$AI$43,12,FALSE) -> 1000 | O9: =ROUND(N9/1000,0) -> 1 | Q9: =VLOOKUP($B9,'Exp_Co (YTD)'!$B$8:$AI$43,11,FALSE) -> 1000 | R9: =ROUND(Q9/1000,0) -> 1 | T9: =VLOOKUP($B9,'Exp_Co (YTD)'!$B$8:$AI$43,10,FALSE) -> 1000 | U9: =ROUND(T9/1000,0) -> 1 | W9: =VLOOKUP($B9,'Exp_Co (YTD)'!$B$8:$AI$43,9,FALSE) -> 1000 | X9: =ROUND(W9/1000,0) -> 1 | Z9: =VLOOKUP($B9,'Exp_Co (YTD)'!$B$8:$AI$43,8,FALSE) -> 1000 | AA9: =ROUND(Z9/1000,0) -> 1 | AC9: =VLOOKUP($B9,'Exp_Co (YTD)'!$B$8:$AI$43,7,FALSE) -> 1000 | AD9: =ROUND(AC9/1000,0) -> 1 | AF9: =VLOOKUP($B9,'Exp_Co (YTD)'!$B$8:$AI$43,6,FALSE) -> 1000 | AG9: =ROUND(AF9/1000,0) -> 1 | AI9: =VLOOKUP($B9,'Exp_Co (YTD)'!$B$8:$AI$43,5,FALSE) -> 1000 | AJ9: =ROUND(AI9/1000,0) -> 1 | AL9: =VLOOKUP($B9,'Exp_Co (YTD)'!$B$8:$AI$43,4,FALSE) -> 1000 | AM9: =ROUND(AL9/1000,0) -> 1 | AO9: =VLOOKUP(B9,'Exp_Co (YTD)'!$B$8:$AI$43,30,FALSE) -> 1000 | AP9: =ROUND(AO9/1000,0) -> 1 | AR9: 0 | AS9: 0
B10: Income D | E10: =VLOOKUP($B10,'Exp_Co (YTD)'!$B$8:$AI$43,15,FALSE) -> 0 | F10: =ROUND(E10/1000,0) -> 0 | H10: =VLOOKUP($B10,'Exp_Co (YTD)'!$B$8:$AI$43,14,FALSE) -> 0 | I10: =ROUND(H10/1000,0) -> 0 | K10: =VLOOKUP($B10,'Exp_Co (YTD)'!$B$8:$AI$43,13,FALSE) -> 0 | L10: =ROUND(K10/1000,0) -> 0 | N10: =VLOOKUP($B10,'Exp_Co (YTD)'!$B$8:$AI$43,12,FALSE) -> 1000 | O10: =ROUND(N10/1000,0) -> 1 | Q10: =VLOOKUP($B10,'Exp_Co (YTD)'!$B$8:$AI$43,11,FALSE) -> 1000 | R10: =ROUND(Q10/1000,0) -> 1 | T10: =VLOOKUP($B10,'Exp_Co (YTD)'!$B$8:$AI$43,10,FALSE) -> 1000 | U10: =ROUND(T10/1000,0) -> 1 | W10: =VLOOKUP($B10,'Exp_Co (YTD)'!$B$8:$AI$43,9,FALSE) -> 1000 | X10: =ROUND(W10/1000,0) -> 1 | Z10: =VLOOKUP($B10,'Exp_Co (YTD)'!$B$8:$AI$43,8,FALSE) -> 1000 | AA10: =ROUND(Z10/1000,0) -> 1 | AC10: =VLOOKUP($B10,'Exp_Co (YTD)'!$B$8:$AI$43,7,FALSE) -> 1000 | AD10: =ROUND(AC10/1000,0) -> 1 | AF10: =VLOOKUP($B10,'Exp_Co (YTD)'!$B$8:$AI$43,6,FALSE) -> 1000 | AG10: =ROUND(AF10/1000,0)+1 -> 2 | AI10: =VLOOKUP($B10,'Exp_Co (YTD)'!$B$8:$AI$43,5,FALSE) -> 1000 | AJ10: =ROUND(AI10/1000,0) -> 1 | AL10: =VLOOKUP($B10,'Exp_Co (YTD)'!$B$8:$AI$43,4,FALSE) -> 1000 | AM10: =ROUND(AL10/1000,0) -> 1 | AO10: =VLOOKUP(B10,'Exp_Co (YTD)'!$B$8:$AI$43,30,FALSE) -> 1000 | AP10: =ROUND(AO10/1000,0) -> 1 | AR10: 0 | AS10: 0
B11: Income E | E11: =VLOOKUP($B11,'Exp_Co (YTD)'!$B$8:$AI$43,15,FALSE) -> 0 | F11: =ROUND(E11/1000,0) -> 0 | H11: =VLOOKUP($B11,'Exp_Co (YTD)'!$B$8:$AI$43,14,FALSE) -> 0 | I11: =ROUND(H11/1000,0) -> 0 | K11: =VLOOKUP($B11,'Exp_Co (YTD)'!$B$8:$AI$43,13,FALSE) -> 0 | L11: =ROUND(K11/1000,0) -> 0 | N11: =VLOOKUP($B11,'Exp_Co (YTD)'!$B$8:$AI$43,12,FALSE) -> 1000 | O11: =ROUND(N11/1000,0) -> 1 | Q11: =VLOOKUP($B11,'Exp_Co (YTD)'!$B$8:$AI$43,11,FALSE) -> 1000 | R11: =ROUND(Q11/1000,0) -> 1 | T11: =VLOOKUP($B11,'Exp_Co (YTD)'!$B$8:$AI$43,10,FALSE) -> 1000 | U11: =ROUND(T11/1000,0) -> 1 | W11: =VLOOKUP($B11,'Exp_Co (YTD)'!$B$8:$AI$43,9,FALSE) -> 1000 | X11: =ROUND(W11/1000,0) -> 1 | Z11: =VLOOKUP($B11,'Exp_Co (YTD)'!$B$8:$AI$43,8,FALSE) -> 1000 | AA11: =ROUND(Z11/1000,0) -> 1 | AC11: =VLOOKUP($B11,'Exp_Co (YTD)'!$B$8:$AI$43,7,FALSE) -> 1000 | AD11: =ROUND(AC11/1000,0) -> 1 | AF11: =VLOOKUP($B11,'Exp_Co (YTD)'!$B$8:$AI$43,6,FALSE) -> 1000 | AG11: =ROUND(AF11/1000,0) -> 1 | AI11: =VLOOKUP($B11,'Exp_Co (YTD)'!$B$8:$AI$43,5,FALSE) -> 1000 | AJ11: =ROUND(AI11/1000,0) -> 1 | AL11: =VLOOKUP($B11,'Exp_Co (YTD)'!$B$8:$AI$43,4,FALSE) -> 1000 | AM11: =ROUND(AL11/1000,0) -> 1 | AO11: =VLOOKUP(B11,'Exp_Co (YTD)'!$B$8:$AI$43,30,FALSE) -> 1000 | AP11: =ROUND(AO11/1000,0) -> 1 | AR11: 0 | AS11: 0
B12: 收入 | C12: 1 | E12: =SUM(E7:E11) -> 0 | F12: =SUM(F7:F11) -> 0 | H12: =SUM(H7:H11) -> 0 | I12: =SUM(I7:I11) -> 0 | K12: =SUM(K7:K11) -> 0 | L12: =SUM(L7:L11) -> 0 | N12: =SUM(N7:N11) -> 1903000 | O12: =SUM(O7:O11) -> 1903 | Q12: =SUM(Q7:Q11) -> 2093000 | R12: =SUM(R7:R11) -> 2093 | T12: =SUM(T7:T11) -> 5000 | U12: =SUM(U7:U11) -> 5 | W12: =SUM(W7:W11) -> 5000 | X12: =SUM(X7:X11) -> 5 | Z12: =SUM(Z7:Z11) -> 5000 | AA12: =SUM(AA7:AA11) -> 5 | AC12: =SUM(AC7:AC11) -> 5000 | AD12: =SUM(AD7:AD11) -> 5 | AF12: =SUM(AF7:AF11) -> 5000 | AG12: =SUM(AG7:AG11) -> 6 | AI12: =SUM(AI7:AI11) -> 5000 | AJ12: =SUM(AJ7:AJ11) -> 5 | AL12: =SUM(AL7:AL11) -> 5000 | AM12: =SUM(AM7:AM11) -> 4 | AO12: =SUM(AO7:AO11) -> 5000 | AP12: =SUM(AP7:AP11) -> 5 | AR12: -190 | AS12: -0.09077878643 | AT12: A1
B14: Income A1 | E14: =VLOOKUP($B14,'Exp_Co (YTD)'!$B$8:$AI$43,15,FALSE) -> 0 | F14: =ROUND(E14/1000,0) -> 0 | H14: =VLOOKUP($B14,'Exp_Co (YTD)'!$B$8:$AI$43,14,FALSE) -> 0 | I14: =ROUND(H14/1000,0) -> 0 | K14: =VLOOKUP($B14,'Exp_Co (YTD)'!$B$8:$AI$43,13,FALSE) -> 0 | L14: =ROUND(K14/1000,0) -> 0 | N14: =VLOOKUP($B14,'Exp_Co (YTD)'!$B$8:$AI$43,12,FALSE) -> 1000 | O14: =ROUND(N14/1000,0) -> 1 | Q14: =VLOOKUP($B14,'Exp_Co (YTD)'!$B$8:$AI$43,11,FALSE) -> 1000 | R14: =ROUND(Q14/1000,0) -> 1 | T14: =VLOOKUP($B14,'Exp_Co (YTD)'!$B$8:$AI$43,10,FALSE) -> 1000 | U14: =ROUND(T14/1000,0) -> 1 | W14: =VLOOKUP($B14,'Exp_Co (YTD)'!$B$8:$AI$43,9,FALSE) -> 1000 | X14: =ROUND(W14/1000,0) -> 1 | Z14: =VLOOKUP($B14,'Exp_Co (YTD)'!$B$8:$AI$43,8,FALSE) -> 1000 | AA14: =ROUND(Z14/1000,0) -> 1 | AC14: =VLOOKUP($B14,'Exp_Co (YTD)'!$B$8:$AI$43,7,FALSE) -> 1000 | AD14: =ROUND(AC14/1000,0) -> 1 | AF14: =VLOOKUP($B14,'Exp_Co (YTD)'!$B$8:$AI$43,6,FALSE) -> 1000 | AG14: =ROUND(AF14/1000,0) -> 1 | AI14: =VLOOKUP($B14,'Exp_Co (YTD)'!$B$8:$AI$43,5,FALSE) -> 1000 | AJ14: =ROUND(AI14/1000,0) -> 1 | AL14: =VLOOKUP($B14,'Exp_Co (YTD)'!$B$8:$AI$43,4,FALSE) -> 1000 | AM14: =ROUND(AL14/1000,0) -> 1 | AO14: =VLOOKUP(B14,'Exp_Co (YTD)'!$B$8:$AI$38,30,FALSE) -> 1000 | AP14: =ROUND(AO14/1000,0) -> 1 | AR14: =O14-R14 -> 0 | AS14: =IF(R14=0,IF(O14=0,"N/A","100%"),AR14/R14) -> 0
B15: Income B1 | E15: =VLOOKUP($B15,'Exp_Co (YTD)'!$B$8:$AI$43,15,FALSE) -> 0 | F15: =ROUND(E15/1000,0) -> 0 | H15: =VLOOKUP($B15,'Exp_Co (YTD)'!$B$8:$AI$43,14,FALSE) -> 0 | I15: =ROUND(H15/1000,0) -> 0 | K15: =VLOOKUP($B15,'Exp_Co (YTD)'!$B$8:$AI$43,13,FALSE) -> 0 | L15: =ROUND(K15/1000,0) -> 0 | N15: =VLOOKUP($B15,'Exp_Co (YTD)'!$B$8:$AI$43,12,FALSE) -> 1000 | O15: =ROUND(N15/1000,0) -> 1 | Q15: =VLOOKUP($B15,'Exp_Co (YTD)'!$B$8:$AI$43,11,FALSE) -> 1000 | R15: =ROUND(Q15/1000,0) -> 1 | T15: =VLOOKUP($B15,'Exp_Co (YTD)'!$B$8:$AI$43,10,FALSE) -> 1000 | U15: =ROUND(T15/1000,0) -> 1 | W15: =VLOOKUP($B15,'Exp_Co (YTD)'!$B$8:$AI$43,9,FALSE) -> 1000 | X15: =ROUND(W15/1000,0) -> 1 | Z15: =VLOOKUP($B15,'Exp_Co (YTD)'!$B$8:$AI$43,8,FALSE) -> 1000 | AA15: =ROUND(Z15/1000,0) -> 1 | AC15: =VLOOKUP($B15,'Exp_Co (YTD)'!$B$8:$AI$43,7,FALSE) -> 1000 | AD15: =ROUND(AC15/1000,0) -> 1 | AF15: =VLOOKUP($B15,'Exp_Co (YTD)'!$B$8:$AI$43,6,FALSE) -> 1000 | AG15: =ROUND(AF15/1000,0) -> 1 | AI15: =VLOOKUP($B15,'Exp_Co (YTD)'!$B$8:$AI$43,5,FALSE) -> 1000 | AJ15: =ROUND(AI15/1000,0) -> 1 | AL15: =VLOOKUP($B15,'Exp_Co (YTD)'!$B$8:$AI$43,4,FALSE) -> 1000 | AM15: =ROUND(AL15/1000,0) -> 1 | AO15: =VLOOKUP(B15,'Exp_Co (YTD)'!$B$8:$AI$38,30,FALSE) -> 1000 | AP15: =ROUND(AO15/1000,0) -> 1 | AR15: =O15-R15 -> 0 | AS15: =IF(R15=0,IF(O15=0,"N/A","100%"),AR15/R15) -> 0
B16: 其他收入 | E16: =VLOOKUP($B16,'Exp_Co (YTD)'!$B$8:$AI$43,15,FALSE) -> 0 | F16: =ROUND(E16/1000,0) -> 0 | H16: =VLOOKUP($B16,'Exp_Co (YTD)'!$B$8:$AI$43,14,FALSE) -> 0 | I16: =ROUND(H16/1000,0) -> 0 | K16: =VLOOKUP($B16,'Exp_Co (YTD)'!$B$8:$AI$43,13,FALSE) -> 0 | L16: =ROUND(K16/1000,0) -> 0 | N16: =VLOOKUP($B16,'Exp_Co (YTD)'!$B$8:$AI$43,12,FALSE) -> 2000 | O16: =ROUND(N16/1000,0) -> 2 | Q16: =VLOOKUP($B16,'Exp_Co (YTD)'!$B$8:$AI$43,11,FALSE) -> 2000 | R16: =ROUND(Q16/1000,0) -> 2 | T16: =VLOOKUP($B16,'Exp_Co (YTD)'!$B$8:$AI$43,10,FALSE) -> 2000 | U16: =ROUND(T16/1000,0) -> 2 | W16: =VLOOKUP($B16,'Exp_Co (YTD)'!$B$8:$AI$43,9,FALSE) -> 2000 | X16: =ROUND(W16/1000,0) -> 2 | Z16: =VLOOKUP($B16,'Exp_Co (YTD)'!$B$8:$AI$43,8,FALSE) -> 2000 | AA16: =ROUND(Z16/1000,0) -> 2 | AC16: =VLOOKUP($B16,'Exp_Co (YTD)'!$B$8:$AI$43,7,FALSE) -> 2000 | AD16: =ROUND(AC16/1000,0) -> 2 | AF16: =VLOOKUP($B16,'Exp_Co (YTD)'!$B$8:$AI$43,6,FALSE) -> 2000 | AG16: =ROUND(AF16/1000,0) -> 2 | AI16: =VLOOKUP($B16,'Exp_Co (YTD)'!$B$8:$AI$43,5,FALSE) -> 2000 | AJ16: =ROUND(AI16/1000,0) -> 2 | AL16: =VLOOKUP($B16,'Exp_Co (YTD)'!$B$8:$AI$43,4,FALSE) -> 2000 | AM16: =SUM(AM14:AM15) -> 2 | AO16: =SUM(AO14:AO15) -> 2000 | AP16: =ROUND(AO16/1000,0) -> 2 | AR16: =O16-R16 -> 0 | AS16: =IF(R16=0,IF(O16=0,"N/A","100%"),AR16/R16) -> 0
E17: =SUM(E16,E12) -> 0 | F17: =SUM(F16,F12) -> 0 | H17: =SUM(H16,H12) -> 0 | I17: =SUM(I16,I12) -> 0 | K17: =SUM(K16,K12) -> 0 | L17: =SUM(L16,L12) -> 0 | N17: =SUM(N16,N12) -> 1905000 | O17: =SUM(O16,O12) -> 1905 | Q17: =SUM(Q16,Q12) -> 2095000 | R17: =SUM(R16,R12) -> 2095 | T17: =SUM(T16,T12) -> 7000 | U17: =SUM(U16,U12) -> 7 | W17: =SUM(W16,W12) -> 7000 | X17: =SUM(X16,X12) -> 7 | Z17: =SUM(Z16,Z12) -> 7000 | AA17: =SUM(AA16,AA12) -> 7 | AC17: =SUM(AC16,AC12) -> 7000 | AD17: =SUM(AD16,AD12) -> 7 | AF17: =SUM(AF16,AF12) -> 7000 | AG17: =SUM(AG16,AG12) -> 8 | AI17: =SUM(AI16,AI12) -> 7000 | AJ17: =SUM(AJ16,AJ12) -> 7 | AL17: =SUM(AL16,AL12) -> 7000 | AM17: =SUM(AM16,AM12) -> 6 | AO17: =SUM(AO16,AO12) -> 7000 | AP17: =SUM(AP16,AP12) -> 7 | AR17: =O17-R17 -> -190 | AS17: =IF(R17=0,IF(O17=0,"N/A","100%"),AR17/R17) -> -0.09069212411
B19: D1 | E19: =VLOOKUP($B19,'Exp_Co (YTD)'!$B$8:$AI$43,15,FALSE) -> 0 | F19: =ROUND(E19/1000,0) -> 0 | H19: =VLOOKUP($B19,'Exp_Co (YTD)'!$B$8:$AI$43,14,FALSE) -> 0 | I19: =ROUND(H19/1000,0) -> 0 | K19: =VLOOKUP($B19,'Exp_Co (YTD)'!$B$8:$AI$43,13,FALSE) -> 0 | L19: =ROUND(K19/1000,0) -> 0 | N19: =VLOOKUP($B19,'Exp_Co (YTD)'!$B$8:$AI$43,12,FALSE) -> 1000 | O19: =ROUND(N19/1000,0) -> 1 | Q19: =VLOOKUP($B19,'Exp_Co (YTD)'!$B$8:$AI$43,11,FALSE) -> 1000 | R19: =ROUND(Q19/1000,0) -> 1 | T19: =VLOOKUP($B19,'Exp_Co (YTD)'!$B$8:$AI$43,10,FALSE) -> 1000 | U19: =ROUND(T19/1000,0) -> 1 | W19: =VLOOKUP($B19,'Exp_Co (YTD)'!$B$8:$AI$43,9,FALSE) -> 1000 | X19: =ROUND(W19/1000,0) -> 1 | Z19: =VLOOKUP($B19,'Exp_Co (YTD)'!$B$8:$AI$43,8,FALSE) -> 1000 | AA19: =ROUND(Z19/1000,0) -> 1 | AC19: =VLOOKUP($B19,'Exp_Co (YTD)'!$B$8:$AI$43,7,FALSE) -> 1000 | AD19: =ROUND(AC19/1000,0) -> 1 | AF19: =VLOOKUP($B19,'Exp_Co (YTD)'!$B$8:$AI$43,6,FALSE) -> 1000 | AG19: =ROUND(AF19/1000,0)+1 -> 2 | AI19: =VLOOKUP($B19,'Exp_Co (YTD)'!$B$8:$AI$43,5,FALSE) -> 1000 | AJ19: =ROUND(AI19/1000,0) -> 1 | AL19: =VLOOKUP($B19,'Exp_Co (YTD)'!$B$8:$AI$43,4,FALSE) -> 1000 | AM19: =ROUND(AL19/1000,0) -> 1 | AO19: =VLOOKUP(B19,'Exp_Co (YTD)'!$B$8:$AI$43,30,FALSE) -> 0 | AP19: =ROUND(AO19/1000,0) -> 0 | AR19: =O19-R19 -> 0 | AS19: =IF(R19=0,IF(O19=0,"N/A","100%"),AR19/R19) -> 0
B20: E1 | E20: =VLOOKUP($B20,'Exp_Co (YTD)'!$B$8:$AI$43,15,FALSE) -> 0 | F20: =ROUND(E20/1000,0) -> 0 | H20: =VLOOKUP($B20,'Exp_Co (YTD)'!$B$8:$AI$43,14,FALSE) -> 0 | I20: =ROUND(H20/1000,0) -> 0 | K20: =VLOOKUP($B20,'Exp_Co (YTD)'!$B$8:$AI$43,13,FALSE) -> 0 | L20: =ROUND(K20/1000,0) -> 0 | N20: =VLOOKUP($B20,'Exp_Co (YTD)'!$B$8:$AI$43,12,FALSE) -> 1000 | O20: =ROUND(N20/1000,0) -> 1 | Q20: =VLOOKUP($B20,'Exp_Co (YTD)'!$B$8:$AI$43,11,FALSE) -> 1000 | R20: =ROUND(Q20/1000,0) -> 1 | T20: =VLOOKUP($B20,'Exp_Co (YTD)'!$B$8:$AI$43,10,FALSE) -> 1000 | U20: =ROUND(T20/1000,0) -> 1 | W20: =VLOOKUP($B20,'Exp_Co (YTD)'!$B$8:$AI$43,9,FALSE) -> 1000 | X20: =ROUND(W20/1000,0) -> 1 | Z20: =VLOOKUP($B20,'Exp_Co (YTD)'!$B$8:$AI$43,8,FALSE) -> 1000 | AA20: =ROUND(Z20/1000,0) -> 1 | AC20: =VLOOKUP($B20,'Exp_Co (YTD)'!$B$8:$AI$43,7,FALSE) -> 1000 | AD20: =ROUND(AC20/1000,0) -> 1 | AF20: =VLOOKUP($B20,'Exp_Co (YTD)'!$B$8:$AI$43,6,FALSE) -> 1000 | AG20: =ROUND(AF20/1000,0) -> 1 | AI20: =VLOOKUP($B20,'Exp_Co (YTD)'!$B$8:$AI$43,5,FALSE) -> 1000 | AJ20: =ROUND(AI20/1000,0) -> 1 | AL20: =VLOOKUP($B20,'Exp_Co (YTD)'!$B$8:$AI$43,4,FALSE) -> 1000 | AM20: =ROUND(AL20/1000,0) -> 1 | AO20: =VLOOKUP(B20,'Exp_Co (YTD)'!$B$8:$AI$43,30,FALSE) -> 1000 | AP20: =ROUND(AO20/1000,0) -> 1 | AR20: =O20-R20 -> 0 | AS20: =IF(R20=0,IF(O20=0,"N/A","100%"),AR20/R20) -> 0
B21: F1 | E21: =VLOOKUP($B21,'Exp_Co (YTD)'!$B$8:$AI$43,15,FALSE) -> 0 | F21: =ROUND(E21/1000,0) -> 0 | H21: =VLOOKUP($B21,'Exp_Co (YTD)'!$B$8:$AI$43,14,FALSE) -> 0 | I21: =ROUND(H21/1000,0) -> 0 | K21: =VLOOKUP($B21,'Exp_Co (YTD)'!$B$8:$AI$43,13,FALSE) -> 0 | L21: =ROUND(K21/1000,0) -> 0 | N21: =VLOOKUP($B21,'Exp_Co (YTD)'!$B$8:$AI$43,12,FALSE) -> 1000 | O21: =ROUND(N21/1000,0) -> 1 | Q21: =VLOOKUP($B21,'Exp_Co (YTD)'!$B$8:$AI$43,11,FALSE) -> 1000 | R21: =ROUND(Q21/1000,0) -> 1 | T21: =VLOOKUP($B21,'Exp_Co (YTD)'!$B$8:$AI$43,10,FALSE) -> 1000 | U21: =ROUND(T21/1000,0) -> 1 | W21: =VLOOKUP($B21,'Exp_Co (YTD)'!$B$8:$AI$43,9,FALSE) -> 1000 | X21: =ROUND(W21/1000,0) -> 1 | Z21: =VLOOKUP($B21,'Exp_Co (YTD)'!$B$8:$AI$43,8,FALSE) -> 1000 | AA21: =ROUND(Z21/1000,0) -> 1 | AC21: =VLOOKUP($B21,'Exp_Co (YTD)'!$B$8:$AI$43,7,FALSE) -> 1000 | AD21: =ROUND(AC21/1000,0) -> 1 | AF21: =VLOOKUP($B21,'Exp_Co (YTD)'!$B$8:$AI$43,6,FALSE) -> 1000 | AG21: =ROUND(AF21/1000,0) -> 1 | AI21: =VLOOKUP($B21,'Exp_Co (YTD)'!$B$8:$AI$43,5,FALSE) -> 1000 | AJ21: =ROUND(AI21/1000,0) -> 1 | AL21: =VLOOKUP($B21,'Exp_Co (YTD)'!$B$8:$AI$43,4,FALSE) -> 1000 | AM21: =ROUND(AL21/1000,0) -> 1 | AO21: =VLOOKUP(B21,'Exp_Co (YTD)'!$B$8:$AI$43,30,FALSE) -> 1000 | AP21: =ROUND(AO21/1000,0) -> 1 | AR21: =O21-R21 -> 0 | AS21: =IF(R21=0,IF(O21=0,"N/A","100%"),AR21/R21) -> 0
E22: =SUM(E19:E21) -> 0 | F22: =SUM(F19:F21) -> 0 | H22: =SUM(H19:H21) -> 0 | I22: =SUM(I19:I21) -> 0 | K22: =SUM(K19:K21) -> 0 | L22: =SUM(L19:L21) -> 0 | N22: =SUM(N19:N21) -> 3000 | O22: =SUM(O19:O21) -> 3 | Q22: =SUM(Q19:Q21) -> 3000 | R22: =SUM(R19:R21) -> 3 | T22: =SUM(T19:T21) -> 3000 | U22: =SUM(U19:U21) -> 3 | W22: =SUM(W19:W21) -> 3000 | X22: =SUM(X19:X21) -> 3 | Z22: =SUM(Z19:Z21) -> 3000 | AA22: =SUM(AA19:AA21) -> 3 | AC22: =SUM(AC19:AC21) -> 3000 | AD22: =SUM(AD19:AD21) -> 3 | AF22: =SUM(AF19:AF21) -> 3000 | AG22: =SUM(AG19:AG21) -> 4 | AI22: =SUM(AI19:AI21) -> 3000 | AJ22: =SUM(AJ19:AJ21) -> 3 | AL22: =SUM(AL19:AL21) -> 3000 | AM22: =SUM(AM19:AM21) -> 3 | AO22: =SUM(AO19:AO21) -> 2000 | AP22: =SUM(AP19:AP21) -> 2 | AR22: =O22-R22 -> 0 | AS22: =IF(R22=0,IF(O22=0,"N/A","100%"),AR22/R22) -> 0
E24: =SUM(E17,E22) -> 0 | F24: =SUM(F17,F22) -> 0 | H24: =SUM(H17,H22) -> 0 | I24: =SUM(I17,I22) -> 0 | K24: =SUM(K17,K22) -> 0 | L24: =SUM(L17,L22) -> 0 | N24: =SUM(N17,N22) -> 1908000 | O24: =SUM(O17,O22) -> 1908 | Q24: =SUM(Q17,Q22) -> 2098000 | R24: =SUM(R17,R22) -> 2098 | T24: =SUM(T17,T22) -> 10000 | U24: =SUM(U17,U22) -> 10 | W24: =SUM(W17,W22) -> 10000 | X24: =SUM(X17,X22) -> 10 | Z24: =SUM(Z17,Z22) -> 10000 | AA24: =SUM(AA17,AA22) -> 10 | AC24: =SUM(AC17,AC22) -> 10000 | AD24: =SUM(AD17,AD22) -> 10 | AF24: =SUM(AF17,AF22) -> 10000 | AG24: =SUM(AG17,AG22) -> 12 | AI24: =SUM(AI17,AI22) -> 10000 | AJ24: =SUM(AJ17,AJ22) -> 10 | AL24: =SUM(AL17,AL22) -> 10000 | AM24: =SUM(AM17,AM22) -> 9 | AO24: =SUM(AO17,AO22) -> 9000 | AP24: =SUM(AP17,AP22) -> 9 | AR24: =O24-R24 -> -190 | AS24: =IF(R24=0,IF(O24=0,"N/A","100%"),AR24/R24) -> -0.09056244042
B26: ='Exp_Co (YTD)'!B27 -> Exp A | C26: 2 | E26: =VLOOKUP($B26,'Exp_Co (YTD)'!$B$8:$AI$43,15,FALSE) -> 0 | F26: =ROUND(E26/1000,0) -> 0 | H26: =VLOOKUP($B26,'Exp_Co (YTD)'!$B$8:$AI$43,14,FALSE) -> 0 | I26: =ROUND(H26/1000,0) -> 0 | K26: =VLOOKUP($B26,'Exp_Co (YTD)'!$B$8:$AI$43,13,FALSE) -> 0 | L26: =ROUND(K26/1000,0) -> 0 | N26: =VLOOKUP($B26,'Exp_Co (YTD)'!$B$8:$AI$43,12,FALSE) -> 0 | O26: =ROUND(N26/1000,0) -> 0 | Q26: =VLOOKUP($B26,'Exp_Co (YTD)'!$B$8:$AI$43,11,FALSE) -> 0 | R26: =ROUND(Q26/1000,0) -> 0 | T26: =VLOOKUP($B26,'Exp_Co (YTD)'!$B$8:$AI$43,10,FALSE) -> 0 | U26: =ROUND(T26/1000,0) -> 0 | W26: =VLOOKUP($B26,'Exp_Co (YTD)'!$B$8:$AI$43,9,FALSE) -> 0 | X26: =ROUND(W26/1000,0) -> 0 | Z26: =VLOOKUP($B26,'Exp_Co (YTD)'!$B$8:$AI$43,8,FALSE) -> 0 | AA26: =ROUND(Z26/1000,0) -> 0 | AC26: =VLOOKUP($B26,'Exp_Co (YTD)'!$B$8:$AI$43,7,FALSE) -> 0 | AD26: =ROUND(AC26/1000,0) -> 0 | AF26: =VLOOKUP($B26,'Exp_Co (YTD)'!$B$8:$AI$43,6,FALSE) -> 0 | AG26: =ROUND(AF26/1000,0) -> 0 | AI26: =VLOOKUP($B26,'Exp_Co (YTD)'!$B$8:$AI$43,5,FALSE) -> 0 | AJ26: =ROUND(AI26/1000,0) -> 0 | AL26: =VLOOKUP($B26,'Exp_Co (YTD)'!$B$8:$AI$43,4,FALSE) -> 0 | AM26: =ROUND(AL26/1000,0) -> 0 | AO26: =VLOOKUP(B26,'Exp_Co (YTD)'!$B$8:$AI$43,30,FALSE) -> 1000 | AP26: =ROUND(AO26/1000,0) -> 1 | AR26: =O26-R26 -> 0 | AS26: =IF(R26=0,IF(O26=0,"N/A","100%"),AR26/R26) -> N/A | AV26: PP22
B27: ='Exp_Co (YTD)'!B28 -> Exp B | C27: 3 | E27: =VLOOKUP($B27,'Exp_Co (YTD)'!$B$8:$AI$43,15,FALSE) -> 0 | F27: =ROUND(E27/1000,0) -> 0 | H27: =VLOOKUP($B27,'Exp_Co (YTD)'!$B$8:$AI$43,14,FALSE) -> 0 | I27: =ROUND(H27/1000,0) -> 0 | K27: =VLOOKUP($B27,'Exp_Co (YTD)'!$B$8:$AI$43,13,FALSE) -> 0 | L27: =ROUND(K27/1000,0) -> 0 | N27: =VLOOKUP($B27,'Exp_Co (YTD)'!$B$8:$AI$43,12,FALSE) -> 0 | O27: =ROUND(N27/1000,0) -> 0 | Q27: =VLOOKUP($B27,'Exp_Co (YTD)'!$B$8:$AI$43,11,FALSE) -> 1000 | R27: =ROUND(Q27/1000,0) -> 1 | T27: =VLOOKUP($B27,'Exp_Co (YTD)'!$B$8:$AI$43,10,FALSE) -> 1000 | U27: =ROUND(T27/1000,0) -> 1 | W27: =VLOOKUP($B27,'Exp_Co (YTD)'!$B$8:$AI$43,9,FALSE) -> 1000 | X27: =ROUND(W27/1000,0) -> 1 | Z27: =VLOOKUP($B27,'Exp_Co (YTD)'!$B$8:$AI$43,8,FALSE) -> 1000 | AA27: =ROUND(Z27/1000,0) -> 1 | AC27: =VLOOKUP($B27,'Exp_Co (YTD)'!$B$8:$AI$43,7,FALSE) -> 1000 | AD27: =ROUND(AC27/1000,0) -> 1 | AF27: =VLOOKUP($B27,'Exp_Co (YTD)'!$B$8:$AI$43,6,FALSE) -> 1000 | AG27: =ROUND(AF27/1000,0) -> 1 | AI27: =VLOOKUP($B27,'Exp_Co (YTD)'!$B$8:$AI$43,5,FALSE) -> 1000 | AJ27: =ROUND(AI27/1000,0) -> 1 | AL27: =VLOOKUP($B27,'Exp_Co (YTD)'!$B$8:$AI$43,4,FALSE) -> 1000 | AM27: =ROUND(AL27/1000,0) -> 1 | AO27: =VLOOKUP(B27,'Exp_Co (YTD)'!$B$8:$AI$43,30,FALSE) -> 1000 | AP27: =ROUND(AO27/1000,0) -> 1 | AR27: =O27-R27 -> -1 | AS27: =IF(R27=0,IF(O27=0,"N/A","100%"),AR27/R27) -> -1
B28: ='Exp_Co (YTD)'!B29 -> Exp C | E28: =VLOOKUP($B28,'Exp_Co (YTD)'!$B$8:$AI$43,15,FALSE) -> 0 | F28: 0 | H28: =VLOOKUP($B28,'Exp_Co (YTD)'!$B$8:$AI$43,14,FALSE) -> 0 | I28: 0 | K28: =VLOOKUP($B28,'Exp_Co (YTD)'!$B$8:$AI$43,13,FALSE) -> 0 | L28: 0 | N28: =VLOOKUP($B28,'Exp_Co (YTD)'!$B$8:$AI$43,12,FALSE) -> 8560456 | O28: 8560 | Q28: =VLOOKUP($B28,'Exp_Co (YTD)'!$B$8:$AI$43,11,FALSE) -> 9899999.86 | R28: 9900 | T28: =VLOOKUP($B28,'Exp_Co (YTD)'!$B$8:$AI$43,10,FALSE) -> 1000 | U28: 1 | W28: =VLOOKUP($B28,'Exp_Co (YTD)'!$B$8:$AI$43,9,FALSE) -> 1000 | X28: 1 | Z28: =VLOOKUP($B28,'Exp_Co (YTD)'!$B$8:$AI$43,8,FALSE) -> 1000 | AA28: 1 | AC28: =VLOOKUP($B28,'Exp_Co (YTD)'!$B$8:$AI$43,7,FALSE) -> 1000 | AD28: 1 | AF28: =VLOOKUP($B28,'Exp_Co (YTD)'!$B$8:$AI$43,6,FALSE) -> 1000 | AG28: 1 | AI28: =VLOOKUP($B28,'Exp_Co (YTD)'!$B$8:$AI$43,5,FALSE) -> 1000 | AJ28: 1 | AL28: =VLOOKUP($B28,'Exp_Co (YTD)'!$B$8:$AI$43,4,FALSE) -> 1000 | AM28: 1 | AO28: =VLOOKUP(B28,'Exp_Co (YTD)'!$B$8:$AI$43,30,FALSE) -> 1000 | AP28: 1 | AR28: -1340 | AS28: -0.1353535354
B29: ='Exp_Co (YTD)'!B30 -> Exp D | E29: =VLOOKUP($B29,'Exp_Co (YTD)'!$B$8:$AI$43,15,FALSE) -> 0 | F29: 0 | H29: =VLOOKUP($B29,'Exp_Co (YTD)'!$B$8:$AI$43,14,FALSE) -> 0 | I29: 0 | K29: =VLOOKUP($B29,'Exp_Co (YTD)'!$B$8:$AI$43,13,FALSE) -> 0 | L29: 0 | N29: =VLOOKUP($B29,'Exp_Co (YTD)'!$B$8:$AI$43,12,FALSE) -> 1000 | O29: 1 | Q29: =VLOOKUP($B29,'Exp_Co (YTD)'!$B$8:$AI$43,11,FALSE) -> 1000 | R29: 1 | T29: =VLOOKUP($B29,'Exp_Co (YTD)'!$B$8:$AI$43,10,FALSE) -> 1000 | U29: 1 | W29: =VLOOKUP($B29,'Exp_Co (YTD)'!$B$8:$AI$43,9,FALSE) -> 1000 | X29: 1 | Z29: =VLOOKUP($B29,'Exp_Co (YTD)'!$B$8:$AI$43,8,FALSE) -> 1000 | AA29: 1 | AC29: =VLOOKUP($B29,'Exp_Co (YTD)'!$B$8:$AI$43,7,FALSE) -> 1000 | AD29: 1 | AF29: =VLOOKUP($B29,'Exp_Co (YTD)'!$B$8:$AI$43,6,FALSE) -> 1000 | AG29: 1 | AI29: =VLOOKUP($B29,'Exp_Co (YTD)'!$B$8:$AI$43,5,FALSE) -> 1000 | AJ29: 1 | AL29: =VLOOKUP($B29,'Exp_Co (YTD)'!$B$8:$AI$43,4,FALSE) -> 1000 | AM29: 1 | AO29: =VLOOKUP(B29,'Exp_Co (YTD)'!$B$8:$AI$43,30,FALSE) -> 1000 | AP29: 1 | AR29: 0 | AS29: 0
B30: ='Exp_Co (YTD)'!B31 -> Exp E | E30: =VLOOKUP($B30,'Exp_Co (YTD)'!$B$8:$AI$43,15,FALSE) -> 0 | F30: 0 | H30: =VLOOKUP($B30,'Exp_Co (YTD)'!$B$8:$AI$43,14,FALSE) -> 0 | I30: 0 | K30: =VLOOKUP($B30,'Exp_Co (YTD)'!$B$8:$AI$43,13,FALSE) -> 0 | L30: 0 | N30: 9000 | O30: 9 | Q30: =VLOOKUP($B30,'Exp_Co (YTD)'!$B$8:$AI$43,11,FALSE) -> 1000 | R30: 1 | T30: =VLOOKUP($B30,'Exp_Co (YTD)'!$B$8:$AI$43,10,FALSE) -> 1000 | U30: 1 | W30: =VLOOKUP($B30,'Exp_Co (YTD)'!$B$8:$AI$43,9,FALSE) -> 1000 | X30: 1 | Z30: =VLOOKUP($B30,'Exp_Co (YTD)'!$B$8:$AI$43,8,FALSE) -> 1000 | AA30: 1 | AC30: =VLOOKUP($B30,'Exp_Co (YTD)'!$B$8:$AI$43,7,FALSE) -> 1000 | AD30: 1 | AF30: =VLOOKUP($B30,'Exp_Co (YTD)'!$B$8:$AI$43,6,FALSE) -> 1000 | AG30: 1 | AI30: =VLOOKUP($B30,'Exp_Co (YTD)'!$B$8:$AI$43,5,FALSE) -> 1000 | AJ30: 1 | AL30: =VLOOKUP($B30,'Exp_Co (YTD)'!$B$8:$AI$43,4,FALSE) -> 1000 | AM30: 1 | AO30: =VLOOKUP(B30,'Exp_Co (YTD)'!$B$8:$AI$43,30,FALSE) -> 1000 | AP30: 1 | AR30: 8 | AS30: 8
B31: ='Exp_Co (YTD)'!B32 -> Exp F | E31: =VLOOKUP($B31,'Exp_Co (YTD)'!$B$8:$AI$43,15,FALSE) -> 0 | F31: 0 | H31: =VLOOKUP($B31,'Exp_Co (YTD)'!$B$8:$AI$43,14,FALSE) -> 0 | I31: 0 | K31: =VLOOKUP($B31,'Exp_Co (YTD)'!$B$8:$AI$43,13,FALSE) -> 0 | L31: 0 | N31: =VLOOKUP($B31,'Exp_Co (YTD)'!$B$8:$AI$43,12,FALSE) -> 2000 | O31: 2 | Q31: =VLOOKUP($B31,'Exp_Co (YTD)'!$B$8:$AI$43,11,FALSE) -> 1000 | R31: 1 | T31: =VLOOKUP($B31,'Exp_Co (YTD)'!$B$8:$AI$43,10,FALSE) -> 1000 | U31: 1 | W31: =VLOOKUP($B31,'Exp_Co (YTD)'!$B$8:$AI$43,9,FALSE) -> 1000 | X31: 1 | Z31: =VLOOKUP($B31,'Exp_Co (YTD)'!$B$8:$AI$43,8,FALSE) -> 1000 | AA31: 1 | AC31: =VLOOKUP($B31,'Exp_Co (YTD)'!$B$8:$AI$43,7,FALSE) -> 1000 | AD31: 1 | AF31: =VLOOKUP($B31,'Exp_Co (YTD)'!$B$8:$AI$43,6,FALSE) -> 1000 | AG31: 1 | AI31: =VLOOKUP($B31,'Exp_Co (YTD)'!$B$8:$AI$43,5,FALSE) -> 1000 | AJ31: 1 | AL31: =VLOOKUP($B31,'Exp_Co (YTD)'!$B$8:$AI$43,4,FALSE) -> 1000 | AM31: 1 | AO31: =VLOOKUP(B31,'Exp_Co (YTD)'!$B$8:$AI$43,30,FALSE) -> 1000 | AP31: 1 | AR31: 1 | AS31: 1
B32: ='Exp_Co (YTD)'!B33 -> Exp G | E32: =VLOOKUP($B32,'Exp_Co (YTD)'!$B$8:$AI$43,15,FALSE) -> 0 | F32: 0 | H32: =VLOOKUP($B32,'Exp_Co (YTD)'!$B$8:$AI$43,14,FALSE) -> 0 | I32: 0 | K32: =VLOOKUP($B32,'Exp_Co (YTD)'!$B$8:$AI$43,13,FALSE) -> 0 | L32: 0 | N32: =VLOOKUP($B32,'Exp_Co (YTD)'!$B$8:$AI$43,12,FALSE) -> 2000000 | O32: 2000 | Q32: =VLOOKUP($B32,'Exp_Co (YTD)'!$B$8:$AI$43,11,FALSE) -> 1000000 | R32: 1000 | T32: =VLOOKUP($B32,'Exp_Co (YTD)'!$B$8:$AI$43,10,FALSE) -> 1000 | U32: 1 | W32: =VLOOKUP($B32,'Exp_Co (YTD)'!$B$8:$AI$43,9,FALSE) -> 1000 | X32: 1 | Z32: =VLOOKUP($B32,'Exp_Co (YTD)'!$B$8:$AI$43,8,FALSE) -> 1000 | AA32: 1 | AC32: =VLOOKUP($B32,'Exp_Co (YTD)'!$B$8:$AI$43,7,FALSE) -> 1000 | AD32: 1 | AF32: =VLOOKUP($B32,'Exp_Co (YTD)'!$B$8:$AI$43,6,FALSE) -> 1000 | AG32: 1 | AI32: =VLOOKUP($B32,'Exp_Co (YTD)'!$B$8:$AI$43,5,FALSE) -> 1000 | AJ32: 1 | AL32: =VLOOKUP($B32,'Exp_Co (YTD)'!$B$8:$AI$43,4,FALSE) -> 1000 | AM32: 1 | AO32: =VLOOKUP(B32,'Exp_Co (YTD)'!$B$8:$AI$43,30,FALSE) -> 1000 | AP32: 1 | AR32: 1000 | AS32: 1
B33: ='Exp_Co (YTD)'!B34 -> Exp H | E33: =VLOOKUP($B33,'Exp_Co (YTD)'!$B$8:$AI$43,15,FALSE) -> 0 | F33: 0 | H33: =VLOOKUP($B33,'Exp_Co (YTD)'!$B$8:$AI$43,14,FALSE) -> 0 | I33: 0 | K33: =VLOOKUP($B33,'Exp_Co (YTD)'!$B$8:$AI$43,13,FALSE) -> 0 | L33: 0 | N33: =VLOOKUP($B33,'Exp_Co (YTD)'!$B$8:$AI$43,12,FALSE) -> 1000 | O33: 1 | Q33: =VLOOKUP($B33,'Exp_Co (YTD)'!$B$8:$AI$43,11,FALSE) -> 1000 | R33: 1 | T33: =VLOOKUP($B33,'Exp_Co (YTD)'!$B$8:$AI$43,10,FALSE) -> 1000 | U33: 1 | W33: =VLOOKUP($B33,'Exp_Co (YTD)'!$B$8:$AI$43,9,FALSE) -> 1000 | X33: 1 | Z33: =VLOOKUP($B33,'Exp_Co (YTD)'!$B$8:$AI$43,8,FALSE) -> 1000 | AA33: 1 | AC33: =VLOOKUP($B33,'Exp_Co (YTD)'!$B$8:$AI$43,7,FALSE) -> 1000 | AD33: 1 | AF33: =VLOOKUP($B33,'Exp_Co (YTD)'!$B$8:$AI$43,6,FALSE) -> 1000 | AG33: 1 | AI33: =VLOOKUP($B33,'Exp_Co (YTD)'!$B$8:$AI$43,5,FALSE) -> 1000 | AJ33: 1 | AL33: =VLOOKUP($B33,'Exp_Co (YTD)'!$B$8:$AI$43,4,FALSE) -> 1000 | AM33: 1 | AO33: =VLOOKUP(B33,'Exp_Co (YTD)'!$B$8:$AI$43,30,FALSE) -> 1000 | AP33: 1 | AR33: 0 | AS33: 0
B34: ='Exp_Co (YTD)'!B35 -> Exp I | E34: =VLOOKUP($B34,'Exp_Co (YTD)'!$B$8:$AI$43,15,FALSE) -> 0 | F34: 0 | H34: =VLOOKUP($B34,'Exp_Co (YTD)'!$B$8:$AI$43,14,FALSE) -> 0 | I34: 0 | K34: =VLOOKUP($B34,'Exp_Co (YTD)'!$B$8:$AI$43,13,FALSE) -> 0 | L34: 0 | N34: =VLOOKUP($B34,'Exp_Co (YTD)'!$B$8:$AI$43,12,FALSE) -> 1000 | O34: 1 | Q34: =VLOOKUP($B34,'Exp_Co (YTD)'!$B$8:$AI$43,11,FALSE) -> 1000 | R34: 1 | T34: =VLOOKUP($B34,'Exp_Co (YTD)'!$B$8:$AI$43,10,FALSE) -> 1000 | U34: 1 | W34: =VLOOKUP($B34,'Exp_Co (YTD)'!$B$8:$AI$43,9,FALSE) -> 1000 | X34: 1 | Z34: =VLOOKUP($B34,'Exp_Co (YTD)'!$B$8:$AI$43,8,FALSE) -> 1000 | AA34: 1 | AC34: =VLOOKUP($B34,'Exp_Co (YTD)'!$B$8:$AI$43,7,FALSE) -> 1000 | AD34: 1 | AF34: =VLOOKUP($B34,'Exp_Co (YTD)'!$B$8:$AI$43,6,FALSE) -> 1000 | AG34: 1 | AI34: =VLOOKUP($B34,'Exp_Co (YTD)'!$B$8:$AI$43,5,FALSE) -> 1000 | AJ34: 1 | AL34: =VLOOKUP($B34,'Exp_Co (YTD)'!$B$8:$AI$43,4,FALSE) -> 1000 | AM34: 1 | AO34: =VLOOKUP(B34,'Exp_Co (YTD)'!$B$8:$AI$43,30,FALSE) -> 1000 | AP34: 1 | AR34: 0 | AS34: 0
B35: ='Exp_Co (YTD)'!B36 -> Exp J | E35: =VLOOKUP($B35,'Exp_Co (YTD)'!$B$8:$AI$43,15,FALSE) -> 0 | F35: 0 | H35: =VLOOKUP($B35,'Exp_Co (YTD)'!$B$8:$AI$43,14,FALSE) -> 0 | I35: 0 | K35: =VLOOKUP($B35,'Exp_Co (YTD)'!$B$8:$AI$43,13,FALSE) -> 0 | L35: 0 | N35: =VLOOKUP($B35,'Exp_Co (YTD)'!$B$8:$AI$43,12,FALSE) -> 1000 | O35: 1 | Q35: =VLOOKUP($B35,'Exp_Co (YTD)'!$B$8:$AI$43,11,FALSE) -> 1000 | R35: 1 | T35: =VLOOKUP($B35,'Exp_Co (YTD)'!$B$8:$AI$43,10,FALSE) -> 1000 | U35: 1 | W35: =VLOOKUP($B35,'Exp_Co (YTD)'!$B$8:$AI$43,9,FALSE) -> 1000 | X35: 1 | Z35: =VLOOKUP($B35,'Exp_Co (YTD)'!$B$8:$AI$43,8,FALSE) -> 1000 | AA35: 1 | AC35: =VLOOKUP($B35,'Exp_Co (YTD)'!$B$8:$AI$43,7,FALSE) -> 1000 | AD35: 1 | AF35: =VLOOKUP($B35,'Exp_Co (YTD)'!$B$8:$AI$43,6,FALSE) -> 1000 | AG35: 1 | AI35: =VLOOKUP($B35,'Exp_Co (YTD)'!$B$8:$AI$43,5,FALSE) -> 1000 | AJ35: 1 | AL35: =VLOOKUP($B35,'Exp_Co (YTD)'!$B$8:$AI$43,4,FALSE) -> 1000 | AM35: 1 | AO35: =VLOOKUP(B35,'Exp_Co (YTD)'!$B$8:$AI$43,30,FALSE) -> 1000 | AP35: 1 | AR35: 0 | AS35: 0
B36: ='Exp_Co (YTD)'!B37 -> Exp K | E36: =VLOOKUP($B36,'Exp_Co (YTD)'!$B$8:$AI$43,15,FALSE) -> 0 | F36: 0 | H36: =VLOOKUP($B36,'Exp_Co (YTD)'!$B$8:$AI$43,14,FALSE) -> 0 | I36: 0 | K36: =VLOOKUP($B36,'Exp_Co (YTD)'!$B$8:$AI$43,13,FALSE) -> 0 | L36: 0 | N36: =VLOOKUP($B36,'Exp_Co (YTD)'!$B$8:$AI$43,12,FALSE) -> 1000 | O36: 1 | Q36: =VLOOKUP($B36,'Exp_Co (YTD)'!$B$8:$AI$43,11,FALSE) -> 1000 | R36: 1 | T36: =VLOOKUP($B36,'Exp_Co (YTD)'!$B$8:$AI$43,10,FALSE) -> 1000 | U36: 1 | W36: =VLOOKUP($B36,'Exp_Co (YTD)'!$B$8:$AI$43,9,FALSE) -> 1000 | X36: 1 | Z36: =VLOOKUP($B36,'Exp_Co (YTD)'!$B$8:$AI$43,8,FALSE) -> 1000 | AA36: 1 | AC36: =VLOOKUP($B36,'Exp_Co (YTD)'!$B$8:$AI$43,7,FALSE) -> 1000 | AD36: 1 | AF36: =VLOOKUP($B36,'Exp_Co (YTD)'!$B$8:$AI$43,6,FALSE) -> 1000 | AG36: =ROUND(AF36/1000,0) -> 1 | AI36: =VLOOKUP($B36,'Exp_Co (YTD)'!$B$8:$AI$43,5,FALSE) -> 1000 | AJ36: 1 | AL36: =VLOOKUP($B36,'Exp_Co (YTD)'!$B$8:$AI$43,4,FALSE) -> 1000 | AM36: 1 | AO36: =VLOOKUP(B36,'Exp_Co (YTD)'!$B$8:$AI$43,30,FALSE) -> 1000 | AP36: 1 | AR36: 0 | AS36: 0
B37: ='Exp_Co (YTD)'!B38 -> Others | E37: =VLOOKUP($B37,'Exp_Co (YTD)'!$B$8:$AI$43,15,FALSE) -> 0 | F37: 0 | H37: =VLOOKUP($B37,'Exp_Co (YTD)'!$B$8:$AI$43,14,FALSE) -> 0 | I37: 0 | K37: =VLOOKUP($B37,'Exp_Co (YTD)'!$B$8:$AI$43,13,FALSE) -> 0 | L37: 0 | N37: =VLOOKUP($B37,'Exp_Co (YTD)'!$B$8:$AI$43,12,FALSE) -> 1000 | O37: 1 | Q37: =VLOOKUP($B37,'Exp_Co (YTD)'!$B$8:$AI$43,11,FALSE) -> 1000 | R37: 1 | T37: =VLOOKUP($B37,'Exp_Co (YTD)'!$B$8:$AI$43,10,FALSE) -> 1000 | U37: 1 | W37: =VLOOKUP($B37,'Exp_Co (YTD)'!$B$8:$AI$43,9,FALSE) -> 1000 | X37: 1 | Z37: =VLOOKUP($B37,'Exp_Co (YTD)'!$B$8:$AI$43,8,FALSE) -> 1000 | AA37: 1 | AC37: =VLOOKUP($B37,'Exp_Co (YTD)'!$B$8:$AI$43,7,FALSE) -> 1000 | AD37: 1 | AF37: =VLOOKUP($B37,'Exp_Co (YTD)'!$B$8:$AI$43,6,FALSE) -> 1000 | AG37: =ROUND(AF37/1000,0) -> 1 | AI37: =VLOOKUP($B37,'Exp_Co (YTD)'!$B$8:$AI$43,5,FALSE) -> 1000 | AJ37: 1 | AL37: =VLOOKUP($B37,'Exp_Co (YTD)'!$B$8:$AI$43,4,FALSE) -> 1000 | AM37: 1 | AO37: =VLOOKUP(B37,'Exp_Co (YTD)'!$B$8:$AI$43,30,FALSE) -> 1000 | AP37: 1 | AR37: 0 | AS37: 0
B38: Total Exp | E38: =VLOOKUP($B38,'Exp_Co (YTD)'!$B$8:$AI$43,15,FALSE) -> 0 | F38: 0 | H38: =VLOOKUP($B38,'Exp_Co (YTD)'!$B$8:$AI$43,14,FALSE) -> 0 | I38: 0 | K38: =VLOOKUP($B38,'Exp_Co (YTD)'!$B$8:$AI$43,13,FALSE) -> 0 | L38: 0 | N38: =VLOOKUP($B38,'Exp_Co (YTD)'!$B$8:$AI$43,12,FALSE) -> 10668456 | O38: 10668 | Q38: =VLOOKUP($B38,'Exp_Co (YTD)'!$B$8:$AI$43,11,FALSE) -> 10908999.86 | R38: 10909 | T38: =VLOOKUP($B38,'Exp_Co (YTD)'!$B$8:$AI$43,10,FALSE) -> 11000 | U38: 11 | W38: =VLOOKUP($B38,'Exp_Co (YTD)'!$B$8:$AI$43,9,FALSE) -> 11000 | X38: 11 | Z38: =VLOOKUP($B38,'Exp_Co (YTD)'!$B$8:$AI$43,8,FALSE) -> 11000 | AA38: 11 | AC38: =VLOOKUP($B38,'Exp_Co (YTD)'!$B$8:$AI$43,7,FALSE) -> 11000 | AD38: 11 | AF38: =VLOOKUP($B38,'Exp_Co (YTD)'!$B$8:$AI$43,6,FALSE) -> 11000 | AG38: =ROUND(AF38/1000,0) -> 11 | AI38: =VLOOKUP($B38,'Exp_Co (YTD)'!$B$8:$AI$43,5,FALSE) -> 11000 | AJ38: 11 | AL38: =VLOOKUP($B38,'Exp_Co (YTD)'!$B$8:$AI$43,4,FALSE) -> 11000 | AM38: 11 | AO38: =VLOOKUP(B38,'Exp_Co (YTD)'!$B$8:$AI$43,30,FALSE) -> 12000 | AP38: 12 | AR38: -241 | AS38: -0.02209185077
E39: =SUM(E26:E38) -> 0 | F39: =SUM(F26:F38) -> 0 | H39: =SUM(H26:H38) -> 0 | I39: =SUM(I26:I38) -> 0 | K39: =SUM(K26:K38) -> 0 | L39: =SUM(L26:L38) -> 0 | N39: =SUM(N26:N38) -> 21245912 | O39: =SUM(O26:O38) -> 21245 | Q39: =SUM(Q26:Q38) -> 21817999.72 | R39: =SUM(R26:R38) -> 21818 | T39: =SUM(T26:T38) -> 22000 | U39: =SUM(U26:U38) -> 22 | W39: =SUM(W26:W38) -> 22000 | X39: =SUM(X26:X38) -> 22 | Z39: =SUM(Z26:Z38) -> 22000 | AA39: =SUM(AA26:AA38) -> 22 | AC39: =SUM(AC26:AC38) -> 22000 | AD39: =SUM(AD26:AD38) -> 22 | AF39: =SUM(AF26:AF38) -> 22000 | AG39: =SUM(AG26:AG38) -> 22 | AI39: =SUM(AI26:AI38) -> 22000 | AJ39: =SUM(AJ26:AJ38) -> 22 | AL39: =SUM(AL26:AL38) -> 22000 | AM39: =SUM(AM26:AM38) -> 22 | AO39: =SUM(AO26:AO38) -> 24000 | AP39: =SUM(AP26:AP38) -> 24 | AR39: -573 | AS39: -0.02626271886
B41: 營運盈餘 | E41: =E24-E39 -> 0 | F41: =F24-F39 -> 0 | H41: =H24-H39 -> 0 | I41: =I24-I39 -> 0 | K41: =K24-K39 -> 0 | L41: =L24-L39 -> 0 | N41: =N24-N39 -> -19337912 | O41: =O24-O39 -> -19337 | Q41: =Q24-Q39 -> -19719999.72 | R41: =R24-R39 -> -19720 | T41: =T24-T39 -> -12000 | U41: =U24-U39 -> -12 | W41: =W24-W39 -> -12000 | X41: =X24-X39 -> -12 | Z41: =Z24-Z39 -> -12000 | AA41: =AA24-AA39 -> -12 | AC41: =AC24-AC39 -> -12000 | AD41: =AD24-AD39 -> -12 | AF41: =AF24-AF39 -> -12000 | AG41: =AG24-AG39 -> -10 | AI41: =AI24-AI39 -> -12000 | AJ41: =AJ24-AJ39 -> -12 | AL41: =AL24-AL39 -> -12000 | AM41: =AM24-AM39 -> -13 | AO41: =AO24-AO39 -> -15000 | AP41: =AP24-AP39 -> -15 | AR41: =O41-R41 -> 383 | AS41: =IF(R41=0,IF(O41=0,"N/A","100%"),AR41/R41) -> -0.01942190669 | AV41: PP22
B43: 還本金 | E43: =VLOOKUP($B43,'Exp_Co (YTD)'!$B$8:$AI$43,15,FALSE) -> 0 | F43: =ROUND(E43/1000,0) -> 0 | H43: =VLOOKUP($B43,'Exp_Co (YTD)'!$B$8:$AI$43,14,FALSE) -> 0 | I43: =ROUND(H43/1000,0) -> 0 | K43: =VLOOKUP($B43,'Exp_Co (YTD)'!$B$8:$AI$43,13,FALSE) -> 0 | L43: =ROUND(K43/1000,0) -> 0 | N43: =VLOOKUP($B43,'Exp_Co (YTD)'!$B$8:$AI$43,12,FALSE) -> 100000000 | O43: =ROUND(N43/1000,0) -> 100000 | Q43: =VLOOKUP($B43,'Exp_Co (YTD)'!$B$8:$AI$43,11,FALSE) -> 123456789 | R43: =ROUND(Q43/1000,0) -> 123457 | T43: =VLOOKUP($B43,'Exp_Co (YTD)'!$B$8:$AI$43,10,FALSE) -> 1000 | U43: =ROUND(T43/1000,0) -> 1 | W43: =VLOOKUP($B43,'Exp_Co (YTD)'!$B$8:$AI$43,9,FALSE) -> 1000 | X43: =ROUND(W43/1000,0) -> 1 | Z43: =VLOOKUP($B43,'Exp_Co (YTD)'!$B$8:$AI$43,8,FALSE) -> 1000 | AA43: =ROUND(Z43/1000,0) -> 1 | AC43: =VLOOKUP($B43,'Exp_Co (YTD)'!$B$8:$AI$43,7,FALSE) -> 1000 | AD43: =ROUND(AC43/1000,0) -> 1 | AF43: =VLOOKUP($B43,'Exp_Co (YTD)'!$B$8:$AI$43,6,FALSE) -> 1000 | AG43: =ROUND(AF43/1000,0) -> 1 | AI43: =VLOOKUP($B43,'Exp_Co (YTD)'!$B$8:$AI$43,5,FALSE) -> 1000 | AJ43: =ROUND(AI43/1000,0) -> 1 | AL43: =VLOOKUP($B43,'Exp_Co (YTD)'!$B$8:$AI$43,4,FALSE) -> 1000 | AM43: =ROUND(AL43/1000,0) -> 1 | AO43: =VLOOKUP(B43,'Exp_Co (YTD)'!$B$8:$AI$43,30,FALSE) -> 1000 | AP43: =ROUND(AO43/1000,0) -> 1 | AR43: =O43-R43 -> -23457 | AS43: =IF(R43=0,IF(O43=0,"N/A","100%"),AR43/R43) -> -0.190001377
B45: 利得稅支出 | E45: =VLOOKUP($B45,'Exp_Co (YTD)'!$B$8:$AI$45,15,FALSE) -> 0 | F45: =ROUND(E45/1000,0) -> 0 | H45: =VLOOKUP($B45,'Exp_Co (YTD)'!$B$8:$AI$45,14,FALSE) -> 0 | I45: =ROUND(H45/1000,0) -> 0 | K45: =VLOOKUP($B45,'Exp_Co (YTD)'!$B$8:$AI$47,13,FALSE) -> 0 | L45: =ROUND(K45/1000,0) -> 0 | N45: =VLOOKUP($B45,'Exp_Co (YTD)'!$B$8:$AI$45,12,FALSE) -> 0 | O45: =ROUND(N45/1000,0) -> 0 | Q45: =VLOOKUP($B45,'Exp_Co (YTD)'!$B$8:$AI$45,11,FALSE) -> 0 | R45: =ROUND(Q45/1000,0) -> 0 | T45: =VLOOKUP($B45,'Exp_Co (YTD)'!$B$8:$AI$45,10,FALSE) -> 0 | U45: =ROUND(T45/1000,0) -> 0 | W45: =VLOOKUP($B45,'Exp_Co (YTD)'!$B$8:$AI$45,9,FALSE) -> 0 | X45: =ROUND(W45/1000,0) -> 0 | Z45: =VLOOKUP($B45,'Exp_Co (YTD)'!$B$8:$AI$45,8,FALSE) -> 0 | AA45: =ROUND(Z45/1000,0) -> 0 | AC45: =VLOOKUP($B45,'Exp_Co (YTD)'!$B$8:$AI$45,7,FALSE) -> 0 | AD45: =ROUND(AC45/1000,0) -> 0 | AF45: =VLOOKUP($B45,'Exp_Co (YTD)'!$B$8:$AI$45,6,FALSE) -> 0 | AG45: =ROUND(AF45/1000,0) -> 0 | AI45: =VLOOKUP($B45,'Exp_Co (YTD)'!$B$8:$AI$45,5,FALSE) -> 0 | AJ45: =ROUND(AI45/1000,0) -> 0 | AL45: =VLOOKUP($B45,'Exp_Co (YTD)'!$B$8:$AI$45,4,FALSE) -> 0 | AM45: =ROUND(AL45/1000,0) -> 0 | AO45: =VLOOKUP(B45,'Exp_Co (YTD)'!$B$8:$AI$45,30,FALSE) -> 0 | AP45: =ROUND(AO45/1000,0) -> 0 | AR45: =L45-O45 -> 0 | AS45: =IF(R45=0,IF(O45=0,"N/A","100%"),AR45/R45) -> N/A
Q46: =Q41-'Exp_Co (YTD)'!L41 -> -10908999.86

Sheet Exp_private (MTM)
A1: 2022年12月份收入及付款記錄 - 個人
A2: 與上月比較
B5: MONTH | F5: 3月 | I5: 2月 | L5: 1月 | O5: 12月 | R5: 11月 | U5: 10月 | X5: 9月 | AA5: 8月 | AD5: 7月 | AG5: 6月 | AJ5: 5月 | AM5: 4月 | AP5: 3月 | AR5: 增/(減)
C6: 附註 | F6: HK$'000 | I6: HK$'000 | L6: HK$'000 | O6: HK$'000 | R6: HK$'000 | U6: HK$'000 | X6: HK$'000 | AA6: HK$'000 | AD6: HK$'000 | AG6: HK$'000 | AJ6: HK$'000 | AM6: HK$'000 | AP6: HK$'000 | AR6: HK$'000 | AS6: %
B8: Private income A | E8: =VLOOKUP($B8,'Exp_private (YTD)'!$B$8:$AH$30,15,FALSE) -> 0 | F8: =ROUND(E8/1000,0) -> 0 | H8: =VLOOKUP($B8,'Exp_private (YTD)'!$B$8:$AH$30,14,FALSE) -> 0 | I8: =ROUND(H8/1000,0) -> 0 | K8: =VLOOKUP($B8,'Exp_private (YTD)'!$B$8:$AH$30,13,FALSE) -> 0 | L8: =ROUND(K8/1000,0) -> 0 | N8: =VLOOKUP($B8,'Exp_private (YTD)'!$B$8:$AH$30,12,FALSE) -> 990000 | O8: =ROUND(N8/1000,0) -> 990 | Q8: =VLOOKUP($B8,'Exp_private (YTD)'!$B$8:$AH$30,11,FALSE) -> 1200000 | R8: =ROUND(Q8/1000,0) -> 1200 | T8: =VLOOKUP($B8,'Exp_private (YTD)'!$B$8:$AH$30,10,FALSE) -> 1000 | U8: =ROUND(T8/1000,0) -> 1 | W8: =VLOOKUP($B8,'Exp_private (YTD)'!$B$8:$AH$30,9,FALSE) -> 1000 | X8: =ROUND(W8/1000,0) -> 1 | Z8: =VLOOKUP($B8,'Exp_private (YTD)'!$B$8:$AH$30,8,FALSE) -> 1000 | AA8: =ROUND(Z8/1000,0) -> 1 | AC8: =VLOOKUP($B8,'Exp_private (YTD)'!$B$8:$AH$30,7,FALSE) -> 1000 | AD8: =ROUND(AC8/1000,0) -> 1 | AF8: =VLOOKUP($B8,'Exp_private (YTD)'!$B$8:$AH$30,6,FALSE) -> 1000 | AG8: =ROUND(AF8/1000,0) -> 1 | AI8: =VLOOKUP($B8,'Exp_private (YTD)'!$B$8:$AH$30,5,FALSE) -> 1000 | AJ8: =ROUND(AI8/1000,0) -> 1 | AL8: =VLOOKUP($B8,'Exp_private (YTD)'!$B$8:$AH$30,4,FALSE) -> 1000 | AM8: =ROUND(AL8/1000,0) -> 1 | AO8: =VLOOKUP(B8,'Exp_private (YTD)'!$B$8:$AH$30,30,FALSE) -> 1000 | AP8: =ROUND(AO8/1000,0) -> 1 | AR8: =O8-R8 -> -210 | AS8: =IF(R8=0,IF(O8=0,"N/A","100%"),AR8/R8) -> -0.175
B9: Private income B | E9: =VLOOKUP($B9,'Exp_private (YTD)'!$B$8:$AH$30,15,FALSE) -> 0 | F9: =ROUND(E9/1000,0) -> 0 | H9: =VLOOKUP($B9,'Exp_private (YTD)'!$B$8:$AH$30,14,FALSE) -> 0 | I9: =ROUND(H9/1000,0) -> 0 | K9: =VLOOKUP($B9,'Exp_private (YTD)'!$B$8:$AH$30,13,FALSE) -> 0 | L9: =ROUND(K9/1000,0) -> 0 | N9: =VLOOKUP($B9,'Exp_private (YTD)'!$B$8:$AH$30,12,FALSE) -> 1000 | O9: =ROUND(N9/1000,0) -> 1 | Q9: =VLOOKUP($B9,'Exp_private (YTD)'!$B$8:$AH$30,11,FALSE) -> 1000 | R9: =ROUND(Q9/1000,0) -> 1 | T9: =VLOOKUP($B9,'Exp_private (YTD)'!$B$8:$AH$30,10,FALSE) -> 1000 | U9: =ROUND(T9/1000,0) -> 1 | W9: =VLOOKUP($B9,'Exp_private (YTD)'!$B$8:$AH$30,9,FALSE) -> 1000 | X9: =ROUND(W9/1000,0) -> 1 | Z9: =VLOOKUP($B9,'Exp_private (YTD)'!$B$8:$AH$30,8,FALSE) -> 1000 | AA9: =ROUND(Z9/1000,0) -> 1 | AC9: =VLOOKUP($B9,'Exp_private (YTD)'!$B$8:$AH$30,7,FALSE) -> 1000 | AD9: =ROUND(AC9/1000,0) -> 1 | AF9: =VLOOKUP($B9,'Exp_private (YTD)'!$B$8:$AH$30,6,FALSE) -> 1000 | AG9: =ROUND(AF9/1000,0) -> 1 | AI9: =VLOOKUP($B9,'Exp_private (YTD)'!$B$8:$AH$30,5,FALSE) -> 1000 | AJ9: =ROUND(AI9/1000,0) -> 1 | AL9: =VLOOKUP($B9,'Exp_private (YTD)'!$B$8:$AH$30,4,FALSE) -> 1000 | AM9: =ROUND(AL9/1000,0) -> 1 | AO9: =VLOOKUP(B9,'Exp_private (YTD)'!$B$8:$AH$30,30,FALSE) -> 1000 | AP9: =ROUND(AO9/1000,0) -> 1 | AR9: 0 | AS9: 0
B10: Private income C | E10: =VLOOKUP($B10,'Exp_private (YTD)'!$B$8:$AH$30,15,FALSE) -> 0 | F10: =ROUND(E10/1000,0) -> 0 | H10: =VLOOKUP($B10,'Exp_private (YTD)'!$B$8:$AH$30,14,FALSE) -> 0 | I10: =ROUND(H10/1000,0) -> 0 | K10: =VLOOKUP($B10,'Exp_private (YTD)'!$B$8:$AH$30,13,FALSE) -> 0 | L10: =ROUND(K10/1000,0) -> 0 | N10: =VLOOKUP($B10,'Exp_private (YTD)'!$B$8:$AH$30,12,FALSE) -> 1000 | O10: =ROUND(N10/1000,0) -> 1 | Q10: =VLOOKUP($B10,'Exp_private (YTD)'!$B$8:$AH$30,11,FALSE) -> 1000 | R10: =ROUND(Q10/1000,0) -> 1 | T10: =VLOOKUP($B10,'Exp_private (YTD)'!$B$8:$AH$30,10,FALSE) -> 1000 | U10: =ROUND(T10/1000,0) -> 1 | W10: =VLOOKUP($B10,'Exp_private (YTD)'!$B$8:$AH$30,9,FALSE) -> 1000 | X10: =ROUND(W10/1000,0) -> 1 | Z10: =VLOOKUP($B10,'Exp_private (YTD)'!$B$8:$AH$30,8,FALSE) -> 1000 | AA10: =ROUND(Z10/1000,0) -> 1 | AC10: =VLOOKUP($B10,'Exp_private (YTD)'!$B$8:$AH$30,7,FALSE) -> 1000 | AD10: =ROUND(AC10/1000,0) -> 1 | AF10: =VLOOKUP($B10,'Exp_private (YTD)'!$B$8:$AH$30,6,FALSE) -> 1000 | AG10: =ROUND(AF10/1000,0) -> 1 | AI10: =VLOOKUP($B10,'Exp_private (YTD)'!$B$8:$AH$30,5,FALSE) -> 1000 | AJ10: =ROUND(AI10/1000,0) -> 1 | AL10: =VLOOKUP($B10,'Exp_private (YTD)'!$B$8:$AH$30,4,FALSE) -> 1000 | AM10: =ROUND(AL10/1000,0) -> 1 | AO10: =VLOOKUP(B10,'Exp_private (YTD)'!$B$8:$AH$30,30,FALSE) -> 1000 | AP10: =ROUND(AO10/1000,0) -> 1 | AR10: 0 | AS10: 0
B11: Private income D | E11: =VLOOKUP($B11,'Exp_private (YTD)'!$B$11:$AH$30,15,FALSE) -> 0 | F11: =ROUND(E11/1000,0) -> 0 | H11: =VLOOKUP($B11,'Exp_private (YTD)'!$B$11:$AH$30,14,FALSE) -> 0 | I11: =ROUND(H11/1000,0) -> 0 | K11: =VLOOKUP($B11,'Exp_private (YTD)'!$B$11:$AH$30,13,FALSE) -> 0 | L11: =ROUND(K11/1000,0) -> 0 | N11: =VLOOKUP($B11,'Exp_private (YTD)'!$B$11:$AH$30,12,FALSE) -> 0 | O11: =ROUND(N11/1000,0) -> 0 | Q11: =VLOOKUP($B11,'Exp_private (YTD)'!$B$9:$AH$30,11,FALSE) -> 0 | R11: =ROUND(Q11/1000,0) -> 0 | T11: =VLOOKUP($B11,'Exp_private (YTD)'!$B$9:$AH$30,10,FALSE) -> 0 | U11: =ROUND(T11/1000,0) -> 0 | W11: =VLOOKUP($B11,'Exp_private (YTD)'!$B$9:$AH$30,9,FALSE) -> 0 | X11: =ROUND(W11/1000,0) -> 0 | Z11: =VLOOKUP($B11,'Exp_private (YTD)'!$B$9:$AH$30,8,FALSE) -> 0 | AA11: =ROUND(Z11/1000,0) -> 0 | AC11: =VLOOKUP($B11,'Exp_private (YTD)'!$B$9:$AH$30,7,FALSE) -> 0 | AD11: =ROUND(AC11/1000,0) -> 0 | AF11: =VLOOKUP($B11,'Exp_private (YTD)'!$B$9:$AH$30,6,FALSE) -> 0 | AG11: =ROUND(AF11/1000,0) -> 0 | AI11: =VLOOKUP($B11,'Exp_private (YTD)'!$B$9:$AH$30,5,FALSE) -> 0 | AJ11: =ROUND(AI11/1000,0) -> 0 | AL11: =VLOOKUP($B11,'Exp_private (YTD)'!$B$8:$AH$30,4,FALSE) -> 0 | AM11: =ROUND(AL11/1000,0) -> 0 | AO11: =VLOOKUP(B11,'Exp_private (YTD)'!$B$8:$AH$30,30,FALSE) -> 0 | AP11: =ROUND(AO11/1000,0) -> 0 | AR11: 0 | AS11: N/A
B12: Private income E | E12: =VLOOKUP($B12,'Exp_private (YTD)'!$B$11:$AH$30,15,FALSE) -> 0 | F12: =ROUND(E12/1000,0) -> 0 | H12: =VLOOKUP($B12,'Exp_private (YTD)'!$B$11:$AH$30,14,FALSE) -> 0 | I12: 0 | K12: =VLOOKUP($B12,'Exp_private (YTD)'!$B$11:$AH$30,13,FALSE) -> 0 | L12: 0 | N12: =VLOOKUP($B12,'Exp_private (YTD)'!$B$11:$AH$30,12,FALSE) -> 0 | O12: 0 | Q12: =VLOOKUP($B12,'Exp_private (YTD)'!$B$9:$AH$30,11,FALSE) -> 0 | R12: 0 | T12: =VLOOKUP($B12,'Exp_private (YTD)'!$B$9:$AH$30,10,FALSE) -> 0 | U12: 0 | W12: =VLOOKUP($B12,'Exp_private (YTD)'!$B$9:$AH$30,9,FALSE) -> 0 | X12: 0 | Z12: =VLOOKUP($B12,'Exp_private (YTD)'!$B$9:$AH$30,8,FALSE) -> 0 | AA12: 0 | AC12: =VLOOKUP($B12,'Exp_private (YTD)'!$B$9:$AH$30,7,FALSE) -> 0 | AD12: 0 | AF12: =VLOOKUP($B12,'Exp_private (YTD)'!$B$9:$AH$30,6,FALSE) -> 0 | AG12: 0 | AI12: =VLOOKUP($B12,'Exp_private (YTD)'!$B$9:$AH$30,5,FALSE) -> 0 | AJ12: 0 | AL12: =VLOOKUP($B12,'Exp_private (YTD)'!$B$8:$AH$30,4,FALSE) -> 0 | AM12: 0 | AO12: =VLOOKUP(B12,'Exp_private (YTD)'!$B$8:$AH$30,30,FALSE) -> 0 | AP12: 0 | AR12: 0 | AS12: N/A
B13: Private income F | H13: =VLOOKUP($B13,'Exp_private (YTD)'!$B$11:$AH$30,14,FALSE) -> 0 | I13: 0 | K13: =VLOOKUP($B13,'Exp_private (YTD)'!$B$11:$AH$30,13,FALSE) -> 0 | L13: 0 | N13: =VLOOKUP($B13,'Exp_private (YTD)'!$B$11:$AH$30,12,FALSE) -> 0 | O13: 0 | Q13: =VLOOKUP($B13,'Exp_private (YTD)'!$B$9:$AH$30,11,FALSE) -> 0 | R13: 0 | T13: =VLOOKUP($B13,'Exp_private (YTD)'!$B$9:$AH$30,10,FALSE) -> 0 | U13: 0 | W13: =VLOOKUP($B13,'Exp_private (YTD)'!$B$9:$AH$30,9,FALSE) -> 0 | X13: 0 | Z13: =VLOOKUP($B13,'Exp_private (YTD)'!$B$9:$AH$30,8,FALSE) -> 0 | AA13: 0 | AC13: =VLOOKUP($B13,'Exp_private (YTD)'!$B$9:$AH$30,7,FALSE) -> 0 | AD13: 0 | AF13: =VLOOKUP($B13,'Exp_private (YTD)'!$B$9:$AH$30,6,FALSE) -> 0 | AG13: 0 | AI13: =VLOOKUP($B13,'Exp_private (YTD)'!$B$9:$AH$30,5,FALSE) -> 0 | AJ13: 0 | AL13: =VLOOKUP($B13,'Exp_private (YTD)'!$B$8:$AH$30,4,FALSE) -> 0 | AM13: 0 | AO13: =VLOOKUP(B13,'Exp_private (YTD)'!$B$8:$AH$30,30,FALSE) -> 0 | AP13: 0 | AR13: 0 | AS13: N/A
B14: Private income | E14: =SUM(E8:E13) -> 0 | F14: =SUM(F8:F13) -> 0 | H14: =SUM(H8:H13) -> 0 | I14: =SUM(I8:I13) -> 0 | K14: =SUM(K8:K13) -> 0 | L14: =SUM(L8:L13) -> 0 | N14: =SUM(N8:N13) -> 992000 | O14: =SUM(O8:O13) -> 992 | Q14: =SUM(Q8:Q13) -> 1202000 | R14: =SUM(R8:R13) -> 1202 | T14: =SUM(T8:T13) -> 3000 | U14: =SUM(U8:U13) -> 3 | W14: =SUM(W8:W13) -> 3000 | X14: =SUM(X8:X13) -> 3 | Z14: =SUM(Z8:Z13) -> 3000 | AA14: =SUM(AA8:AA13) -> 3 | AC14: =SUM(AC8:AC13) -> 3000 | AD14: =SUM(AD8:AD13) -> 3 | AF14: =SUM(AF8:AF13) -> 3000 | AG14: =SUM(AG8:AG13) -> 3 | AI14: =SUM(AI8:AI13) -> 3000 | AJ14: =SUM(AJ8:AJ13) -> 3 | AL14: =SUM(AL9:AL13) -> 2000 | AM14: =SUM(AM8:AM13) -> 3 | AO14: =SUM(AO8:AO13) -> 3000 | AP14: =SUM(AP9:AP13) -> 2 | AR14: -210 | AS14: -0.1747088186
B16: Private Exp A | E16: =VLOOKUP($B16,'Exp_private (YTD)'!$B$14:$AH$30,15,FALSE) -> 0 | F16: =ROUND(E16/1000,0) -> 0 | H16: =VLOOKUP($B16,'Exp_private (YTD)'!$B$14:$AH$30,14,FALSE) -> 0 | I16: =ROUND(H16/1000,0) -> 0 | K16: =VLOOKUP($B16,'Exp_private (YTD)'!$B$14:$AH$30,13,FALSE) -> 0 | L16: =ROUND(K16/1000,0) -> 0 | N16: =VLOOKUP($B16,'Exp_private (YTD)'!$B$14:$AH$30,12,FALSE) -> 996000 | O16: =ROUND(N16/1000,0) -> 996 | Q16: =VLOOKUP($B16,'Exp_private (YTD)'!$B$14:$AH$30,11,FALSE) -> 1000000 | R16: =ROUND(Q16/1000,0) -> 1000 | T16: =VLOOKUP($B16,'Exp_private (YTD)'!$B$14:$AH$30,10,FALSE) -> 1000 | U16: =ROUND(T16/1000,0) -> 1 | W16: =VLOOKUP($B16,'Exp_private (YTD)'!$B$14:$AH$30,9,FALSE) -> 1000 | X16: =ROUND(W16/1000,0) -> 1 | Z16: =VLOOKUP($B16,'Exp_private (YTD)'!$B$14:$AH$30,8,FALSE) -> 1000 | AA16: =ROUND(Z16/1000,0) -> 1 | AC16: =VLOOKUP($B16,'Exp_private (YTD)'!$B$11:$AH$30,7,FALSE) -> 1000 | AD16: =ROUND(AC16/1000,0) -> 1 | AF16: =VLOOKUP($B16,'Exp_private (YTD)'!$B$11:$AH$30,6,FALSE) -> 1000 | AG16: =ROUND(AF16/1000,0) -> 1 | AI16: =VLOOKUP($B16,'Exp_private (YTD)'!$B$8:$AH$30,5,FALSE) -> 1000 | AJ16: =ROUND(AI16/1000,0) -> 1 | AL16: =VLOOKUP($B16,'Exp_private (YTD)'!$B$8:$AH$30,4,FALSE) -> 1000 | AM16: =ROUND(AL16/1000,0) -> 1 | AO16: =VLOOKUP(B16,'Exp_private (YTD)'!$B$8:$AH$30,30,FALSE) -> 1000 | AP16: =ROUND(AO16/1000,0) -> 1 | AR16: =O16-R16 -> -4 | AS16: =IF(R16=0,IF(O16=0,"N/A","100%"),AR16/R16) -> -0.004
B17: Private Exp B | E17: =VLOOKUP($B17,'Exp_private (YTD)'!$B$14:$AH$30,15,FALSE) -> 0 | F17: 0 | H17: =VLOOKUP($B17,'Exp_private (YTD)'!$B$14:$AH$30,14,FALSE) -> 0 | I17: 0 | K17: =VLOOKUP($B17,'Exp_private (YTD)'!$B$14:$AH$30,13,FALSE) -> 0 | L17: 0 | N17: =VLOOKUP($B17,'Exp_private (YTD)'!$B$14:$AH$30,12,FALSE) -> 11000000 | O17: 11000 | Q17: =VLOOKUP($B17,'Exp_private (YTD)'!$B$14:$AH$30,11,FALSE) -> 1000000 | R17: 1000 | T17: =VLOOKUP($B17,'Exp_private (YTD)'!$B$14:$AH$30,10,FALSE) -> 1000 | U17: 1 | W17: =VLOOKUP($B17,'Exp_private (YTD)'!$B$14:$AH$30,9,FALSE) -> 1000 | X17: =ROUND(W17/1000,0) -> 1 | Z17: =VLOOKUP($B17,'Exp_private (YTD)'!$B$14:$AH$30,8,FALSE) -> 1000 | AA17: 1 | AC17: =VLOOKUP($B17,'Exp_private (YTD)'!$B$11:$AH$30,7,FALSE) -> 1000 | AD17: 1 | AF17: =VLOOKUP($B17,'Exp_private (YTD)'!$B$11:$AH$30,6,FALSE) -> 1000 | AG17: 1 | AI17: =VLOOKUP($B17,'Exp_private (YTD)'!$B$8:$AH$30,5,FALSE) -> 1000 | AJ17: 1 | AL17: =VLOOKUP($B17,'Exp_private (YTD)'!$B$8:$AH$30,4,FALSE) -> 1000 | AM17: 1 | AO17: =VLOOKUP(B17,'Exp_private (YTD)'!$B$8:$AH$30,30,FALSE) -> 1000 | AP17: 1 | AR17: 10000 | AS17: 10
B18: Private Exp C | C18: 1 | E18: =VLOOKUP($B18,'Exp_private (YTD)'!$B$14:$AH$30,15,FALSE) -> 0 | F18: 0 | H18: =VLOOKUP($B18,'Exp_private (YTD)'!$B$14:$AH$30,14,FALSE) -> 0 | I18: 0 | K18: =VLOOKUP($B18,'Exp_private (YTD)'!$B$14:$AH$30,13,FALSE) -> 0 | L18: 0 | N18: =VLOOKUP($B18,'Exp_private (YTD)'!$B$14:$AH$30,12,FALSE) -> 2000 | O18: 2 | Q18: =VLOOKUP($B18,'Exp_private (YTD)'!$B$14:$AH$30,11,FALSE) -> 990 | R18: 1 | T18: =VLOOKUP($B18,'Exp_private (YTD)'!$B$14:$AH$30,10,FALSE) -> 1000 | U18: 1 | W18: =VLOOKUP($B18,'Exp_private (YTD)'!$B$14:$AH$30,9,FALSE) -> 1000 | X18: 0 | Z18: =VLOOKUP($B18,'Exp_private (YTD)'!$B$14:$AH$30,8,FALSE) -> 1000 | AA18: 1 | AC18: =VLOOKUP($B18,'Exp_private (YTD)'!$B$11:$AH$30,7,FALSE) -> 1000 | AD18: 1 | AF18: =VLOOKUP($B18,'Exp_private (YTD)'!$B$11:$AH$30,6,FALSE) -> 0 | AG18: 0 | AI18: =VLOOKUP($B18,'Exp_private (YTD)'!$B$8:$AH$30,5,FALSE) -> 0 | AJ18: 0 | AL18: =VLOOKUP($B18,'Exp_private (YTD)'!$B$8:$AH$30,4,FALSE) -> 1000 | AM18: 1 | AO18: =VLOOKUP(B18,'Exp_private (YTD)'!$B$8:$AH$30,30,FALSE) -> 1000 | AP18: 1 | AR18: 1 | AS18: 1
B19: Private Exp D | C19: 2 | E19: =VLOOKUP($B19,'Exp_private (YTD)'!$B$14:$AH$30,15,FALSE) -> 0 | F19: 0 | H19: =VLOOKUP($B19,'Exp_private (YTD)'!$B$14:$AH$30,14,FALSE) -> 0 | I19: 0 | K19: =VLOOKUP($B19,'Exp_private (YTD)'!$B$14:$AH$30,13,FALSE) -> 0 | L19: 0 | N19: =VLOOKUP($B19,'Exp_private (YTD)'!$B$14:$AH$30,12,FALSE) -> 990 | O19: 1 | Q19: =VLOOKUP($B19,'Exp_private (YTD)'!$B$14:$AH$30,11,FALSE) -> 1000 | R19: 1 | T19: =VLOOKUP($B19,'Exp_private (YTD)'!$B$14:$AH$30,10,FALSE) -> 1000 | U19: 1 | W19: =VLOOKUP($B19,'Exp_private (YTD)'!$B$14:$AH$30,9,FALSE) -> 1000 | X19: =ROUND(W19/1000,0) -> 1 | Z19: =VLOOKUP($B19,'Exp_private (YTD)'!$B$14:$AH$30,8,FALSE) -> 1000 | AA19: 1 | AC19: =VLOOKUP($B19,'Exp_private (YTD)'!$B$11:$AH$30,7,FALSE) -> 1000 | AD19: 1 | AF19: =VLOOKUP($B19,'Exp_private (YTD)'!$B$11:$AH$30,6,FALSE) -> 1000 | AG19: 1 | AI19: =VLOOKUP($B19,'Exp_private (YTD)'!$B$8:$AH$30,5,FALSE) -> 1000 | AJ19: 1 | AL19: =VLOOKUP($B19,'Exp_private (YTD)'!$B$8:$AH$30,4,FALSE) -> 1000 | AM19: 1 | AO19: =VLOOKUP(B19,'Exp_private (YTD)'!$B$8:$AH$30,30,FALSE) -> 1000 | AP19: 1 | AR19: 0 | AS19: 0
B20: Private Exp E | E20: =VLOOKUP($B20,'Exp_private (YTD)'!$B$14:$AH$30,15,FALSE) -> 0 | F20: 0 | H20: =VLOOKUP($B20,'Exp_private (YTD)'!$B$14:$AH$30,14,FALSE) -> 0 | I20: 0 | K20: =VLOOKUP($B20,'Exp_private (YTD)'!$B$14:$AH$30,13,FALSE) -> 0 | L20: 0 | N20: =VLOOKUP($B20,'Exp_private (YTD)'!$B$14:$AH$30,12,FALSE) -> 0 | O20: 0 | Q20: =VLOOKUP($B20,'Exp_private (YTD)'!$B$14:$AH$30,11,FALSE) -> 1000 | R20: 1 | T20: =VLOOKUP($B20,'Exp_private (YTD)'!$B$14:$AH$30,10,FALSE) -> 1000 | U20: 1 | W20: =VLOOKUP($B20,'Exp_private (YTD)'!$B$14:$AH$30,9,FALSE) -> 1000 | X20: 1 | Z20: =VLOOKUP($B20,'Exp_private (YTD)'!$B$14:$AH$30,8,FALSE) -> 1000 | AA20: 1 | AC20: =VLOOKUP($B20,'Exp_private (YTD)'!$B$11:$AH$30,7,FALSE) -> 1000 | AD20: 1 | AF20: =VLOOKUP($B20,'Exp_private (YTD)'!$B$11:$AH$30,6,FALSE) -> 1000 | AG20: 1 | AI20: =VLOOKUP($B20,'Exp_private (YTD)'!$B$8:$AH$30,5,FALSE) -> 1000 | AJ20: 1 | AL20: =VLOOKUP($B20,'Exp_private (YTD)'!$B$8:$AH$30,4,FALSE) -> 1000 | AM20: 1 | AO20: =VLOOKUP(B20,'Exp_private (YTD)'!$B$8:$AH$30,30,FALSE) -> 1000 | AP20: 1 | AR20: -1 | AS20: -1
B21: Private Exp F | C21: 3 | E21: =VLOOKUP($B21,'Exp_private (YTD)'!$B$14:$AH$30,15,FALSE) -> 0 | F21: =ROUND(E21/1000,0) -> 0 | H21: =VLOOKUP($B21,'Exp_private (YTD)'!$B$14:$AH$30,14,FALSE) -> 0 | I21: =ROUND(H21/1000,0) -> 0 | K21: =VLOOKUP($B21,'Exp_private (YTD)'!$B$14:$AH$30,13,FALSE) -> 0 | L21: =ROUND(K21/1000,0) -> 0 | N21: =VLOOKUP($B21,'Exp_private (YTD)'!$B$14:$AH$30,12,FALSE) -> 0 | O21: =ROUND(N21/1000,0) -> 0 | Q21: =VLOOKUP($B21,'Exp_private (YTD)'!$B$14:$AH$30,11,FALSE) -> 0 | R21: =ROUND(Q21/1000,0) -> 0 | T21: =VLOOKUP($B21,'Exp_private (YTD)'!$B$14:$AH$30,10,FALSE) -> 1000 | U21: =ROUND(T21/1000,0) -> 1 | W21: =VLOOKUP($B21,'Exp_private (YTD)'!$B$14:$AH$30,9,FALSE) -> 1000 | X21: =ROUND(W21/1000,0) -> 1 | Z21: =VLOOKUP($B21,'Exp_private (YTD)'!$B$14:$AH$30,8,FALSE) -> 1000 | AA21: =ROUND(Z21/1000,0) -> 1 | AC21: =VLOOKUP($B21,'Exp_private (YTD)'!$B$11:$AH$30,7,FALSE) -> 1000 | AD21: =ROUND(AC21/1000,0) -> 1 | AF21: =VLOOKUP($B21,'Exp_private (YTD)'!$B$11:$AH$30,6,FALSE) -> 1000 | AG21: =ROUND(AF21/1000,0) -> 1 | AI21: =VLOOKUP($B21,'Exp_private (YTD)'!$B$8:$AH$30,5,FALSE) -> 1000 | AJ21: =ROUND(AI21/1000,0) -> 1 | AL21: =VLOOKUP($B21,'Exp_private (YTD)'!$B$8:$AH$30,4,FALSE) -> 1000 | AM21: =ROUND(AL21/1000,0) -> 1 | AO21: =VLOOKUP(B21,'Exp_private (YTD)'!$B$8:$AH$30,30,FALSE) -> 1000 | AP21: =ROUND(AO21/1000,0) -> 1 | AR21: =O21-R21 -> 0 | AS21: =IF(R21=0,IF(O21=0,"N/A","100%"),AR21/R21) -> N/A
B22: Private Exp G | C22: 3 | E22: =VLOOKUP($B22,'Exp_private (YTD)'!$B$14:$AH$30,15,FALSE) -> 0 | F22: 0 | H22: =VLOOKUP($B22,'Exp_private (YTD)'!$B$14:$AH$30,14,FALSE) -> 0 | I22: 0 | K22: =VLOOKUP($B22,'Exp_private (YTD)'!$B$14:$AH$30,13,FALSE) -> 0 | L22: 0 | N22: =VLOOKUP($B22,'Exp_private (YTD)'!$B$14:$AH$30,12,FALSE) -> 1000 | O22: 1 | Q22: =VLOOKUP($B22,'Exp_private (YTD)'!$B$14:$AH$30,11,FALSE) -> 0 | R22: 0 | T22: =VLOOKUP($B22,'Exp_private (YTD)'!$B$14:$AH$30,10,FALSE) -> 1000 | U22: 1 | W22: =VLOOKUP($B22,'Exp_private (YTD)'!$B$14:$AH$30,9,FALSE) -> 1000 | X22: 1 | Z22: =VLOOKUP($B22,'Exp_private (YTD)'!$B$14:$AH$30,8,FALSE) -> 1000 | AA22: 1 | AC22: =VLOOKUP($B22,'Exp_private (YTD)'!$B$11:$AH$30,7,FALSE) -> 1000 | AD22: 1 | AF22: =VLOOKUP($B22,'Exp_private (YTD)'!$B$11:$AH$30,6,FALSE) -> 1000 | AG22: 1 | AI22: =VLOOKUP($B22,'Exp_private (YTD)'!$B$8:$AH$30,5,FALSE) -> 1000 | AJ22: 1 | AL22: =VLOOKUP($B22,'Exp_private (YTD)'!$B$8:$AH$30,4,FALSE) -> 1000 | AM22: 1 | AO22: =VLOOKUP(B22,'Exp_private (YTD)'!$B$8:$AH$30,30,FALSE) -> 1000 | AP22: 1 | AR22: 1 | AS22: 100%
B23: Private Exp H | C23: 3 | E23: =VLOOKUP($B23,'Exp_private (YTD)'!$B$14:$AH$30,15,FALSE) -> 0 | F23: 0 | H23: =VLOOKUP($B23,'Exp_private (YTD)'!$B$14:$AH$30,14,FALSE) -> 0 | I23: 0 | K23: =VLOOKUP($B23,'Exp_private (YTD)'!$B$14:$AH$30,13,FALSE) -> 0 | L23: 0 | N23: =VLOOKUP($B23,'Exp_private (YTD)'!$B$14:$AH$30,12,FALSE) -> 700000 | O23: 700 | Q23: =VLOOKUP($B23,'Exp_private (YTD)'!$B$14:$AH$30,11,FALSE) -> 999000 | R23: 999 | T23: =VLOOKUP($B23,'Exp_private (YTD)'!$B$14:$AH$30,10,FALSE) -> 1000 | U23: 1 | W23: =VLOOKUP($B23,'Exp_private (YTD)'!$B$14:$AH$30,9,FALSE) -> 1000 | X23: 1 | Z23: =VLOOKUP($B23,'Exp_private (YTD)'!$B$14:$AH$30,8,FALSE) -> 1000 | AA23: 1 | AC23: =VLOOKUP($B23,'Exp_private (YTD)'!$B$11:$AH$30,7,FALSE) -> 1000 | AD23: 1 | AF23: =VLOOKUP($B23,'Exp_private (YTD)'!$B$11:$AH$30,6,FALSE) -> 1000 | AG23: 1 | AI23: =VLOOKUP($B23,'Exp_private (YTD)'!$B$8:$AH$30,5,FALSE) -> 1000 | AJ23: 1 | AL23: =VLOOKUP($B23,'Exp_private (YTD)'!$B$8:$AH$30,4,FALSE) -> 1000 | AM23: 1 | AO23: =VLOOKUP(B23,'Exp_private (YTD)'!$B$8:$AH$30,30,FALSE) -> 1000 | AP23: 1 | AR23: -299 | AS23: -0.2992992993
B24: Private Exp I | C24: 3 | E24: =VLOOKUP($B24,'Exp_private (YTD)'!$B$14:$AH$30,15,FALSE) -> 0 | F24: 0 | H24: =VLOOKUP($B24,'Exp_private (YTD)'!$B$14:$AH$30,14,FALSE) -> 0 | I24: 0 | K24: =VLOOKUP($B24,'Exp_private (YTD)'!$B$14:$AH$30,13,FALSE) -> 0 | L24: 0 | N24: =VLOOKUP($B24,'Exp_private (YTD)'!$B$14:$AH$30,12,FALSE) -> 50000 | O24: 50 | Q24: =VLOOKUP($B24,'Exp_private (YTD)'!$B$14:$AH$30,11,FALSE) -> 40000 | R24: 40 | T24: =VLOOKUP($B24,'Exp_private (YTD)'!$B$14:$AH$30,10,FALSE) -> 1000 | U24: 1 | W24: =VLOOKUP($B24,'Exp_private (YTD)'!$B$14:$AH$30,9,FALSE) -> 1000 | X24: 1 | Z24: =VLOOKUP($B24,'Exp_private (YTD)'!$B$14:$AH$30,8,FALSE) -> 1000 | AA24: 1 | AC24: =VLOOKUP($B24,'Exp_private (YTD)'!$B$11:$AH$30,7,FALSE) -> 1000 | AD24: 1 | AF24: =VLOOKUP($B24,'Exp_private (YTD)'!$B$11:$AH$30,6,FALSE) -> 1000 | AG24: 1 | AI24: =VLOOKUP($B24,'Exp_private (YTD)'!$B$8:$AH$30,5,FALSE) -> 1000 | AJ24: 1 | AL24: =VLOOKUP($B24,'Exp_private (YTD)'!$B$8:$AH$30,4,FALSE) -> 1000 | AM24: 1 | AO24: =VLOOKUP(B24,'Exp_private (YTD)'!$B$8:$AH$30,30,FALSE) -> 1000 | AP24: 1 | AR24: 10 | AS24: 0.25
B25: Private Exp J | C25: 3 | E25: =VLOOKUP($B25,'Exp_private (YTD)'!$B$14:$AH$30,15,FALSE) -> 0 | F25: 0 | H25: =VLOOKUP($B25,'Exp_private (YTD)'!$B$14:$AH$30,14,FALSE) -> 0 | I25: 0 | K25: =VLOOKUP($B25,'Exp_private (YTD)'!$B$14:$AH$30,13,FALSE) -> 0 | L25: 0 | N25: =VLOOKUP($B25,'Exp_private (YTD)'!$B$14:$AH$30,12,FALSE) -> 1000 | O25: 1 | Q25: =VLOOKUP($B25,'Exp_private (YTD)'!$B$14:$AH$30,11,FALSE) -> 1000 | R25: 1 | T25: =VLOOKUP($B25,'Exp_private (YTD)'!$B$14:$AH$30,10,FALSE) -> 1000 | U25: 1 | W25: =VLOOKUP($B25,'Exp_private (YTD)'!$B$14:$AH$30,9,FALSE) -> 1000 | X25: 1 | Z25: =VLOOKUP($B25,'Exp_private (YTD)'!$B$14:$AH$30,8,FALSE) -> 1000 | AA25: 1 | AC25: =VLOOKUP($B25,'Exp_private (YTD)'!$B$11:$AH$30,7,FALSE) -> 1000 | AD25: 1 | AF25: =VLOOKUP($B25,'Exp_private (YTD)'!$B$11:$AH$30,6,FALSE) -> 1000 | AG25: 1 | AI25: =VLOOKUP($B25,'Exp_private (YTD)'!$B$8:$AH$30,5,FALSE) -> 1000 | AJ25: 1 | AL25: =VLOOKUP($B25,'Exp_private (YTD)'!$B$8:$AH$30,4,FALSE) -> 1000 | AM25: 1 | AO25: =VLOOKUP(B25,'Exp_private (YTD)'!$B$8:$AH$30,30,FALSE) -> 0 | AP25: 0 | AR25: 0 | AS25: 0
B26: Private Exp K | C26: 3 | E26: =VLOOKUP($B26,'Exp_private (YTD)'!$B$14:$AH$30,15,FALSE) -> 0 | F26: 0 | H26: =VLOOKUP($B26,'Exp_private (YTD)'!$B$14:$AH$30,14,FALSE) -> 0 | I26: 0 | K26: =VLOOKUP($B26,'Exp_private (YTD)'!$B$14:$AH$30,13,FALSE) -> 0 | L26: 0 | N26: =VLOOKUP($B26,'Exp_private (YTD)'!$B$14:$AH$30,12,FALSE) -> 1000 | O26: 1 | Q26: =VLOOKUP($B26,'Exp_private (YTD)'!$B$14:$AH$30,11,FALSE) -> 1000 | R26: 1 | T26: =VLOOKUP($B26,'Exp_private (YTD)'!$B$14:$AH$30,10,FALSE) -> 1000 | U26: 1 | W26: =VLOOKUP($B26,'Exp_private (YTD)'!$B$14:$AH$30,9,FALSE) -> 1000 | X26: 1 | Z26: =VLOOKUP($B26,'Exp_private (YTD)'!$B$14:$AH$30,8,FALSE) -> 1000 | AA26: 1 | AC26: =VLOOKUP($B26,'Exp_private (YTD)'!$B$11:$AH$30,7,FALSE) -> 1000 | AD26: 1 | AF26: =VLOOKUP($B26,'Exp_private (YTD)'!$B$11:$AH$30,6,FALSE) -> 1000 | AG26: 1 | AI26: =VLOOKUP($B26,'Exp_private (YTD)'!$B$8:$AH$30,5,FALSE) -> 1000 | AJ26: 1 | AL26: =VLOOKUP($B26,'Exp_private (YTD)'!$B$8:$AH$30,4,FALSE) -> 1000 | AM26: 1 | AO26: =VLOOKUP(B26,'Exp_private (YTD)'!$B$8:$AH$30,30,FALSE) -> 1000 | AP26: 1 | AR26: 0 | AS26: 0
B27: Private Exp L | C27: 3 | E27: =VLOOKUP($B27,'Exp_private (YTD)'!$B$14:$AH$30,15,FALSE) -> 0 | F27: 0 | H27: =VLOOKUP($B27,'Exp_private (YTD)'!$B$14:$AH$30,14,FALSE) -> 0 | I27: 0 | K27: =VLOOKUP($B27,'Exp_private (YTD)'!$B$14:$AH$30,13,FALSE) -> 0 | L27: 0 | N27: =VLOOKUP($B27,'Exp_private (YTD)'!$B$14:$AH$30,12,FALSE) -> 1000 | O27: 1 | Q27: =VLOOKUP($B27,'Exp_private (YTD)'!$B$14:$AH$30,11,FALSE) -> 1000 | R27: 1 | T27: =VLOOKUP($B27,'Exp_private (YTD)'!$B$14:$AH$30,10,FALSE) -> 1000 | U27: 1 | W27: =VLOOKUP($B27,'Exp_private (YTD)'!$B$14:$AH$30,9,FALSE) -> 1000 | X27: 1 | Z27: =VLOOKUP($B27,'Exp_private (YTD)'!$B$14:$AH$30,8,FALSE) -> 1000 | AA27: 1 | AC27: =VLOOKUP($B27,'Exp_private (YTD)'!$B$11:$AH$30,7,FALSE) -> 1000 | AD27: 1 | AF27: =VLOOKUP($B27,'Exp_private (YTD)'!$B$11:$AH$30,6,FALSE) -> 1000 | AG27: 1 | AI27: =VLOOKUP($B27,'Exp_private (YTD)'!$B$8:$AH$30,5,FALSE) -> 1000 | AJ27: 1 | AL27: =VLOOKUP($B27,'Exp_private (YTD)'!$B$8:$AH$30,4,FALSE) -> 1000 | AM27: 1 | AO27: =VLOOKUP(B27,'Exp_private (YTD)'!$B$8:$AH$30,30,FALSE) -> 1000 | AP27: 1 | AR27: 0 | AS27: 0
B28: Private Exp M | C28: 3 | E28: =VLOOKUP($B28,'Exp_private (YTD)'!$B$14:$AH$30,15,FALSE) -> 0 | F28: 0 | H28: =VLOOKUP($B28,'Exp_private (YTD)'!$B$14:$AH$30,14,FALSE) -> 0 | I28: 0 | K28: =VLOOKUP($B28,'Exp_private (YTD)'!$B$14:$AH$30,13,FALSE) -> 0 | L28: 0 | N28: =VLOOKUP($B28,'Exp_private (YTD)'!$B$14:$AH$30,12,FALSE) -> 1000 | O28: 1 | Q28: =VLOOKUP($B28,'Exp_private (YTD)'!$B$14:$AH$30,11,FALSE) -> 1000 | R28: 1 | T28: =VLOOKUP($B28,'Exp_private (YTD)'!$B$14:$AH$30,10,FALSE) -> 1000 | U28: 1 | W28: =VLOOKUP($B28,'Exp_private (YTD)'!$B$14:$AH$30,9,FALSE) -> 1000 | X28: 1 | Z28: =VLOOKUP($B28,'Exp_private (YTD)'!$B$14:$AH$30,8,FALSE) -> 1000 | AA28: 1 | AC28: =VLOOKUP($B28,'Exp_private (YTD)'!$B$11:$AH$30,7,FALSE) -> 1000 | AD28: 1 | AF28: =VLOOKUP($B28,'Exp_private (YTD)'!$B$11:$AH$30,6,FALSE) -> 1000 | AG28: 1 | AI28: =VLOOKUP($B28,'Exp_private (YTD)'!$B$8:$AH$30,5,FALSE) -> 1000 | AJ28: 1 | AL28: =VLOOKUP($B28,'Exp_private (YTD)'!$B$8:$AH$30,4,FALSE) -> 1000 | AM28: 1 | AO28: =VLOOKUP(B28,'Exp_private (YTD)'!$B$8:$AH$30,30,FALSE) -> 1000 | AP28: 1 | AR28: 0 | AS28: 0
B29: Private Exp N | C29: 3 | E29: =VLOOKUP($B29,'Exp_private (YTD)'!$B$14:$AH$30,15,FALSE) -> 0 | F29: 0 | H29: =VLOOKUP($B29,'Exp_private (YTD)'!$B$14:$AH$30,14,FALSE) -> 0 | I29: 0 | K29: =VLOOKUP($B29,'Exp_private (YTD)'!$B$14:$AH$30,13,FALSE) -> 0 | L29: 0 | N29: =VLOOKUP($B29,'Exp_private (YTD)'!$B$14:$AH$30,12,FALSE) -> 1000 | O29: 1 | Q29: =VLOOKUP($B29,'Exp_private (YTD)'!$B$14:$AH$30,11,FALSE) -> 1000 | R29: 1 | T29: =VLOOKUP($B29,'Exp_private (YTD)'!$B$14:$AH$30,10,FALSE) -> 1000 | U29: 1 | W29: =VLOOKUP($B29,'Exp_private (YTD)'!$B$14:$AH$30,9,FALSE) -> 1000 | X29: 1 | Z29: =VLOOKUP($B29,'Exp_private (YTD)'!$B$14:$AH$30,8,FALSE) -> 1000 | AA29: 1 | AC29: =VLOOKUP($B29,'Exp_private (YTD)'!$B$11:$AH$30,7,FALSE) -> 1000 | AD29: 1 | AF29: =VLOOKUP($B29,'Exp_private (YTD)'!$B$11:$AH$30,6,FALSE) -> 1000 | AG29: 1 | AI29: =VLOOKUP($B29,'Exp_private (YTD)'!$B$8:$AH$30,5,FALSE) -> 1000 | AJ29: 1 | AL29: =VLOOKUP($B29,'Exp_private (YTD)'!$B$8:$AH$30,4,FALSE) -> 1000 | AM29: 1 | AO29: =VLOOKUP(B29,'Exp_private (YTD)'!$B$8:$AH$30,30,FALSE) -> 1000 | AP29: 1 | AR29: 0 | AS29: 0
B30: Others | C30: 3 | E30: =VLOOKUP($B30,'Exp_private (YTD)'!$B$14:$AH$30,15,FALSE) -> 0 | F30: 0 | H30: =VLOOKUP($B30,'Exp_private (YTD)'!$B$14:$AH$30,14,FALSE) -> 0 | I30: 0 | K30: =VLOOKUP($B30,'Exp_private (YTD)'!$B$14:$AH$30,13,FALSE) -> 0 | L30: 0 | N30: =VLOOKUP($B30,'Exp_private (YTD)'!$B$14:$AH$30,12,FALSE) -> 1000 | O30: 1 | Q30: =VLOOKUP($B30,'Exp_private (YTD)'!$B$14:$AH$30,11,FALSE) -> 1000 | R30: 1 | T30: =VLOOKUP($B30,'Exp_private (YTD)'!$B$14:$AH$30,10,FALSE) -> 1000 | U30: 1 | W30: =VLOOKUP($B30,'Exp_private (YTD)'!$B$14:$AH$30,9,FALSE) -> 1000 | X30: 1 | Z30: =VLOOKUP($B30,'Exp_private (YTD)'!$B$14:$AH$30,8,FALSE) -> 1000 | AA30: 1 | AC30: =VLOOKUP($B30,'Exp_private (YTD)'!$B$11:$AH$30,7,FALSE) -> 1000 | AD30: 1 | AF30: =VLOOKUP($B30,'Exp_private (YTD)'!$B$11:$AH$30,6,FALSE) -> 1000 | AG30: 1 | AI30: =VLOOKUP($B30,'Exp_private (YTD)'!$B$8:$AH$30,5,FALSE) -> 1000 | AJ30: 1 | AL30: =VLOOKUP($B30,'Exp_private (YTD)'!$B$8:$AH$30,4,FALSE) -> 1000 | AM30: 1 | AO30: =VLOOKUP(B30,'Exp_private (YTD)'!$B$8:$AH$30,30,FALSE) -> 1000 | AP30: 1 | AR30: 0 | AS30: 0
B31: Private Exp | E31: =SUM(E16:E30) -> 0 | F31: =SUM(F16:F30) -> 0 | H31: =SUM(H16:H30) -> 0 | I31: =SUM(I16:I30) -> 0 | K31: =SUM(K16:K30) -> 0 | L31: =SUM(L16:L30) -> 0 | N31: =SUM(N16:N30) -> 12755990 | O31: =SUM(O16:O30) -> 12756 | Q31: =SUM(Q16:Q30) -> 3047990 | R31: =SUM(R16:R30) -> 3048 | T31: =SUM(T16:T30) -> 15000 | U31: =SUM(U16:U30) -> 15 | W31: =SUM(W16:W30) -> 15000 | X31: =SUM(X16:X30) -> 14 | Z31: =SUM(Z16:Z30) -> 15000 | AA31: =SUM(AA16:AA30) -> 15 | AC31: =SUM(AC16:AC30) -> 15000 | AD31: =SUM(AD16:AD30) -> 15 | AF31: =SUM(AF16:AF30) -> 14000 | AG31: =SUM(AG16:AG30) -> 14 | AI31: =SUM(AI16:AI30) -> 14000 | AJ31: =SUM(AJ16:AJ30) -> 14 | AL31: =SUM(AL16:AL30) -> 15000 | AM31: =SUM(AM16:AM30) -> 15 | AO31: =SUM(AO16:AO30) -> 14000 | AP31: =SUM(AP16:AP30) -> 14 | AR31: 9708 | AS31: 3.18503937
Q32: =Q31-'Exp_private (YTD)'!L31 -> 0
